﻿Department,Entity,Date,Expense Type,Expense Area,Supplier,Transaction Number,Amount
Home Office,Disclosure and Barring Services,01/08/2023,LEGAL ADVICE,DBS - Disclosure & Barring Service,DLA PIPER UK LLP,2891802-9020017720-170627-2339101,28069.21
Home Office,Disclosure and Barring Services,01/08/2023,LEGAL ADVICE,DBS - Disclosure & Barring Service,DLA PIPER UK LLP,2891802-9020017719-170627-4985512,59826.14
Home Office,Disclosure and Barring Services,01/08/2023,LEGAL ADVICE,DBS - Disclosure & Barring Service,DLA PIPER UK LLP,2891802-9020014990-170627-5051252,60615.02
Home Office,Disclosure and Barring Services,04/08/2023,CONTINGENT LABOUR OTHER,DBS - Disclosure & Barring Service,ALEXANDER MANN SOLUTIONS LTD,2891717-2856507A-560478-52085,6250.2
Home Office,Disclosure and Barring Services,04/08/2023,CONTINGENT LABOUR OTHER,DBS - Disclosure & Barring Service,ALEXANDER MANN SOLUTIONS LTD,2891748-2856507A-560478-4684236,56210.83
Home Office,Disclosure and Barring Services,04/08/2023,RENT TO LANDLORDS,DBS - Disclosure & Barring Service,CUSHMAN & WAKEFIELD DEBENHAM TIE LEUNG LTD,2891793-59972-112730-7149564,71495.64
Home Office,Disclosure and Barring Services,04/08/2023,RENT TO LANDLORDS,DBS - Disclosure & Barring Service,CUSHMAN & WAKEFIELD DEBENHAM TIE LEUNG LTD,2891793-59970-112730-16766792,167667.92
Home Office,Disclosure and Barring Services,04/08/2023,EXTERNAL,DBS - Disclosure & Barring Service,NATIONAL AUDIT OFFICE (NAO),2891788-SIN003818-113041-65000,65000
Home Office,Disclosure and Barring Services,07/08/2023,CONT OUT SERV OTHER,DBS - Disclosure & Barring Service,ALEXANDER MANN SOLUTIONS LTD,2891825-2857611-560478-6510667,78128
Home Office,Disclosure and Barring Services,07/08/2023,IT RUN COST,DBS - Disclosure & Barring Service,ENTSERV UK LTD,2891725-6129079-102438-59723516,716682.19
Home Office,Disclosure and Barring Services,08/08/2023,CONT OUT SERV OTHER,DBS - Disclosure & Barring Service,IBM UNITED KINGDOM LTD,2891717-5807232805-101457-106723,128067.6
Home Office,Disclosure and Barring Services,09/08/2023,DBS LEGAL APPEAL,DBS - Disclosure & Barring Service,DLA PIPER UK LLP,2891814-9020020192-170627-20511809,246141.71
Home Office,Disclosure and Barring Services,10/08/2023,IT RUN COST,DBS - Disclosure & Barring Service,CGI IT UK LTD,2891725-GB014111087-240306-8024693,96296.32
Home Office,Disclosure and Barring Services,10/08/2023,IT RUN COST,DBS - Disclosure & Barring Service,CGI IT UK LTD,2891717-GB014110948-240306-11044761,132537.13
Home Office,Disclosure and Barring Services,10/08/2023,IT RUN COST,DBS - Disclosure & Barring Service,CGI IT UK LTD,2891725-GB014110970-240306-91832387,1101988.64
Home Office,Disclosure and Barring Services,10/08/2023,DIRECT COSTS TICKET PRICE,DBS - Disclosure & Barring Service,HINDUJA GLOBAL SOLUTIONS UK LTD,2891780-23-1139-53040-27333421,328001.05
Home Office,Disclosure and Barring Services,10/08/2023,DIRECT COSTS TICKET PRICE,DBS - Disclosure & Barring Service,HINDUJA GLOBAL SOLUTIONS UK LTD,2891780-23-1134-53040-28920599,347047.19
Home Office,Disclosure and Barring Services,10/08/2023,DIRECT COSTS TICKET PRICE,DBS - Disclosure & Barring Service,HINDUJA GLOBAL SOLUTIONS UK LTD,2891780-22-1557-53040-30021146,360253.75
Home Office,Disclosure and Barring Services,10/08/2023,IT RUN COST,DBS - Disclosure & Barring Service,VODAFONE LTD,2891725-UK10/082023/9308-119598-1552298,186275.76
Home Office,Disclosure and Barring Services,11/08/2023,CONTINGENT LABOUR OTHER,DBS - Disclosure & Barring Service,ALEXANDER MANN SOLUTIONS LTD,2891717-2861148A-560478-28983,3477.96
Home Office,Disclosure and Barring Services,11/08/2023,CONTINGENT LABOUR OTHER,DBS - Disclosure & Barring Service,ALEXANDER MANN SOLUTIONS LTD,2891717-2837567A-560478-52085,6250.2
Home Office,Disclosure and Barring Services,11/08/2023,CONT OUT SERV OTHER,DBS - Disclosure & Barring Service,ALEXANDER MANN SOLUTIONS LTD,2891825-2862313-560478-43020,51624
Home Office,Disclosure and Barring Services,11/08/2023,CONTINGENT LABOUR OTHER,DBS - Disclosure & Barring Service,ALEXANDER MANN SOLUTIONS LTD,2891748-2861148A-560478-4505392,54064.7
Home Office,Disclosure and Barring Services,11/08/2023,CONTINGENT LABOUR OTHER,DBS - Disclosure & Barring Service,ALEXANDER MANN SOLUTIONS LTD,2891748-2837567A-560478-5401368,64816.42
Home Office,Disclosure and Barring Services,11/08/2023,EXTERNAL,DBS - Disclosure & Barring Service,KPMG LLP,2891962-5502662987-120914-2176396,26116.75
Home Office,Disclosure and Barring Services,11/08/2023,DBS DIRECT COSTS C2B,DBS - Disclosure & Barring Service,POST OFFICE LTD,2891780-1000/9000009315-239462-56372,67646.4
Home Office,Disclosure and Barring Services,11/08/2023,DBS DIRECT COSTS C2B,DBS - Disclosure & Barring Service,POST OFFICE LTD,2891780-1000/9000009157-239462-69771,83725.2
Home Office,Disclosure and Barring Services,14/08/2023,DIRECT COSTS POSTAGE,DBS - Disclosure & Barring Service,SWISS POST SOLUTIONS LTD,2891780-1800019809-53641-60123463,721481.55
Home Office,Disclosure and Barring Services,14/08/2023,DIRECT COSTS POSTAGE,DBS - Disclosure & Barring Service,SWISS POST SOLUTIONS LTD,2891780-1800019796-53641-87980564,1055766.76
Home Office,Disclosure and Barring Services,18/08/2023,CONTINGENT LABOUR OTHER,DBS - Disclosure & Barring Service,ALEXANDER MANN SOLUTIONS LTD,2891717-2865788A-560478-232075,2784.9
Home Office,Disclosure and Barring Services,18/08/2023,CONTINGENT LABOUR OTHER,DBS - Disclosure & Barring Service,ALEXANDER MANN SOLUTIONS LTD,2891748-2865788A-560478-496491,59578.92
Home Office,Disclosure and Barring Services,18/08/2023,IT RUN COST,DBS - Disclosure & Barring Service,IBM UNITED KINGDOM LTD,2891717-5806233151-101457-5775,6930
Home Office,Disclosure and Barring Services,18/08/2023,SYSTEM CLEARING,DBS - Disclosure & Barring Service,IBM UNITED KINGDOM LTD,2891961-5806233151-101457-33315,39978
Home Office,Disclosure and Barring Services,21/08/2023,IT RUN COST,DBS - Disclosure & Barring Service,CGI IT UK LTD,2891717-GB014111382-240306-60637,72764.4
Home Office,Disclosure and Barring Services,21/08/2023,IT RUN COST,DBS - Disclosure & Barring Service,CGI IT UK LTD,2891717-GB014111370-240306-12065398,144784.78
Home Office,Disclosure and Barring Services,23/08/2023,CONT OUT SERV OTHER,DBS - Disclosure & Barring Service,ALEXANDER MANN SOLUTIONS LTD,2891799-2857613-560478-2666666,31999.99
Home Office,Disclosure and Barring Services,25/08/2023,CONTINGENT LABOUR OTHER,DBS - Disclosure & Barring Service,ALEXANDER MANN SOLUTIONS LTD,2891717-2870301A-560478-52085,6250.2
Home Office,Disclosure and Barring Services,25/08/2023,CONTINGENT LABOUR OTHER,DBS - Disclosure & Barring Service,ALEXANDER MANN SOLUTIONS LTD,2891748-2870301A-560478-5187494,62249.93
Home Office,Disclosure and Barring Services,25/08/2023,IT RUN COST,DBS - Disclosure & Barring Service,REPLY LTD,2891961-3231001533-311787-35815,42978
Home Office,Disclosure and Barring Services,29/08/2023,IT RUN COST,DBS - Disclosure & Barring Service,ENTSERV UK LTD,2891725-6129959-102438-61840787,742089.44
Home Office,Disclosure and Barring Services,29/08/2023,POLICE DISCLOSURE COSTS,DBS - Disclosure & Barring Service,NATIONAL CRIME AGENCY (NCA),2891776-DISC/NCA/P1/P2/P3/23-343011-5100463,51004.63
Home Office,Disclosure and Barring Services,31/08/2023,IT RUN COST,DBS - Disclosure & Barring Service,CGI IT UK LTD,2891959-GB014109491-240306-2340905,28090.86
Home Office,Disclosure and Barring Services,31/08/2023,IT RUN COST,DBS - Disclosure & Barring Service,CGI IT UK LTD,2891961-GB014111862-240306-3886591,46639.09
Home Office,Disclosure and Barring Services,31/08/2023,LEGAL ADVICE,DBS - Disclosure & Barring Service,DLA PIPER UK LLP,2891802-9020022399-170627-5446602,65359.22
Home Office,Home Office,01/08/2023,CONTINGENT LABOUR OTHER,CD - Corporate & Delivery,ADECCO UK LTD,1686201-29594327-56679-220818,2649.81
Home Office,Home Office,01/08/2023,MAINTENANCE PLANNED,CD - Corporate & Delivery,INTERSERVE (FACILITIES MANAGEMENT) LTD,1709200-357525/92828896-100369-5239903,52399.03
Home Office,Home Office,01/08/2023,MAINTENANCE PLANNED,CD - Corporate & Delivery,INTERSERVE (FACILITIES MANAGEMENT) LTD,1709200-357525/92828898-100369-4687102,56245.22
Home Office,Home Office,01/08/2023,MAINTENANCE REACTIVE,CD - Corporate & Delivery,INTERSERVE (FACILITIES MANAGEMENT) LTD,1709200-357525/92828916-100369-15078803,150788.03
Home Office,Home Office,01/08/2023,MAINTENANCE REACTIVE,CD - Corporate & Delivery,INTERSERVE (FACILITIES MANAGEMENT) LTD,1709200-357525/92828917-100369-13168431,158021.17
Home Office,Home Office,02/08/2023,LEGAL ADVICE,CD - Corporate & Delivery,WOMBLE BOND DICKINSON (UK) LLP,1709200-3733127-53117-277815,33337.8
Home Office,Home Office,03/08/2023,AUDIT SERVICES,CD - Corporate & Delivery,GOVERNMENT INTERNAL AUDIT AGENCY (GIAA),1757075-45730-467816-644750,644750
Home Office,Home Office,03/08/2023,LEGAL REPRESENTATION,CD - Corporate & Delivery,GOVERNMENT LEGAL DEPARTMENT,1811003-529395-113504-286175,34341
Home Office,Home Office,04/08/2023,CONTINGENT LABOUR OTHER,CD - Corporate & Delivery,ALEXANDER MANN SOLUTIONS LTD,1709200-2856507-560478-236108,2833.3
Home Office,Home Office,04/08/2023,CONTINGENT LABOUR OTHER,CD - Corporate & Delivery,ALEXANDER MANN SOLUTIONS LTD,1682114-2856507-560478-466035,5592.42
Home Office,Home Office,04/08/2023,CONTINGENT LABOUR OTHER,CD - Corporate & Delivery,ALEXANDER MANN SOLUTIONS LTD,1735100-2856507-560478-5445331,65343.97
Home Office,Home Office,04/08/2023,FULL COST,CD - Corporate & Delivery,BROOK STREET (UK) LTD,1709200-30556885-23-100385-54649,655.79
Home Office,Home Office,04/08/2023,FULL COST,CD - Corporate & Delivery,BROOK STREET (UK) LTD,1491012-30556885-23-100385-67464,809.57
Home Office,Home Office,04/08/2023,FULL COST,CD - Corporate & Delivery,BROOK STREET (UK) LTD,1681105-30556885-23-100385-10797,1295.64
Home Office,Home Office,04/08/2023,FULL COST,CD - Corporate & Delivery,BROOK STREET (UK) LTD,1752520-30556885-23-100385-11607,1392.84
Home Office,Home Office,04/08/2023,FULL COST,CD - Corporate & Delivery,BROOK STREET (UK) LTD,1681500-30556885-23-100385-124334,1492.01
Home Office,Home Office,04/08/2023,FULL COST,CD - Corporate & Delivery,BROOK STREET (UK) LTD,1686201-30556885-23-100385-450538,5406.47
Home Office,Home Office,04/08/2023,FULL COST,CD - Corporate & Delivery,BROOK STREET (UK) LTD,1418032-30556885-23-100385-935821,11229.88
Home Office,Home Office,04/08/2023,FULL COST,CD - Corporate & Delivery,BROOK STREET (UK) LTD,1682114-30556885-23-100385-938939,11267.29
Home Office,Home Office,04/08/2023,CONTINGENT LABOUR OTHER,CD - Corporate & Delivery,CABINET OFFICE,1735100-3831628-113009-26970,32364
Home Office,Home Office,04/08/2023,RECRUITMENT ADVERTISING,CD - Corporate & Delivery,CABINET OFFICE,1686202-3831692-113009-1577575,1577575
Home Office,Home Office,04/08/2023,RELOCATION EXPENSES,CD - Corporate & Delivery,MINISTRY OF JUSTICE,1709200-2336166-199603-26808668,268086.68
Home Office,Home Office,07/08/2023,CONTINGENT LABOUR OTHER,CD - Corporate & Delivery,BLOOM PROCUREMENT SERVICES LTD,1735100-SIN044862-518536-101326,121591.2
Home Office,Home Office,07/08/2023,SYSTEM CLEARING,CD - Corporate & Delivery,KIER CONSTRUCTION NORTHERN,1490000-10317991-54211-56341515,676098.18
Home Office,Home Office,09/08/2023,ORGANISATION MEMBERSHIP,CD - Corporate & Delivery,CORE STREAM LTD,1757075-HO-018-51300-43160,51792
Home Office,Home Office,09/08/2023,COURIER COSTS,CD - Corporate & Delivery,ROYAL MAIL,1709200-9067994185-112710-5457354,54573.54
Home Office,Home Office,10/08/2023,FULL COST,CD - Corporate & Delivery,BROOK STREET (UK) LTD,1491012-30567400-23-100385-5294,635.28
Home Office,Home Office,10/08/2023,FULL COST,CD - Corporate & Delivery,BROOK STREET (UK) LTD,1709200-30567400-23-100385-54649,655.79
Home Office,Home Office,10/08/2023,FULL COST,CD - Corporate & Delivery,BROOK STREET (UK) LTD,1681500-30567400-23-100385-6559,787.08
Home Office,Home Office,10/08/2023,FULL COST,CD - Corporate & Delivery,BROOK STREET (UK) LTD,1752520-30567400-23-100385-127305,1527.66
Home Office,Home Office,10/08/2023,FULL COST,CD - Corporate & Delivery,BROOK STREET (UK) LTD,1681105-30567400-23-100385-13542,1625.04
Home Office,Home Office,10/08/2023,FULL COST,CD - Corporate & Delivery,BROOK STREET (UK) LTD,1686201-30567400-23-100385-331734,3980.81
Home Office,Home Office,10/08/2023,FULL COST,CD - Corporate & Delivery,BROOK STREET (UK) LTD,1418032-30567400-23-100385-852997,10235.97
Home Office,Home Office,10/08/2023,FULL COST,CD - Corporate & Delivery,BROOK STREET (UK) LTD,1682114-30567400-23-100385-883566,10602.81
Home Office,Home Office,10/08/2023,CONFERENCES,CD - Corporate & Delivery,CALDER CONFERENCES LTD,1771080-497190-112824-231635,27796.2
Home Office,Home Office,10/08/2023,FM ALLOCATION CONTROL,CD - Corporate & Delivery,CUSHMAN & WAKEFIELD DEBENHAM TIE LEUNG LTD,1709200-HOEC597-112730-86076522,860765.22
Home Office,Home Office,10/08/2023,OFFICE RELATED,CD - Corporate & Delivery,IRON MOUNTAIN (UK) LTD,1709106-0776340-116000-35575228,355752.28
Home Office,Home Office,10/08/2023,OFFICE RELATED,CD - Corporate & Delivery,RESTORE PLC,1709106-1392264-549843-3487303,34873.03
Home Office,Home Office,11/08/2023,CONTINGENT LABOUR OTHER,CD - Corporate & Delivery,ALEXANDER MANN SOLUTIONS LTD,1709200-2861148-560478-295135,3541.62
Home Office,Home Office,11/08/2023,CONTINGENT LABOUR OTHER,CD - Corporate & Delivery,ALEXANDER MANN SOLUTIONS LTD,1682114-2861148-560478-296349,3556.19
Home Office,Home Office,11/08/2023,CONTINGENT LABOUR OTHER,CD - Corporate & Delivery,ALEXANDER MANN SOLUTIONS LTD,1751000-2861148-560478-31503,3780.36
Home Office,Home Office,11/08/2023,CONTINGENT LABOUR OTHER,CD - Corporate & Delivery,ALEXANDER MANN SOLUTIONS LTD,1418033-2861148-560478-362208,4346.5
Home Office,Home Office,11/08/2023,CONTINGENT LABOUR OTHER,CD - Corporate & Delivery,ALEXANDER MANN SOLUTIONS LTD,1682113-2861148-560478-505356,6064.27
Home Office,Home Office,11/08/2023,CONTINGENT LABOUR OTHER,CD - Corporate & Delivery,ALEXANDER MANN SOLUTIONS LTD,1735100-2861148-560478-7484838,89818.06
Home Office,Home Office,11/08/2023,CONTINGENT LABOUR OTHER,CD - Corporate & Delivery,CABINET OFFICE,1735100-3829887-113009-101740,122088
Home Office,Home Office,14/08/2023,ADVICE,CD - Corporate & Delivery,ALEXANDER MANN SOLUTIONS LTD,1735100-2862306-560478-25620,30744
Home Office,Home Office,14/08/2023,PROCUREMENT CARD - GPC,CD - Corporate & Delivery,RBS,0000000-GPC1408231346-102384-0,198649.2
Home Office,Home Office,15/08/2023,CONTINGENT LABOUR OTHER,CD - Corporate & Delivery,ADECCO UK LTD,1491012-29605344-56679-5928,711.36
Home Office,Home Office,15/08/2023,CONTINGENT LABOUR OTHER,CD - Corporate & Delivery,ADECCO UK LTD,1491012-29611679-56679-73112,877.34
Home Office,Home Office,15/08/2023,CONTINGENT LABOUR OTHER,CD - Corporate & Delivery,ADECCO UK LTD,1686201-29611615-56679-75088,901.17
Home Office,Home Office,15/08/2023,CONTINGENT LABOUR OTHER,CD - Corporate & Delivery,ADECCO UK LTD,1418032-29605344-56679-132392,1588.7
Home Office,Home Office,15/08/2023,ADVICE,CD - Corporate & Delivery,BLOOM PROCUREMENT SERVICES LTD,1709200-SIN045088-518536-2091583,20915.83
Home Office,Home Office,15/08/2023,OCCUPATIONAL HEALTH,CD - Corporate & Delivery,HEALTH MANAGEMENT LTD,1682113-INV546306-215148-13229078,158748.94
Home Office,Home Office,16/08/2023,SYSTEM CLEARING,CD - Corporate & Delivery,GOVERNMENT PROPERTY AGENCY (GPA),1490000-00000001/25650-555960-333528834,4002346
Home Office,Home Office,17/08/2023,ADVICE,CD - Corporate & Delivery,BLOOM PROCUREMENT SERVICES LTD,1709200-SIN045161-518536-2464277,24642.77
Home Office,Home Office,17/08/2023,OTHER GOVERNMENT DEPARTMENTS,CD - Corporate & Delivery,CABINET OFFICE,1681105-3832009-113009-719699,719699
Home Office,Home Office,17/08/2023,FM ALLOCATION CONTROL,CD - Corporate & Delivery,CUSHMAN & WAKEFIELD DEBENHAM TIE LEUNG LTD,1709200-HOEC598-112730-263397202,2633972.02
Home Office,Home Office,17/08/2023,FM ALLOCATION CONTROL,CD - Corporate & Delivery,INTERSERVE (FACILITIES MANAGEMENT) LTD,1709200-HOEC795-100369-30302544,303025.44
Home Office,Home Office,18/08/2023,CONTINGENT LABOUR OTHER,CD - Corporate & Delivery,ADECCO UK LTD,1686201-29583682-56679-741,889.24
Home Office,Home Office,18/08/2023,CONTINGENT LABOUR OTHER,CD - Corporate & Delivery,ADECCO UK LTD,1686201-29605308-56679-220818,2649.81
Home Office,Home Office,18/08/2023,CONTINGENT LABOUR OTHER,CD - Corporate & Delivery,ALEXANDER MANN SOLUTIONS LTD,1418033-2865788-560478-98784,1185.41
Home Office,Home Office,18/08/2023,CONTINGENT LABOUR OTHER,CD - Corporate & Delivery,ALEXANDER MANN SOLUTIONS LTD,1709200-2865788-560478-236108,2833.3
Home Office,Home Office,18/08/2023,CONTINGENT LABOUR OTHER,CD - Corporate & Delivery,ALEXANDER MANN SOLUTIONS LTD,1682113-2865788-560478-288775,3465.3
Home Office,Home Office,18/08/2023,CONTINGENT LABOUR OTHER,CD - Corporate & Delivery,ALEXANDER MANN SOLUTIONS LTD,1751000-2865788-560478-31503,3780.36
Home Office,Home Office,18/08/2023,CONTINGENT LABOUR OTHER,CD - Corporate & Delivery,ALEXANDER MANN SOLUTIONS LTD,1709106-2865788-560478-73507,8820.84
Home Office,Home Office,18/08/2023,CONTINGENT LABOUR OTHER,CD - Corporate & Delivery,ALEXANDER MANN SOLUTIONS LTD,1735100-2865788-560478-6507256,78087.06
Home Office,Home Office,18/08/2023,FULL COST,CD - Corporate & Delivery,BROOK STREET (UK) LTD,1496251-30577577-23-100385-42165,505.98
Home Office,Home Office,18/08/2023,FULL COST,CD - Corporate & Delivery,BROOK STREET (UK) LTD,1491012-30577577-23-100385-49661,595.93
Home Office,Home Office,18/08/2023,FULL COST,CD - Corporate & Delivery,BROOK STREET (UK) LTD,1681105-30577577-23-100385-9516,1141.92
Home Office,Home Office,18/08/2023,FULL COST,CD - Corporate & Delivery,BROOK STREET (UK) LTD,1681500-30577577-23-100385-124334,1492.01
Home Office,Home Office,18/08/2023,FULL COST,CD - Corporate & Delivery,BROOK STREET (UK) LTD,1752520-30577577-23-100385-175455,2105.46
Home Office,Home Office,18/08/2023,FULL COST,CD - Corporate & Delivery,BROOK STREET (UK) LTD,1686201-30577577-23-100385-428495,5141.95
Home Office,Home Office,18/08/2023,FULL COST,CD - Corporate & Delivery,BROOK STREET (UK) LTD,1682114-30577577-23-100385-82954,9954.5
Home Office,Home Office,18/08/2023,FULL COST,CD - Corporate & Delivery,BROOK STREET (UK) LTD,1418032-30577577-23-100385-933426,11201.13
Home Office,Home Office,18/08/2023,ADVICE,CD - Corporate & Delivery,FSP CONSULTING SERVICES LTD,1709106-INV-206085-54884-3313643,33136.43
Home Office,Home Office,21/08/2023,CONTINGENT LABOUR OTHER,CD - Corporate & Delivery,ADECCO UK LTD,1491012-29617005-56679-73112,877.34
Home Office,Home Office,21/08/2023,CONTINGENT LABOUR OTHER,CD - Corporate & Delivery,ADECCO UK LTD,1686201-29616944-56679-73112,877.34
Home Office,Home Office,21/08/2023,CONTINGENT LABOUR OTHER,CD - Corporate & Delivery,ADECCO UK LTD,1682114-29616944-56679-74594,895.13
Home Office,Home Office,21/08/2023,ADVICE,CD - Corporate & Delivery,ALEXANDER MANN SOLUTIONS LTD,1735100-2866871-560478-22345,26814
Home Office,Home Office,21/08/2023,SYSTEM CLEARING,CD - Corporate & Delivery,INTERSERVE (FACILITIES MANAGEMENT) LTD,1490000-357525/92828906-100369-6775279,81303.35
Home Office,Home Office,22/08/2023,LEGAL REPRESENTATION,CD - Corporate & Delivery,GOVERNMENT LEGAL DEPARTMENT,1811003-531684-113504-3093093,37117.12
Home Office,Home Office,22/08/2023,OTHER FACILITIES COSTS,CD - Corporate & Delivery,INTERSERVE (FACILITIES MANAGEMENT) LTD,1709200-357525/92844081-100369-151566466,1515664.66
Home Office,Home Office,24/08/2023,IT RUN COST,CD - Corporate & Delivery,SHARED SERVICES CONNECTED LTD (SSCL),1751064-100039067-378790-80041694,800416.94
Home Office,Home Office,24/08/2023,IT RUN COST,CD - Corporate & Delivery,SHARED SERVICES CONNECTED LTD (SSCL),1751064-100039066-378790-101856233,1018562.33
Home Office,Home Office,25/08/2023,CONTINGENT LABOUR OTHER,CD - Corporate & Delivery,ALEXANDER MANN SOLUTIONS LTD,1418033-2870301-560478-98784,1185.41
Home Office,Home Office,25/08/2023,CONTINGENT LABOUR OTHER,CD - Corporate & Delivery,ALEXANDER MANN SOLUTIONS LTD,1682114-2870301-560478-311775,3741.3
Home Office,Home Office,25/08/2023,CONTINGENT LABOUR OTHER,CD - Corporate & Delivery,ALEXANDER MANN SOLUTIONS LTD,1751000-2870301-560478-31503,3780.36
Home Office,Home Office,25/08/2023,CONTINGENT LABOUR OTHER,CD - Corporate & Delivery,ALEXANDER MANN SOLUTIONS LTD,1709106-2870301-560478-330782,3969.38
Home Office,Home Office,25/08/2023,CONTINGENT LABOUR OTHER,CD - Corporate & Delivery,ALEXANDER MANN SOLUTIONS LTD,1735100-2870301-560478-3226923,38723.08
Home Office,Home Office,25/08/2023,FULL COST,CD - Corporate & Delivery,BROOK STREET (UK) LTD,1709200-30588046-23-100385-54649,655.79
Home Office,Home Office,25/08/2023,FULL COST,CD - Corporate & Delivery,BROOK STREET (UK) LTD,1496251-30588046-23-100385-69338,832.06
Home Office,Home Office,25/08/2023,FULL COST,CD - Corporate & Delivery,BROOK STREET (UK) LTD,1681500-30588046-23-100385-124334,1492.01
Home Office,Home Office,25/08/2023,FULL COST,CD - Corporate & Delivery,BROOK STREET (UK) LTD,1681105-30588046-23-100385-13542,1625.04
Home Office,Home Office,25/08/2023,FULL COST,CD - Corporate & Delivery,BROOK STREET (UK) LTD,1752520-30588046-23-100385-186739,2240.87
Home Office,Home Office,25/08/2023,FULL COST,CD - Corporate & Delivery,BROOK STREET (UK) LTD,1686201-30588046-23-100385-439987,5279.85
Home Office,Home Office,25/08/2023,FULL COST,CD - Corporate & Delivery,BROOK STREET (UK) LTD,1418032-30588046-23-100385-890122,10681.47
Home Office,Home Office,25/08/2023,FULL COST,CD - Corporate & Delivery,BROOK STREET (UK) LTD,1682114-30588046-23-100385-90187,10822.46
Home Office,Home Office,25/08/2023,BASIC SALARY,CD - Corporate & Delivery,CABINET OFFICE,1735100-3832074-113009-82935,82935
Home Office,Home Office,25/08/2023,BASIC SALARY,CD - Corporate & Delivery,CABINET OFFICE,1735100-3832256-113009-163350,163350
Home Office,Home Office,25/08/2023,BASIC SALARY,CD - Corporate & Delivery,CABINET OFFICE,1735100-3832255-113009-304972346,3049723.46
Home Office,Home Office,25/08/2023,ELECTRICITY,CD - Corporate & Delivery,MINISTRY OF JUSTICE,1709200-2336386-199603-21038979,210389.79
Home Office,Home Office,29/08/2023,CONTINGENT LABOUR OTHER,CD - Corporate & Delivery,ADECCO UK LTD,1491012-29622478-56679-2964,355.68
Home Office,Home Office,29/08/2023,CONTINGENT LABOUR OTHER,CD - Corporate & Delivery,ADECCO UK LTD,1682114-29622419-56679-73112,877.34
Home Office,Home Office,29/08/2023,CONTINGENT LABOUR OTHER,CD - Corporate & Delivery,ADECCO UK LTD,1686201-29622419-56679-146224,1754.68
Home Office,Home Office,29/08/2023,OTHER FACILITIES COSTS,CD - Corporate & Delivery,"KELLOGG, BROWN AND ROOT LTD",1709200-2307CCS110-171256-28650,28650
Home Office,Home Office,29/08/2023,OTHER FACILITIES COSTS,CD - Corporate & Delivery,"KELLOGG, BROWN AND ROOT LTD",1709200-2308CCS111-171256-28650,28650
Home Office,Home Office,29/08/2023,OTHER FACILITIES COSTS,CD - Corporate & Delivery,MINISTRY OF JUSTICE,1709200-2336384-199603-19259043,192590.43
Home Office,Home Office,29/08/2023,OTHER FACILITIES COSTS,CD - Corporate & Delivery,MINISTRY OF JUSTICE,1709200-2336383-199603-72530789,725307.89
Home Office,Home Office,29/08/2023,OTHER FACILITIES COSTS,CD - Corporate & Delivery,MINISTRY OF JUSTICE,1709200-2336382-199603-75746415,757464.15
Home Office,Home Office,29/08/2023,OTHER FACILITIES COSTS,CD - Corporate & Delivery,MINISTRY OF JUSTICE,1709200-2336381-199603-93416307,934163.07
Home Office,Home Office,29/08/2023,SECURITY GUARDS,CD - Corporate & Delivery,MITIE LTD,1491012-205458/92846703-54840-2440703,24407.03
Home Office,Home Office,29/08/2023,SECURITY GUARDS,CD - Corporate & Delivery,MITIE LTD,1491012-205458/92846700-54840-45093528,450935.28
Home Office,Home Office,30/08/2023,SYSTEM CLEARING,CD - Corporate & Delivery,MOTT MACDONALD LTD,1490000-100557178-112809-2332387,27988.64
Home Office,Home Office,31/08/2023,SYSTEM CLEARING,CD - Corporate & Delivery,GOVERNMENT PROPERTY AGENCY (GPA),1490000-00000001/28375-555960-1073571,1288285.2
Home Office,Home Office,01/08/2023,RESEARCH,COMMS - Communications Directorate,CM MONITOR LTD T/A BRITAIN THINKS,1810000-4070-407109-27500,33000
Home Office,Home Office,07/08/2023,MARKETING & MEDIA,COMMS - Communications Directorate,FCB INFERNO LIMITED,1810000-9045014569-523379-2133625,25603.5
Home Office,Home Office,21/08/2023,AD PRODUCTION,COMMS - Communications Directorate,FCB INFERNO LIMITED,1810000-9045014593-523379-237855,23785.5
Home Office,Home Office,21/08/2023,AD PRODUCTION,COMMS - Communications Directorate,FCB INFERNO LIMITED,1810000-9045014592-523379-6759425,67594.25
Home Office,Home Office,01/08/2023,IT RUN COST,DDaT - Digital Data & Technology,ATOS IT SERVICES UK LTD,1709130-5584425566-108063-15257916,152579.16
Home Office,Home Office,01/08/2023,ADVICE,DDaT - Digital Data & Technology,BLOOM PROCUREMENT SERVICES LTD,1431395-SIN044650-518536-26786788,321441.46
Home Office,Home Office,01/08/2023,OTHER ICT COSTS,DDaT - Digital Data & Technology,CAPGEMINI UK PLC,1486658-2600110381290-112696-2037453,20374.53
Home Office,Home Office,01/08/2023,OTHER ICT COSTS,DDaT - Digital Data & Technology,CLARASYS LTD,1486658-INV104827-56484-31555,37866
Home Office,Home Office,01/08/2023,IT RUN COST,DDaT - Digital Data & Technology,FUJITSU SERVICES LTD,1816002-1030014816-106173-2708071,27080.71
Home Office,Home Office,01/08/2023,IT RUN COST,DDaT - Digital Data & Technology,FUJITSU SERVICES LTD,1816006-1030014775-106173-374775,449730
Home Office,Home Office,01/08/2023,IT RUN COST,DDaT - Digital Data & Technology,LEIDOS INNOVATIONS UK LTD,1709130-INV02-000544337-136199-4766986,47669.86
Home Office,Home Office,01/08/2023,IT RUN COST,DDaT - Digital Data & Technology,LEIDOS INNOVATIONS UK LTD,1709130-INV02-000557536-136199-4988039,49880.39
Home Office,Home Office,01/08/2023,HOSTING,DDaT - Digital Data & Technology,LEIDOS INNOVATIONS UK LTD,1709109-INV02-000557534-136199-20858822,208588.22
Home Office,Home Office,01/08/2023,SPECIALIST USER SOFTWARE & HARDWARE,DDaT - Digital Data & Technology,LEIDOS INNOVATIONS UK LTD,1709109-INV02-000557539-136199-31355093,313550.93
Home Office,Home Office,01/08/2023,IT RUN COST,DDaT - Digital Data & Technology,MADE TECH LTD,1710001-INV004009-56527-10865355,130384.26
Home Office,Home Office,01/08/2023,IT RUN COST,DDaT - Digital Data & Technology,MADE TECH LTD,1710001-INV004001-56527-109975,131970
Home Office,Home Office,01/08/2023,IT RUN COST,DDaT - Digital Data & Technology,NOMINET UK,1816002-CI000242-55892-4960526,49605.26
Home Office,Home Office,01/08/2023,OTHER ICT COSTS,DDaT - Digital Data & Technology,PA CONSULTING SERVICES LTD,1486658-0000025683-100039-33915,40698
Home Office,Home Office,01/08/2023,IT RUN COST,DDaT - Digital Data & Technology,POLICE DIGITAL SERVICE (PDS),1892026-INV-2855-505506-30341645,303416.45
Home Office,Home Office,01/08/2023,IT RUN COST,DDaT - Digital Data & Technology,SOFTCAT LTD,1816012-INVUK946471-242804-4032862,40328.62
Home Office,Home Office,01/08/2023,END USER COMPUTER SOFTWARE,DDaT - Digital Data & Technology,SPECIALIST COMPUTER CENTRES PLC,1709130-OP/ N417129-100774-5316448,53164.48
Home Office,Home Office,02/08/2023,IT RUN COST,DDaT - Digital Data & Technology,BAE SYSTEMS APPLIED INTELLIGENCE LIMITED,1431886-1001055857-136604-659214,65921.4
Home Office,Home Office,02/08/2023,SYSTEM CLEARING,DDaT - Digital Data & Technology,BAE SYSTEMS APPLIED INTELLIGENCE LIMITED,1431395-1001055856-136604-165800,198960
Home Office,Home Office,02/08/2023,TELEPHONE,DDaT - Digital Data & Technology,BRITISH TELECOMMUNICATIONS LTD,1486655-VP 14949170 Q10301 .13-112676-18380451,219977.23
Home Office,Home Office,02/08/2023,END USER COMPUTER SOFTWARE,DDaT - Digital Data & Technology,COMPUTACENTER (UK) LTD,1709130-3884162207-100028-25004136,250041.36
Home Office,Home Office,02/08/2023,OTHER ICT COSTS,DDaT - Digital Data & Technology,IBM UNITED KINGDOM LTD,1488305-5807233095-101457-32000,38400
Home Office,Home Office,02/08/2023,OTHER ICT COSTS,DDaT - Digital Data & Technology,IBM UNITED KINGDOM LTD,1488305-5807233342-101457-67710,67710
Home Office,Home Office,02/08/2023,HOSTING,DDaT - Digital Data & Technology,KYNDRYL UK LTD,1709109-3107230891-56948-4286673,42866.73
Home Office,Home Office,02/08/2023,IT RUN COST,DDaT - Digital Data & Technology,LEIDOS INNOVATIONS UK LTD,1709130-INV02-000557556-136199-12735727,127357.27
Home Office,Home Office,02/08/2023,NETWORKING,DDaT - Digital Data & Technology,LEIDOS INNOVATIONS UK LTD,1709130-INV02-000557554-136199-74150126,741501.26
Home Office,Home Office,02/08/2023,IT RUN COST,DDaT - Digital Data & Technology,SHARED SERVICES CONNECTED LTD (SSCL),1710001-100038696-378790-6030374,72364.49
Home Office,Home Office,02/08/2023,NETWORKING,DDaT - Digital Data & Technology,VODAFONE LTD,1709130-1000002516-119598-8270112,82701.12
Home Office,Home Office,03/08/2023,IT RUN COST,DDaT - Digital Data & Technology,CLARASYS LTD,1710001-INV104864-56484-24275,29130
Home Office,Home Office,03/08/2023,IT RUN COST,DDaT - Digital Data & Technology,CLARASYS LTD,1710001-INV104865-56484-46975,56370
Home Office,Home Office,03/08/2023,IT RUN COST,DDaT - Digital Data & Technology,DELOITTE LLP,1710001-8003821843-112904-396985,39698.5
Home Office,Home Office,03/08/2023,IT RUN COST,DDaT - Digital Data & Technology,NATIONAL CRIME AGENCY (NCA),1709130-SI\029834-343011-1301000,1301000
Home Office,Home Office,03/08/2023,OTHER ICT COSTS,DDaT - Digital Data & Technology,SILEX CONSULTING LTD,1432007-247-420152-39430,39430
Home Office,Home Office,03/08/2023,END USER COMPUTER HARDWARE,DDaT - Digital Data & Technology,XEROX (UK) LTD,1486655-900230004-100997-12126609,121266.09
Home Office,Home Office,04/08/2023,CONTINGENT LABOUR OTHER,DDaT - Digital Data & Technology,ALEXANDER MANN SOLUTIONS LTD,1709101-2856507-560478-24546,2945.52
Home Office,Home Office,04/08/2023,CONTINGENT LABOUR OTHER,DDaT - Digital Data & Technology,ALEXANDER MANN SOLUTIONS LTD,1709160-2856507-560478-262525,3150.3
Home Office,Home Office,04/08/2023,CONTINGENT LABOUR OTHER,DDaT - Digital Data & Technology,ALEXANDER MANN SOLUTIONS LTD,1709138-2856507-560478-276752,3321.02
Home Office,Home Office,04/08/2023,CONTINGENT LABOUR OTHER,DDaT - Digital Data & Technology,ALEXANDER MANN SOLUTIONS LTD,1709168-2856507-560478-35929,4311.48
Home Office,Home Office,04/08/2023,CONTINGENT LABOUR OTHER,DDaT - Digital Data & Technology,ALEXANDER MANN SOLUTIONS LTD,1709163-2856507-560478-367505,4410.06
Home Office,Home Office,04/08/2023,CONTINGENT LABOUR OTHER,DDaT - Digital Data & Technology,ALEXANDER MANN SOLUTIONS LTD,1486655-2856507-560478-562789,6753.47
Home Office,Home Office,04/08/2023,CONTINGENT LABOUR OTHER,DDaT - Digital Data & Technology,ALEXANDER MANN SOLUTIONS LTD,1816010-2856507-560478-685615,8227.38
Home Office,Home Office,04/08/2023,CONTINGENT LABOUR OTHER,DDaT - Digital Data & Technology,ALEXANDER MANN SOLUTIONS LTD,1486665-2856507-560478-785313,9423.76
Home Office,Home Office,04/08/2023,CONTINGENT LABOUR OTHER,DDaT - Digital Data & Technology,ALEXANDER MANN SOLUTIONS LTD,1709144-2856507-560478-82586,9910.32
Home Office,Home Office,04/08/2023,CONTINGENT LABOUR OTHER,DDaT - Digital Data & Technology,ALEXANDER MANN SOLUTIONS LTD,1710001-2856507-560478-1418955,17027.46
Home Office,Home Office,04/08/2023,CONTINGENT LABOUR OTHER,DDaT - Digital Data & Technology,ALEXANDER MANN SOLUTIONS LTD,1488305-2856507-560478-1517827,18213.92
Home Office,Home Office,04/08/2023,CONTINGENT LABOUR OTHER,DDaT - Digital Data & Technology,ALEXANDER MANN SOLUTIONS LTD,1709125-2856507-560478-2512495,30149.94
Home Office,Home Office,04/08/2023,CONTINGENT LABOUR OTHER,DDaT - Digital Data & Technology,ALEXANDER MANN SOLUTIONS LTD,1701006-2856507-560478-295561,35467.32
Home Office,Home Office,04/08/2023,CONTINGENT LABOUR OTHER,DDaT - Digital Data & Technology,ALEXANDER MANN SOLUTIONS LTD,1709141-2856507-560478-4019443,48233.32
Home Office,Home Office,04/08/2023,CONTINGENT LABOUR OTHER,DDaT - Digital Data & Technology,ALEXANDER MANN SOLUTIONS LTD,1816000-2856507-560478-4517489,54209.87
Home Office,Home Office,04/08/2023,CONTINGENT LABOUR OTHER,DDaT - Digital Data & Technology,ALEXANDER MANN SOLUTIONS LTD,1709166-2856507-560478-5557302,66687.63
Home Office,Home Office,04/08/2023,END USER COMPUTER HARDWARE,DDaT - Digital Data & Technology,AVOIRA LTD,1814004-OP/I0000109221-54139-20935,25122
Home Office,Home Office,04/08/2023,OTHER ICT COSTS,DDaT - Digital Data & Technology,CAPGEMINI UK PLC,1709163-2600110382298-112696-3929397,47152.76
Home Office,Home Office,04/08/2023,SYSTEM CLEARING,DDaT - Digital Data & Technology,LEIDOS INNOVATIONS UK LTD,1709109-INV02-000559892-136199-19118658,191186.58
Home Office,Home Office,04/08/2023,IT RUN COST,DDaT - Digital Data & Technology,MADE TECH LTD,1475209-INV003943-56527-52575,52575
Home Office,Home Office,04/08/2023,IT RUN COST,DDaT - Digital Data & Technology,MADE TECH LTD,1475209-INV003989-56527-63375,76050
Home Office,Home Office,04/08/2023,SYSTEM CLEARING,DDaT - Digital Data & Technology,METHODS  BUSINESS AND DIGITAL TECH LTD,1709161-SIN076493-119732-2132813,21328.13
Home Office,Home Office,04/08/2023,SYSTEM CLEARING,DDaT - Digital Data & Technology,METHODS  BUSINESS AND DIGITAL TECH LTD,1709161-SIN076494-119732-2601313,26013.13
Home Office,Home Office,04/08/2023,OTHER ICT COSTS,DDaT - Digital Data & Technology,VALCON GROUP UK LTD,1488305-623050010-54145-1144625,114462.5
Home Office,Home Office,04/08/2023,SYSTEM CLEARING,DDaT - Digital Data & Technology,XMA LTD,1701001-LE46860-101207-5955198,71462.37
Home Office,Home Office,07/08/2023,CONTINGENT LABOUR OTHER,DDaT - Digital Data & Technology,ALEXANDER MANN SOLUTIONS LTD,1701006-2857609-560478-10396073,124752.88
Home Office,Home Office,07/08/2023,SPECIALIST USER SOFTWARE & HARDWARE,DDaT - Digital Data & Technology,CGI IT UK LTD,1709130-GB014109836-240306-657664,657664
Home Office,Home Office,07/08/2023,OTHER ICT COSTS,DDaT - Digital Data & Technology,CLARASYS LTD,1486658-INV104662-56484-16750,20100
Home Office,Home Office,07/08/2023,OTHER ICT COSTS,DDaT - Digital Data & Technology,CLARASYS LTD,1486658-INV104698-56484-31960,38352
Home Office,Home Office,07/08/2023,SYSTEM CLEARING,DDaT - Digital Data & Technology,DATALYNX LTD,1892015-1207-184817-54277,54277
Home Office,Home Office,07/08/2023,OTHER ICT COSTS,DDaT - Digital Data & Technology,FUJITSU SERVICES LTD,1486655-1010007120-106173-517587,51758.7
Home Office,Home Office,07/08/2023,HOSTING,DDaT - Digital Data & Technology,FUJITSU SERVICES LTD,1816006-1030014820-106173-7894929,94739.15
Home Office,Home Office,07/08/2023,OTHER ICT COSTS,DDaT - Digital Data & Technology,FUJITSU SERVICES LTD,1486655-1030015147-106173-70277636,702776.36
Home Office,Home Office,07/08/2023,OTHER ICT COSTS,DDaT - Digital Data & Technology,IBM UNITED KINGDOM LTD,1432007-5808232099-101457-10042136,100421.36
Home Office,Home Office,07/08/2023,OTHER ICT COSTS,DDaT - Digital Data & Technology,PUBLIC DIGITAL LTD,1709163-INV-1034-58481-471375,56565
Home Office,Home Office,07/08/2023,IT RUN COST,DDaT - Digital Data & Technology,XMA LTD,1816002-LE29514-101207-2338036,23380.36
Home Office,Home Office,08/08/2023,SYSTEM CLEARING,DDaT - Digital Data & Technology,CAPGEMINI UK PLC,1488303-2600110382273-112696-12414538,124145.38
Home Office,Home Office,08/08/2023,IT RUN COST,DDaT - Digital Data & Technology,DELOITTE LLP,1710001-8003828509-112904-4520247,45202.47
Home Office,Home Office,08/08/2023,IT RUN COST,DDaT - Digital Data & Technology,DELOITTE LLP,1710001-8003828466-112904-19515362,195153.62
Home Office,Home Office,08/08/2023,IT RUN COST,DDaT - Digital Data & Technology,DELOITTE LLP,1710001-8003828307-112904-195819,195819
Home Office,Home Office,08/08/2023,IT RUN COST,DDaT - Digital Data & Technology,DELOITTE LLP,1710001-8003827773-112904-221978,221978
Home Office,Home Office,08/08/2023,IT RUN COST,DDaT - Digital Data & Technology,ITM COMMUNICATIONS LTD,1816002-0000060086-103279-25425,25425
Home Office,Home Office,08/08/2023,TELEPHONE,DDaT - Digital Data & Technology,LUMEN TECHNOLOGIES UK LTD,1486655-652020994/1153902-100991-2139298,25671.57
Home Office,Home Office,08/08/2023,TELEPHONE,DDaT - Digital Data & Technology,LUMEN TECHNOLOGIES UK LTD,1486655-652031597/1154399-100991-24125,28950
Home Office,Home Office,08/08/2023,TELEPHONE,DDaT - Digital Data & Technology,LUMEN TECHNOLOGIES UK LTD,1486655-652032166/1154092-100991-4341543,52098.51
Home Office,Home Office,08/08/2023,TELEPHONE,DDaT - Digital Data & Technology,LUMEN TECHNOLOGIES UK LTD,1486655-652033015/1157210-100991-279907,335888.4
Home Office,Home Office,08/08/2023,IT RUN COST,DDaT - Digital Data & Technology,PWM TRAINING (UK) LTD,1486655-SI-6107-55538-38080,45696
Home Office,Home Office,08/08/2023,END USER COMPUTER HARDWARE,DDaT - Digital Data & Technology,XMA LTD,1709143-LE46862-101207-287562,28756.2
Home Office,Home Office,09/08/2023,OTHER ICT COSTS,DDaT - Digital Data & Technology,ACCENTURE (UK) LTD,1486658-3003621647-106767-991235,99123.5
Home Office,Home Office,09/08/2023,CONTINGENT LABOUR OTHER,DDaT - Digital Data & Technology,BT GLOBAL SERVICES,1816009-633271-113921-128800,154560
Home Office,Home Office,09/08/2023,IT RUN COST,DDaT - Digital Data & Technology,CAPGEMINI UK PLC,1816002-2600110382036-112696-184414,184414
Home Office,Home Office,09/08/2023,RENT TO LANDLORDS,DDaT - Digital Data & Technology,CROWN HOSTING DATA CENTRE LTD,1816002-21118-414197-4570365,54844.38
Home Office,Home Office,09/08/2023,RENT TO LANDLORDS,DDaT - Digital Data & Technology,CROWN HOSTING DATA CENTRE LTD,1816002-21117-414197-4756521,57078.25
Home Office,Home Office,09/08/2023,OTHER ICT COSTS,DDaT - Digital Data & Technology,FINCORE LTD,1432007-HO2304M66-125945-4953403,49534.03
Home Office,Home Office,09/08/2023,OTHER ICT COSTS,DDaT - Digital Data & Technology,FINCORE LTD,1432007-HO2307M69-125945-5080559,50805.59
Home Office,Home Office,09/08/2023,OTHER ICT COSTS,DDaT - Digital Data & Technology,FINCORE LTD,1432007-HO2306M68-125945-5096504,50965.04
Home Office,Home Office,09/08/2023,OTHER ICT COSTS,DDaT - Digital Data & Technology,FINCORE LTD,1432007-HO2305M67-125945-5139483,51394.83
Home Office,Home Office,09/08/2023,OTHER ICT COSTS,DDaT - Digital Data & Technology,FINCORE LTD,1486658-HO2307M65-125945-7341039,73410.39
Home Office,Home Office,09/08/2023,IT RUN COST,DDaT - Digital Data & Technology,ITM COMMUNICATIONS LTD,1816002-71379-103279-8734747,87347.47
Home Office,Home Office,09/08/2023,CONTINGENT LABOUR OTHER,DDaT - Digital Data & Technology,LA INTERNATIONAL COMPUTER CONSULTANTS LTD,1709144-LA728593-108950-3429744,41156.93
Home Office,Home Office,09/08/2023,OTHER ICT COSTS,DDaT - Digital Data & Technology,VALCON GROUP UK LTD,1488305-623070078-54145-91400,91400
Home Office,Home Office,09/08/2023,TELEPHONE,DDaT - Digital Data & Technology,VODAFONE LTD,1486655-104151709-119598-13480423,156495.76
Home Office,Home Office,10/08/2023,OTHER ICT COSTS,DDaT - Digital Data & Technology,6POINT6 LTD,1486602-3688-338678-477490,572988
Home Office,Home Office,10/08/2023,SYSTEM CLEARING,DDaT - Digital Data & Technology,AMAZON WEB SERVICES,1816013-1368702093-401829-242826308,2428263.08
Home Office,Home Office,10/08/2023,IT RUN COST,DDaT - Digital Data & Technology,COMPUTACENTER (UK) LTD,1709500-3884179068-100028-4906093,58873.12
Home Office,Home Office,10/08/2023,END USER COMPUTER SOFTWARE,DDaT - Digital Data & Technology,DUN & BRADSTREET LTD,1488305-CI-00139718-100371-30375,30375
Home Office,Home Office,10/08/2023,SPECIALIST USER SOFTWARE & HARDWARE,DDaT - Digital Data & Technology,FUJITSU SERVICES LTD,1709130-1030014466-106173-7662635,91951.62
Home Office,Home Office,10/08/2023,IT RUN COST,DDaT - Digital Data & Technology,MADE TECH LTD,1475209-INV004023-56527-36575,43890
Home Office,Home Office,10/08/2023,IT RUN COST,DDaT - Digital Data & Technology,MADE TECH LTD,1475209-INV003869-56527-45750,45750
Home Office,Home Office,10/08/2023,IT RUN COST,DDaT - Digital Data & Technology,MADE TECH LTD,1710001-INV004021-56527-122525,147030
Home Office,Home Office,10/08/2023,IT RUN COST,DDaT - Digital Data & Technology,NCC GROUP SECURITY SERVICES LTD,1892025-00099874-100598-24390,24390
Home Office,Home Office,10/08/2023,SYSTEM CLEARING,DDaT - Digital Data & Technology,PA CONSULTING SERVICES LTD,1488303-0000026175-100039-650125,65012.5
Home Office,Home Office,10/08/2023,SYSTEM CLEARING,DDaT - Digital Data & Technology,PA CONSULTING SERVICES LTD,1488303-0000026174-100039-6770983,67709.83
Home Office,Home Office,10/08/2023,OTHER ICT COSTS,DDaT - Digital Data & Technology,PA CONSULTING SERVICES LTD,1486658-0000026213-100039-441752,441752
Home Office,Home Office,10/08/2023,CONTINGENT LABOUR OTHER,DDaT - Digital Data & Technology,SOPRA STERIA LTD,1892025-100207501-112699-59100,70920
Home Office,Home Office,10/08/2023,CONTINGENT LABOUR OTHER,DDaT - Digital Data & Technology,SOPRA STERIA LTD,1892025-100207502-112699-59100,70920
Home Office,Home Office,10/08/2023,CONTINGENT LABOUR OTHER,DDaT - Digital Data & Technology,SOPRA STERIA LTD,1892025-100207987-112699-59100,70920
Home Office,Home Office,10/08/2023,CONTINGENT LABOUR OTHER,DDaT - Digital Data & Technology,SOPRA STERIA LTD,1892025-100207504-112699-68200,81840
Home Office,Home Office,10/08/2023,CONTINGENT LABOUR OTHER,DDaT - Digital Data & Technology,SOPRA STERIA LTD,1892025-100207988-112699-68200,81840
Home Office,Home Office,11/08/2023,CONTINGENT LABOUR OTHER,DDaT - Digital Data & Technology,ALEXANDER MANN SOLUTIONS LTD,1709160-2861148-560478-263477,3161.72
Home Office,Home Office,11/08/2023,CONTINGENT LABOUR OTHER,DDaT - Digital Data & Technology,ALEXANDER MANN SOLUTIONS LTD,1709168-2861148-560478-287432,3449.18
Home Office,Home Office,11/08/2023,CONTINGENT LABOUR OTHER,DDaT - Digital Data & Technology,ALEXANDER MANN SOLUTIONS LTD,1816010-2861148-560478-344335,4132.02
Home Office,Home Office,11/08/2023,CONTINGENT LABOUR OTHER,DDaT - Digital Data & Technology,ALEXANDER MANN SOLUTIONS LTD,1709163-2861148-560478-367505,4410.06
Home Office,Home Office,11/08/2023,CONTINGENT LABOUR OTHER,DDaT - Digital Data & Technology,ALEXANDER MANN SOLUTIONS LTD,1709140-2861148-560478-46204,5544.48
Home Office,Home Office,11/08/2023,CONTINGENT LABOUR OTHER,DDaT - Digital Data & Technology,ALEXANDER MANN SOLUTIONS LTD,1486655-2861148-560478-594435,7133.22
Home Office,Home Office,11/08/2023,CONTINGENT LABOUR OTHER,DDaT - Digital Data & Technology,ALEXANDER MANN SOLUTIONS LTD,1488303-2861148-560478-712008,8544.1
Home Office,Home Office,11/08/2023,CONTINGENT LABOUR OTHER,DDaT - Digital Data & Technology,ALEXANDER MANN SOLUTIONS LTD,1709144-2861148-560478-82586,9910.32
Home Office,Home Office,11/08/2023,CONTINGENT LABOUR OTHER,DDaT - Digital Data & Technology,ALEXANDER MANN SOLUTIONS LTD,1892015-2861148-560478-87887,10546.44
Home Office,Home Office,11/08/2023,CONTINGENT LABOUR OTHER,DDaT - Digital Data & Technology,ALEXANDER MANN SOLUTIONS LTD,1709125-2861148-560478-1558309,18699.71
Home Office,Home Office,11/08/2023,CONTINGENT LABOUR OTHER,DDaT - Digital Data & Technology,ALEXANDER MANN SOLUTIONS LTD,1488305-2861148-560478-1755459,21065.49
Home Office,Home Office,11/08/2023,CONTINGENT LABOUR OTHER,DDaT - Digital Data & Technology,ALEXANDER MANN SOLUTIONS LTD,1816000-2861148-560478-2626606,31519.27
Home Office,Home Office,11/08/2023,CONTINGENT LABOUR OTHER,DDaT - Digital Data & Technology,ALEXANDER MANN SOLUTIONS LTD,1710001-2861148-560478-2997061,35964.73
Home Office,Home Office,11/08/2023,CONTINGENT LABOUR OTHER,DDaT - Digital Data & Technology,ALEXANDER MANN SOLUTIONS LTD,1701006-2861148-560478-3573232,42878.78
Home Office,Home Office,11/08/2023,CONTINGENT LABOUR OTHER,DDaT - Digital Data & Technology,ALEXANDER MANN SOLUTIONS LTD,1709141-2861148-560478-3751526,45018.31
Home Office,Home Office,11/08/2023,CONTINGENT LABOUR OTHER,DDaT - Digital Data & Technology,ALEXANDER MANN SOLUTIONS LTD,1709166-2861148-560478-7100328,85203.94
Home Office,Home Office,11/08/2023,IT RUN COST,DDaT - Digital Data & Technology,AMAZON WEB SERVICES,1816006-EUINGB23-3679513-401829-11145085,111450.85
Home Office,Home Office,11/08/2023,SYSTEM CLEARING,DDaT - Digital Data & Technology,BLOOM PROCUREMENT SERVICES LTD,1709161-SIN044707-518536-293750,293750
Home Office,Home Office,11/08/2023,SYSTEM CLEARING,DDaT - Digital Data & Technology,BLOOM PROCUREMENT SERVICES LTD,1709161-SIN044579-518536-421600,421600
Home Office,Home Office,11/08/2023,OTHER ICT COSTS,DDaT - Digital Data & Technology,CAPGEMINI UK PLC,1488305-2600110382778-112696-306375,36765
Home Office,Home Office,11/08/2023,SYSTEM CLEARING,DDaT - Digital Data & Technology,CAPGEMINI UK PLC,1488303-2600110382279-112696-375915,45109.8
Home Office,Home Office,11/08/2023,SYSTEM CLEARING,DDaT - Digital Data & Technology,CAPGEMINI UK PLC,1488303-2600110383003-112696-524476,62937.12
Home Office,Home Office,11/08/2023,SYSTEM CLEARING,DDaT - Digital Data & Technology,CAPGEMINI UK PLC,1488303-2600110382780-112696-10154702,121856.42
Home Office,Home Office,11/08/2023,SYSTEM CLEARING,DDaT - Digital Data & Technology,CAPGEMINI UK PLC,1488303-2600110382288-112696-1797248,215669.76
Home Office,Home Office,11/08/2023,SYSTEM CLEARING,DDaT - Digital Data & Technology,CAPGEMINI UK PLC,1488303-2600110382339-112696-47889975,574679.7
Home Office,Home Office,11/08/2023,SYSTEM CLEARING,DDaT - Digital Data & Technology,CAPGEMINI UK PLC,1488303-2600110383026-112696-5448345,653801.4
Home Office,Home Office,11/08/2023,SYSTEM CLEARING,DDaT - Digital Data & Technology,IBM UNITED KINGDOM LTD,1432007-5806233339-101457-3087549,37050.59
Home Office,Home Office,11/08/2023,IT RUN COST,DDaT - Digital Data & Technology,MADE TECH LTD,1475209-INV003986-56527-28050,28050
Home Office,Home Office,11/08/2023,IT RUN COST,DDaT - Digital Data & Technology,MADE TECH LTD,1475209-INV004027-56527-51000,51000
Home Office,Home Office,11/08/2023,IT RUN COST,DDaT - Digital Data & Technology,METHODS  BUSINESS AND DIGITAL TECH LTD,1710001-SIN075638-119732-4368563,43685.63
Home Office,Home Office,11/08/2023,IT RUN COST,DDaT - Digital Data & Technology,METHODS  BUSINESS AND DIGITAL TECH LTD,1710001-SIN075998-119732-5254063,52540.63
Home Office,Home Office,11/08/2023,IT RUN COST,DDaT - Digital Data & Technology,METHODS  BUSINESS AND DIGITAL TECH LTD,1710001-SIN076483-119732-622375,62237.5
Home Office,Home Office,11/08/2023,CONTINGENT LABOUR OTHER,DDaT - Digital Data & Technology,PA CONSULTING SERVICES LTD,1709144-0000026216-100039-25179,30214.8
Home Office,Home Office,11/08/2023,OTHER ICT COSTS,DDaT - Digital Data & Technology,PA CONSULTING SERVICES LTD,1488305-0000026204-100039-32890,32890
Home Office,Home Office,11/08/2023,OTHER ICT COSTS,DDaT - Digital Data & Technology,SVGC LTD,1488305-INVPW-6104-508467-8477976,84779.76
Home Office,Home Office,11/08/2023,OTHER ICT COSTS,DDaT - Digital Data & Technology,SVGC LTD,1488305-INVPW-6088-508467-997311,99731.1
Home Office,Home Office,11/08/2023,OTHER ICT COSTS,DDaT - Digital Data & Technology,SVGC LTD,1488305-INVPW-6106-508467-5272348,527234.8
Home Office,Home Office,11/08/2023,OTHER ICT COSTS,DDaT - Digital Data & Technology,SVGC LTD,1488305-INVPW-6090-508467-6534043,653404.3
Home Office,Home Office,11/08/2023,OTHER ICT COSTS,DDaT - Digital Data & Technology,SVGC LTD,1488305-INVPW-6105-508467-119865041,1198650.41
Home Office,Home Office,11/08/2023,OTHER ICT COSTS,DDaT - Digital Data & Technology,SVGC LTD,1488305-INVPW-6089-508467-178302962,1783029.62
Home Office,Home Office,11/08/2023,IT RUN COST,DDaT - Digital Data & Technology,VAAMG CONSULTING LTD,1710001-11453-01082023-57455-51000,61200
Home Office,Home Office,14/08/2023,IT RUN COST,DDaT - Digital Data & Technology,ATOS IT SERVICES UK LTD,1892007-5584426698-108063-297375,35685
Home Office,Home Office,14/08/2023,IT RUN COST,DDaT - Digital Data & Technology,ATOS IT SERVICES UK LTD,1892007-5584426709-108063-1780735,213688.2
Home Office,Home Office,14/08/2023,IT RUN COST,DDaT - Digital Data & Technology,BLOOM PROCUREMENT SERVICES LTD,1710001-SIN045014-518536-44000,52800
Home Office,Home Office,14/08/2023,IT RUN COST,DDaT - Digital Data & Technology,FUJITSU SERVICES LTD,1892015-1030015443-106173-6266438,62664.38
Home Office,Home Office,14/08/2023,IT RUN COST,DDaT - Digital Data & Technology,FUJITSU SERVICES LTD,1892015-1030015442-106173-897701,89770.1
Home Office,Home Office,14/08/2023,IT RUN COST,DDaT - Digital Data & Technology,MADE TECH LTD,1475209-INV004020-56527-33150,33150
Home Office,Home Office,14/08/2023,CONTINGENT LABOUR OTHER,DDaT - Digital Data & Technology,MOBILISE CLOUD SERVICES LTD,1709144-HOMINV119-56273-22500,27000
Home Office,Home Office,14/08/2023,OTHER ICT COSTS,DDaT - Digital Data & Technology,MOBILISE CLOUD SERVICES LTD,1709144-HOMINV114-56273-45000,54000
Home Office,Home Office,14/08/2023,CONTINGENT LABOUR OTHER,DDaT - Digital Data & Technology,MOBILISE CLOUD SERVICES LTD,1709144-HOMINV116-56273-70000,84000
Home Office,Home Office,14/08/2023,CONTINGENT LABOUR OTHER,DDaT - Digital Data & Technology,MOBILISE CLOUD SERVICES LTD,1709144-HOMINV118-56273-80000,96000
Home Office,Home Office,14/08/2023,CONTINGENT LABOUR OTHER,DDaT - Digital Data & Technology,SOPRA STERIA LTD,1892025-100207503-112699-68200,81840
Home Office,Home Office,14/08/2023,OTHER ICT COSTS,DDaT - Digital Data & Technology,VISION-BOX SYSTEMS LTD,1709140-23020101-332210-76613,76613
Home Office,Home Office,14/08/2023,IT RUN COST,DDaT - Digital Data & Technology,VODAFONE LTD,1709500-389966-119598-5543125,66517.5
Home Office,Home Office,15/08/2023,IT RUN COST,DDaT - Digital Data & Technology,AMAZON WEB SERVICES,1816006-EUMPINGB23-3985-401829-3070113,30701.13
Home Office,Home Office,15/08/2023,IT RUN COST,DDaT - Digital Data & Technology,AMAZON WEB SERVICES,1816006-1396092781-401829-1461477,146147.7
Home Office,Home Office,15/08/2023,IT RUN COST,DDaT - Digital Data & Technology,AMAZON WEB SERVICES,1816006-EUINGB23-4076398-401829-19005483,190054.83
Home Office,Home Office,15/08/2023,HOSTING,DDaT - Digital Data & Technology,ATOS IT SERVICES UK LTD,1709109-5584426786-108063-26415,26415
Home Office,Home Office,15/08/2023,HOSTING,DDaT - Digital Data & Technology,ATOS IT SERVICES UK LTD,1709109-5584426788-108063-106418,106418
Home Office,Home Office,15/08/2023,SPECIALIST USER SOFTWARE & HARDWARE,DDaT - Digital Data & Technology,CGI IT UK LTD,1709130-GB014110698-240306-60615614,606156.14
Home Office,Home Office,15/08/2023,OTHER ICT COSTS,DDaT - Digital Data & Technology,CLARASYS LTD,1486658-INV104853-56484-25935,31122
Home Office,Home Office,15/08/2023,IT RUN COST,DDaT - Digital Data & Technology,DATALYNX LTD,1709130-1204-184817-25808,25808
Home Office,Home Office,15/08/2023,IT RUN COST,DDaT - Digital Data & Technology,DATALYNX LTD,1709130-1205-184817-27658,27658
Home Office,Home Office,15/08/2023,IT RUN COST,DDaT - Digital Data & Technology,DATALYNX LTD,1709130-1206-184817-32348,32348
Home Office,Home Office,15/08/2023,IT RUN COST,DDaT - Digital Data & Technology,DATALYNX LTD,1709130-1203-184817-85314,85314
Home Office,Home Office,15/08/2023,IT RUN COST,DDaT - Digital Data & Technology,MADE TECH LTD,1475209-INV004026-56527-31925,31925
Home Office,Home Office,15/08/2023,IT RUN COST,DDaT - Digital Data & Technology,MADE TECH LTD,1475209-INV004022-56527-45275,54330
Home Office,Home Office,15/08/2023,CONTINGENT LABOUR OTHER,DDaT - Digital Data & Technology,PA CONSULTING SERVICES LTD,1709144-0000026296-100039-137949,165538.8
Home Office,Home Office,15/08/2023,OTHER ICT COSTS,DDaT - Digital Data & Technology,PA CONSULTING SERVICES LTD,1709163-0000026241-100039-152562,183074.4
Home Office,Home Office,15/08/2023,SPECIALIST USER SOFTWARE & HARDWARE,DDaT - Digital Data & Technology,THALES UK LTD,1709130-243626-189526-45775,45775
Home Office,Home Office,15/08/2023,SPECIALIST USER SOFTWARE & HARDWARE,DDaT - Digital Data & Technology,VODAFONE LTD,1709130-UK10/082023/1264-119598-29157,34988.4
Home Office,Home Office,15/08/2023,IT RUN COST,DDaT - Digital Data & Technology,VODAFONE LTD,1709130-1000002511-119598-17192287,171922.87
Home Office,Home Office,15/08/2023,SYSTEM CLEARING,DDaT - Digital Data & Technology,XMA LTD,1701001-LE56530-101207-6937983,83255.8
Home Office,Home Office,15/08/2023,END USER COMPUTER HARDWARE,DDaT - Digital Data & Technology,XMA LTD,1701001-LE39517-101207-7072035,84864.42
Home Office,Home Office,16/08/2023,END USER COMPUTER SOFTWARE,DDaT - Digital Data & Technology,BYTES SOFTWARE SERVICES LTD,1709130-1148349-229624-7442243,74422.43
Home Office,Home Office,16/08/2023,OTHER ICT COSTS,DDaT - Digital Data & Technology,COGNIZANT WORLDWIDE LTD,1486658-CW101-0001492605-468613-19532813,195328.13
Home Office,Home Office,16/08/2023,END USER COMPUTER SOFTWARE,DDaT - Digital Data & Technology,EFICODE UK LTD,1486658-INVUK1001060-357551-636382,63638.2
Home Office,Home Office,16/08/2023,END USER COMPUTER SOFTWARE,DDaT - Digital Data & Technology,EFICODE UK LTD,1709144-INVUK1001105-357551-11580001,138960
Home Office,Home Office,16/08/2023,OTHER ICT COSTS,DDaT - Digital Data & Technology,IBM UNITED KINGDOM LTD,1486665-5807233343-101457-32340,38808
Home Office,Home Office,16/08/2023,IT RUN COST,DDaT - Digital Data & Technology,ITM COMMUNICATIONS LTD,1816002-71384-103279-5316378,53163.78
Home Office,Home Office,16/08/2023,SYSTEM CLEARING,DDaT - Digital Data & Technology,KAINOS,1488303-KSUK04907-207476-57400,57400
Home Office,Home Office,16/08/2023,MAINTENANCE REACTIVE,DDaT - Digital Data & Technology,LEONARDO UK LTD,1431886-90238593-154349-20440323,204403.23
Home Office,Home Office,16/08/2023,CONTINGENT LABOUR OTHER,DDaT - Digital Data & Technology,MOBILISE CLOUD SERVICES LTD,1709144-HOMINV117-56273-228625,27435
Home Office,Home Office,16/08/2023,CONTINGENT LABOUR OTHER,DDaT - Digital Data & Technology,PA CONSULTING SERVICES LTD,1709144-0000026354-100039-27571,33085.2
Home Office,Home Office,16/08/2023,IT RUN COST,DDaT - Digital Data & Technology,PA CONSULTING SERVICES LTD,1709125-0000026311-100039-10052785,100527.85
Home Office,Home Office,16/08/2023,IT RUN COST,DDaT - Digital Data & Technology,SHARED SERVICES CONNECTED LTD (SSCL),1710001-100038682-378790-4034677,48416.12
Home Office,Home Office,16/08/2023,SYSTEM CLEARING,DDaT - Digital Data & Technology,SOFTCAT LTD,1709125-INVUK934791-242804-8622841,86228.41
Home Office,Home Office,16/08/2023,END USER COMPUTER SOFTWARE,DDaT - Digital Data & Technology,SPECIALIST COMPUTER CENTRES PLC,1709130-OP/ N427502-100774-5316448,53164.48
Home Office,Home Office,16/08/2023,IT RUN COST,DDaT - Digital Data & Technology,VAAMG CONSULTING LTD,1710001-1146-04082023-57455-50175,60210
Home Office,Home Office,16/08/2023,IT RUN COST,DDaT - Digital Data & Technology,VYSIION LTD,1816008-39938-55229-69850,69850
Home Office,Home Office,17/08/2023,OTHER ICT COSTS,DDaT - Digital Data & Technology,CAPGEMINI UK PLC,1486658-2600110382080-112696-441250,441250
Home Office,Home Office,17/08/2023,SPECIALIST USER SOFTWARE & HARDWARE,DDaT - Digital Data & Technology,CAPITA BUSINESS SERVICES LTD,1432007-6004152248-138018-7705858,92470.3
Home Office,Home Office,17/08/2023,IT RUN COST,DDaT - Digital Data & Technology,CGI IT UK LTD,1709140-GB014110711-240306-215558,25866.96
Home Office,Home Office,17/08/2023,CONTINGENT LABOUR OTHER,DDaT - Digital Data & Technology,DELOITTE LLP,1709160-8003795901-112904-5027822,60333.86
Home Office,Home Office,17/08/2023,CONTINGENT LABOUR OTHER,DDaT - Digital Data & Technology,DELOITTE LLP,1709160-8003795901-112904-5243915,62926.98
Home Office,Home Office,17/08/2023,IT RUN COST,DDaT - Digital Data & Technology,FUJITSU SERVICES LTD,1816002-1060000117-106173-39868,39868
Home Office,Home Office,17/08/2023,IT RUN COST,DDaT - Digital Data & Technology,LEONARDO UK LTD,1709130-90238989-154349-425038,42503.8
Home Office,Home Office,17/08/2023,IT RUN COST,DDaT - Digital Data & Technology,LEONARDO UK LTD,1709130-90238991-154349-5143952,51439.52
Home Office,Home Office,17/08/2023,IT RUN COST,DDaT - Digital Data & Technology,LEONARDO UK LTD,1709130-90238990-154349-9335421,93354.21
Home Office,Home Office,17/08/2023,IT RUN COST,DDaT - Digital Data & Technology,LEONARDO UK LTD,1709130-90238988-154349-25216057,252160.57
Home Office,Home Office,17/08/2023,OTHER ICT COSTS,DDaT - Digital Data & Technology,PA CONSULTING SERVICES LTD,1709161-0000026400-100039-36100,43320
Home Office,Home Office,17/08/2023,OTHER ICT COSTS,DDaT - Digital Data & Technology,VISION-BOX SYSTEMS LTD,1432007-23020098-332210-45833,45833
Home Office,Home Office,17/08/2023,SPECIALIST USER SOFTWARE & HARDWARE,DDaT - Digital Data & Technology,VODAFONE LTD,1709130-IB 058203-119598-3089075,30890.75
Home Office,Home Office,18/08/2023,CONTINGENT LABOUR OTHER,DDaT - Digital Data & Technology,ALEXANDER MANN SOLUTIONS LTD,1709160-2865788-560478-158229,1898.75
Home Office,Home Office,18/08/2023,CONTINGENT LABOUR OTHER,DDaT - Digital Data & Technology,ALEXANDER MANN SOLUTIONS LTD,1709140-2865788-560478-23102,2772.24
Home Office,Home Office,18/08/2023,CONTINGENT LABOUR OTHER,DDaT - Digital Data & Technology,ALEXANDER MANN SOLUTIONS LTD,1709101-2865788-560478-392736,4712.84
Home Office,Home Office,18/08/2023,CONTINGENT LABOUR OTHER,DDaT - Digital Data & Technology,ALEXANDER MANN SOLUTIONS LTD,1709144-2865788-560478-42807,5136.84
Home Office,Home Office,18/08/2023,CONTINGENT LABOUR OTHER,DDaT - Digital Data & Technology,ALEXANDER MANN SOLUTIONS LTD,1892015-2865788-560478-439435,5273.22
Home Office,Home Office,18/08/2023,CONTINGENT LABOUR OTHER,DDaT - Digital Data & Technology,ALEXANDER MANN SOLUTIONS LTD,1486655-2865788-560478-62608,7512.96
Home Office,Home Office,18/08/2023,CONTINGENT LABOUR OTHER,DDaT - Digital Data & Technology,ALEXANDER MANN SOLUTIONS LTD,1486665-2865788-560478-785313,9423.76
Home Office,Home Office,18/08/2023,CONTINGENT LABOUR OTHER,DDaT - Digital Data & Technology,ALEXANDER MANN SOLUTIONS LTD,1488303-2865788-560478-844675,10136.1
Home Office,Home Office,18/08/2023,CONTINGENT LABOUR OTHER,DDaT - Digital Data & Technology,ALEXANDER MANN SOLUTIONS LTD,1816010-2865788-560478-1026895,12322.74
Home Office,Home Office,18/08/2023,CONTINGENT LABOUR OTHER,DDaT - Digital Data & Technology,ALEXANDER MANN SOLUTIONS LTD,1709125-2865788-560478-1751558,21018.7
Home Office,Home Office,18/08/2023,CONTINGENT LABOUR OTHER,DDaT - Digital Data & Technology,ALEXANDER MANN SOLUTIONS LTD,1488305-2865788-560478-1755459,21065.43
Home Office,Home Office,18/08/2023,CONTINGENT LABOUR OTHER,DDaT - Digital Data & Technology,ALEXANDER MANN SOLUTIONS LTD,1701006-2865788-560478-2854762,34257.15
Home Office,Home Office,18/08/2023,CONTINGENT LABOUR OTHER,DDaT - Digital Data & Technology,ALEXANDER MANN SOLUTIONS LTD,1709141-2865788-560478-3480698,41768.38
Home Office,Home Office,18/08/2023,CONTINGENT LABOUR OTHER,DDaT - Digital Data & Technology,ALEXANDER MANN SOLUTIONS LTD,1710001-2865788-560478-416383,49965.96
Home Office,Home Office,18/08/2023,CONTINGENT LABOUR OTHER,DDaT - Digital Data & Technology,ALEXANDER MANN SOLUTIONS LTD,1709166-2865788-560478-5544775,66537.31
Home Office,Home Office,18/08/2023,CONTINGENT LABOUR OTHER,DDaT - Digital Data & Technology,ALEXANDER MANN SOLUTIONS LTD,1816000-2865788-560478-6425675,77108.09
Home Office,Home Office,18/08/2023,IT RUN COST,DDaT - Digital Data & Technology,BSI CYBERSECURITY AND INFORMATION RESILIANCE (UK) LIMITED,1486665-96343355-312175-2639393,31672.72
Home Office,Home Office,18/08/2023,IT RUN COST,DDaT - Digital Data & Technology,BT GLOBAL SERVICES,1816002-634578-113921-15836595,158365.95
Home Office,Home Office,18/08/2023,OTHER ICT COSTS,DDaT - Digital Data & Technology,CAPGEMINI UK PLC,1486658-2600110384029-112696-580995,58099.5
Home Office,Home Office,18/08/2023,OTHER ICT COSTS,DDaT - Digital Data & Technology,CAPGEMINI UK PLC,1486658-2600110384028-112696-590825,59082.5
Home Office,Home Office,18/08/2023,OTHER ICT COSTS,DDaT - Digital Data & Technology,CAPGEMINI UK PLC,1486658-2600110384031-112696-56205,67446
Home Office,Home Office,18/08/2023,OTHER ICT COSTS,DDaT - Digital Data & Technology,CAPGEMINI UK PLC,1486658-2600110383936-112696-746915,74691.5
Home Office,Home Office,18/08/2023,OTHER ICT COSTS,DDaT - Digital Data & Technology,CAPGEMINI UK PLC,1486658-2600110383944-112696-9769443,97694.43
Home Office,Home Office,18/08/2023,SYSTEM CLEARING,DDaT - Digital Data & Technology,CAPGEMINI UK PLC,1709161-2600110383938-112696-12351176,123511.76
Home Office,Home Office,18/08/2023,SYSTEM CLEARING,DDaT - Digital Data & Technology,CAPGEMINI UK PLC,1709161-2600110383934-112696-30430851,304308.51
Home Office,Home Office,18/08/2023,OTHER ICT COSTS,DDaT - Digital Data & Technology,ENGINE PARTNERS UK LLP T/A TRANSFORM,1432007-INV005209-382357-115940,115940
Home Office,Home Office,18/08/2023,IT RUN COST,DDaT - Digital Data & Technology,EXPONENTIAL-E LTD,1816002-0000757813-483651-5119842,51198.42
Home Office,Home Office,18/08/2023,IT RUN COST,DDaT - Digital Data & Technology,IBM UNITED KINGDOM LTD,1709166-5807233617-101457-45689593,456895.93
Home Office,Home Office,18/08/2023,IT RUN COST,DDaT - Digital Data & Technology,IBM UNITED KINGDOM LTD,1709166-5807232643-101457-5002801,500280.1
Home Office,Home Office,18/08/2023,IT RUN COST,DDaT - Digital Data & Technology,ITM COMMUNICATIONS LTD,1816002-71383-103279-2168684,21686.84
Home Office,Home Office,18/08/2023,IT RUN COST,DDaT - Digital Data & Technology,ITM COMMUNICATIONS LTD,1816002-71380-103279-3871677,38716.77
Home Office,Home Office,18/08/2023,IT RUN COST,DDaT - Digital Data & Technology,ITM COMMUNICATIONS LTD,1816002-71382-103279-614049,73685.88
Home Office,Home Office,18/08/2023,IT RUN COST,DDaT - Digital Data & Technology,LUMEN TECHNOLOGIES UK LTD,1816009-633011508/1135102-100991-25308744,303704.92
Home Office,Home Office,18/08/2023,IT RUN COST,DDaT - Digital Data & Technology,NCC GROUP SECURITY SERVICES LTD,1709125-00099883-100598-26400,31680
Home Office,Home Office,18/08/2023,IT RUN COST,DDaT - Digital Data & Technology,NCC GROUP SECURITY SERVICES LTD,1709125-00100065-100598-26400,31680
Home Office,Home Office,18/08/2023,IT RUN COST,DDaT - Digital Data & Technology,NCC GROUP SECURITY SERVICES LTD,1709125-00099889-100598-3148873,37786.48
Home Office,Home Office,18/08/2023,IT RUN COST,DDaT - Digital Data & Technology,SYRENIS LTD,1475209-INV-006811-200839-318515,31851.5
Home Office,Home Office,18/08/2023,IT RUN COST,DDaT - Digital Data & Technology,VAAMG CONSULTING LTD,1710001-1148-15082023-57455-1202125,144255
Home Office,Home Office,18/08/2023,IT RUN COST,DDaT - Digital Data & Technology,VAAMG CONSULTING LTD,1710001-1147-14082023-57455-1278875,153465
Home Office,Home Office,21/08/2023,CONTINGENT LABOUR OTHER,DDaT - Digital Data & Technology,ALEXANDER MANN SOLUTIONS LTD,1709144-2866872-560478-72534,87040.8
Home Office,Home Office,21/08/2023,IT RUN COST,DDaT - Digital Data & Technology,ATOS IT SERVICES UK LTD,1486658-5584425121-108063-11495147,114951.47
Home Office,Home Office,21/08/2023,OTHER ICT COSTS,DDaT - Digital Data & Technology,BAE SYSTEMS APPLIED INTELLIGENCE LIMITED,1488305-1001056006-136604-2762827,27628.27
Home Office,Home Office,21/08/2023,TELEPHONE,DDaT - Digital Data & Technology,BRITISH TELECOMMUNICATIONS LTD,1709500-VP503022702311-112676-2382941,28595.29
Home Office,Home Office,21/08/2023,IT RUN COST,DDaT - Digital Data & Technology,CGI IT UK LTD,1709109-GB014111530-240306-5093133,61117.6
Home Office,Home Office,21/08/2023,IT RUN COST,DDaT - Digital Data & Technology,CGI IT UK LTD,1709109-GB014111529-240306-5732047,68784.56
Home Office,Home Office,21/08/2023,IT RUN COST,DDaT - Digital Data & Technology,IDENTITY E2E LTD,1709101-101888-384232-291456,34974.72
Home Office,Home Office,21/08/2023,IT RUN COST,DDaT - Digital Data & Technology,IDENTITY E2E LTD,1709101-101886-384232-712701,85524.12
Home Office,Home Office,21/08/2023,IT RUN COST,DDaT - Digital Data & Technology,IDENTITY E2E LTD,1709101-101889-384232-8986725,107840.7
Home Office,Home Office,21/08/2023,IT RUN COST,DDaT - Digital Data & Technology,IDENTITY E2E LTD,1709101-101887-384232-4099491,491938.92
Home Office,Home Office,21/08/2023,IT RUN COST,DDaT - Digital Data & Technology,ITM COMMUNICATIONS LTD,1486655-0000060116-103279-60571,60571
Home Office,Home Office,21/08/2023,IT RUN COST,DDaT - Digital Data & Technology,ORACLE CORPORATION UK LIMITED,1710001-460114518-100642-47635404,476354.04
Home Office,Home Office,21/08/2023,OTHER ICT COSTS,DDaT - Digital Data & Technology,PA CONSULTING SERVICES LTD,1486658-0000025817-100039-54336,54336
Home Office,Home Office,21/08/2023,OTHER ICT COSTS,DDaT - Digital Data & Technology,PA CONSULTING SERVICES LTD,1486658-0000026376-100039-683445,68344.5
Home Office,Home Office,21/08/2023,SYSTEM CLEARING,DDaT - Digital Data & Technology,SOFTCAT LTD,1816002-INVUK968155-242804-2337704,28052.48
Home Office,Home Office,21/08/2023,SYSTEM CLEARING,DDaT - Digital Data & Technology,SOFTCAT LTD,1816002-INVUK964022-242804-3857096,46285.15
Home Office,Home Office,22/08/2023,IT RUN COST,DDaT - Digital Data & Technology,BT GLOBAL SERVICES,1816002-634579-113921-19947226,199472.26
Home Office,Home Office,22/08/2023,END USER COMPUTER SOFTWARE,DDaT - Digital Data & Technology,CSC COMPUTER SCIENCES CORPORATION,1709104-5201881805-222226-6349863,63498.63
Home Office,Home Office,22/08/2023,HOSTING,DDaT - Digital Data & Technology,CSC COMPUTER SCIENCES CORPORATION,1709104-5201881808-222226-8431984,84319.84
Home Office,Home Office,22/08/2023,HOSTING,DDaT - Digital Data & Technology,CSC COMPUTER SCIENCES CORPORATION,1709104-5201881809-222226-8670386,86703.86
Home Office,Home Office,22/08/2023,HOSTING,DDaT - Digital Data & Technology,CSC COMPUTER SCIENCES CORPORATION,1709104-5201881813-222226-9242188,92421.88
Home Office,Home Office,22/08/2023,HOSTING,DDaT - Digital Data & Technology,CSC COMPUTER SCIENCES CORPORATION,1709104-5201881814-222226-9242189,92421.89
Home Office,Home Office,22/08/2023,HOSTING,DDaT - Digital Data & Technology,CSC COMPUTER SCIENCES CORPORATION,1709104-5201881811-222226-30255203,302552.03
Home Office,Home Office,22/08/2023,CONTINGENT LABOUR OTHER,DDaT - Digital Data & Technology,DELOITTE LLP,1709160-8003868146-112904-7383116,88597.39
Home Office,Home Office,22/08/2023,END USER COMPUTER SOFTWARE,DDaT - Digital Data & Technology,INSIGHT DIRECT (UK) LTD,1488305-2100689179-112665-10796826,107968.26
Home Office,Home Office,22/08/2023,END USER COMPUTER SOFTWARE,DDaT - Digital Data & Technology,ITS COMPUTING,1709140-INV00019124545-357490-7090611,85087.34
Home Office,Home Office,23/08/2023,IT RUN COST,DDaT - Digital Data & Technology,AMAZON WEB SERVICES,1816006-EUINGB23-3679875-401829--01,-0.01
Home Office,Home Office,23/08/2023,IT RUN COST,DDaT - Digital Data & Technology,AMAZON WEB SERVICES,1816006-EUINGB23-3679397-401829-240674,24067.4
Home Office,Home Office,23/08/2023,IT RUN COST,DDaT - Digital Data & Technology,AMAZON WEB SERVICES,1816006-EUINGB23-3679875-401829-3042838,30428.38
Home Office,Home Office,23/08/2023,IT RUN COST,DDaT - Digital Data & Technology,AMAZON WEB SERVICES,1816006-EUINGB23-3681216-401829-22342688,223426.88
Home Office,Home Office,23/08/2023,IT RUN COST,DDaT - Digital Data & Technology,AMAZON WEB SERVICES,1816006-EUINGB23-3680023-401829-2090925,2090925
Home Office,Home Office,23/08/2023,IT RUN COST,DDaT - Digital Data & Technology,AMAZON WEB SERVICES,1816006-EUINGB23-3680145-401829-28120435,2812043.5
Home Office,Home Office,23/08/2023,IT RUN COST,DDaT - Digital Data & Technology,BT GLOBAL SERVICES,1816002-634577-113921-12500247,125002.47
Home Office,Home Office,23/08/2023,IT RUN COST,DDaT - Digital Data & Technology,DELOITTE LLP,1710001-8003868379-112904-143671,143671
Home Office,Home Office,23/08/2023,IT RUN COST,DDaT - Digital Data & Technology,DELOITTE LLP,1710001-8003868383-112904-2217455,221745.5
Home Office,Home Office,23/08/2023,IT RUN COST,DDaT - Digital Data & Technology,ORACLE CORPORATION UK LIMITED,1710001-460101204-100642-2137104,21371.04
Home Office,Home Office,23/08/2023,IT RUN COST,DDaT - Digital Data & Technology,ORACLE CORPORATION UK LIMITED,1710001-460101487-100642-19181268,191812.68
Home Office,Home Office,23/08/2023,IT RUN COST,DDaT - Digital Data & Technology,ORACLE CORPORATION UK LIMITED,1710001-460101205-100642-145629906,1456299.06
Home Office,Home Office,23/08/2023,OTHER ICT COSTS,DDaT - Digital Data & Technology,PA CONSULTING SERVICES LTD,1486658-0000026454-100039-33915,40698
Home Office,Home Office,23/08/2023,SYSTEM CLEARING,DDaT - Digital Data & Technology,PA CONSULTING SERVICES LTD,1488303-0000026387-100039-50712,50712
Home Office,Home Office,23/08/2023,IT RUN COST,DDaT - Digital Data & Technology,PHOENIX SOFTWARE LTD,1709161-OP/I965121-343631-4238806,50865.67
Home Office,Home Office,23/08/2023,IT RUN COST,DDaT - Digital Data & Technology,PHOENIX SOFTWARE LTD,1709161-OP/I973068-343631-424005,50880.6
Home Office,Home Office,23/08/2023,IT RUN COST,DDaT - Digital Data & Technology,PHOENIX SOFTWARE LTD,1709161-OP/I973067-343631-62475,74970.01
Home Office,Home Office,23/08/2023,IT RUN COST,DDaT - Digital Data & Technology,PHOENIX SOFTWARE LTD,1709161-OP/I975982-343631-62475,74970.01
Home Office,Home Office,23/08/2023,IT RUN COST,DDaT - Digital Data & Technology,SHARED SERVICES CONNECTED LTD (SSCL),1710001-100039470-378790-4964847,59578.16
Home Office,Home Office,24/08/2023,SYSTEM CLEARING,DDaT - Digital Data & Technology,6POINT6 LTD,1486602-3628-338678-117810,117810
Home Office,Home Office,24/08/2023,OTHER ICT COSTS,DDaT - Digital Data & Technology,BAE SYSTEMS APPLIED INTELLIGENCE LIMITED,1488305-1001056113-136604-9492635,94926.35
Home Office,Home Office,24/08/2023,IT RUN COST,DDaT - Digital Data & Technology,CAPGEMINI UK PLC,1892015-2600110382263-112696-21252,21252
Home Office,Home Office,24/08/2023,SYSTEM CLEARING,DDaT - Digital Data & Technology,CAPGEMINI UK PLC,1892015-2600110384741-112696-26433,26433
Home Office,Home Office,24/08/2023,CONTINGENT LABOUR OTHER,DDaT - Digital Data & Technology,CAPGEMINI UK PLC,1892025-2600110384698-112696-26825,26825
Home Office,Home Office,24/08/2023,IT RUN COST,DDaT - Digital Data & Technology,FSP CONSULTING SERVICES LTD,1709169-INV-206131-54884-7908143,94897.72
Home Office,Home Office,24/08/2023,IT RUN COST,DDaT - Digital Data & Technology,FSP CONSULTING SERVICES LTD,1709169-INV-206133-54884-80140,96168
Home Office,Home Office,24/08/2023,IT RUN COST,DDaT - Digital Data & Technology,FUJITSU SERVICES LTD,1710001-1030015644-106173-116011,116011
Home Office,Home Office,24/08/2023,IT RUN COST,DDaT - Digital Data & Technology,FUJITSU SERVICES LTD,1710001-1030015643-106173-1908687,190868.7
Home Office,Home Office,24/08/2023,ADVICE,DDaT - Digital Data & Technology,NETCOMPANY UK LIMITED,1816009-NCUK61992-465524-128750,154500
Home Office,Home Office,24/08/2023,END USER COMPUTER SOFTWARE,DDaT - Digital Data & Technology,PHOENIX SOFTWARE LTD,1488305-OP/I979189-343631-11993947,119939.47
Home Office,Home Office,24/08/2023,IT RUN COST,DDaT - Digital Data & Technology,ROSSERA LTD,1710001-ROS-HO-028-56966-1927123,231254.76
Home Office,Home Office,24/08/2023,IT RUN COST,DDaT - Digital Data & Technology,VAAMG CONSULTING LTD,1710001-1149-16082023-57455-35000,42000
Home Office,Home Office,25/08/2023,END USER COMPUTER SOFTWARE,DDaT - Digital Data & Technology,AKHTER COMPUTERS LTD,1709144-SI0077457-102603-11113522,133362.26
Home Office,Home Office,25/08/2023,CONTINGENT LABOUR OTHER,DDaT - Digital Data & Technology,ALEXANDER MANN SOLUTIONS LTD,1709140-2870301-560478-23186,2782.32
Home Office,Home Office,25/08/2023,CONTINGENT LABOUR OTHER,DDaT - Digital Data & Technology,ALEXANDER MANN SOLUTIONS LTD,1709101-2870301-560478-24546,2945.52
Home Office,Home Office,25/08/2023,CONTINGENT LABOUR OTHER,DDaT - Digital Data & Technology,ALEXANDER MANN SOLUTIONS LTD,1486655-2870301-560478-316455,3797.46
Home Office,Home Office,25/08/2023,CONTINGENT LABOUR OTHER,DDaT - Digital Data & Technology,ALEXANDER MANN SOLUTIONS LTD,1709144-2870301-560478-39779,4773.48
Home Office,Home Office,25/08/2023,CONTINGENT LABOUR OTHER,DDaT - Digital Data & Technology,ALEXANDER MANN SOLUTIONS LTD,1709168-2870301-560478-574864,6898.37
Home Office,Home Office,25/08/2023,CONTINGENT LABOUR OTHER,DDaT - Digital Data & Technology,ALEXANDER MANN SOLUTIONS LTD,1709138-2870301-560478-622692,7472.3
Home Office,Home Office,25/08/2023,CONTINGENT LABOUR OTHER,DDaT - Digital Data & Technology,ALEXANDER MANN SOLUTIONS LTD,1816010-2870301-560478-685615,8227.38
Home Office,Home Office,25/08/2023,CONTINGENT LABOUR OTHER,DDaT - Digital Data & Technology,ALEXANDER MANN SOLUTIONS LTD,1488303-2870301-560478-1194117,14329.4
Home Office,Home Office,25/08/2023,CONTINGENT LABOUR OTHER,DDaT - Digital Data & Technology,ALEXANDER MANN SOLUTIONS LTD,1488305-2870301-560478-1298899,15586.77
Home Office,Home Office,25/08/2023,CONTINGENT LABOUR OTHER,DDaT - Digital Data & Technology,ALEXANDER MANN SOLUTIONS LTD,1709163-2870301-560478-1522368,18268.41
Home Office,Home Office,25/08/2023,CONTINGENT LABOUR OTHER,DDaT - Digital Data & Technology,ALEXANDER MANN SOLUTIONS LTD,1709125-2870301-560478-1653265,19839.18
Home Office,Home Office,25/08/2023,CONTINGENT LABOUR OTHER,DDaT - Digital Data & Technology,ALEXANDER MANN SOLUTIONS LTD,1710001-2870301-560478-173806,20856.72
Home Office,Home Office,25/08/2023,CONTINGENT LABOUR OTHER,DDaT - Digital Data & Technology,ALEXANDER MANN SOLUTIONS LTD,1701006-2870301-560478-3117793,37413.52
Home Office,Home Office,25/08/2023,CONTINGENT LABOUR OTHER,DDaT - Digital Data & Technology,ALEXANDER MANN SOLUTIONS LTD,1816000-2870301-560478-3688492,44261.9
Home Office,Home Office,25/08/2023,CONTINGENT LABOUR OTHER,DDaT - Digital Data & Technology,ALEXANDER MANN SOLUTIONS LTD,1709141-2870301-560478-5305562,63666.75
Home Office,Home Office,25/08/2023,CONTINGENT LABOUR OTHER,DDaT - Digital Data & Technology,ALEXANDER MANN SOLUTIONS LTD,1709166-2870301-560478-9084726,109016.72
Home Office,Home Office,25/08/2023,SYSTEM CLEARING,DDaT - Digital Data & Technology,BRAVOSOLUTION UK LTD,1710001-INVUK2505-155729-25556,30667.2
Home Office,Home Office,25/08/2023,SYSTEM CLEARING,DDaT - Digital Data & Technology,BRAVOSOLUTION UK LTD,1710001-INVUK2477-155729-28055,33666
Home Office,Home Office,25/08/2023,SYSTEM CLEARING,DDaT - Digital Data & Technology,BRAVOSOLUTION UK LTD,1710001-INVUK2503-155729-28055,33666
Home Office,Home Office,25/08/2023,SYSTEM CLEARING,DDaT - Digital Data & Technology,BRAVOSOLUTION UK LTD,1710001-INVUK2504-155729-28055,33666
Home Office,Home Office,25/08/2023,IT RUN COST,DDaT - Digital Data & Technology,BSI CYBERSECURITY AND INFORMATION RESILIANCE (UK) LIMITED,1486665-96299076-312175-24975,29970
Home Office,Home Office,25/08/2023,IT RUN COST,DDaT - Digital Data & Technology,DELOITTE LLP,1709101-8003610280-112904-391225,46947
Home Office,Home Office,25/08/2023,OTHER ICT COSTS,DDaT - Digital Data & Technology,HIPPO DIGITAL LTD,1709125-INV000750-59124-133300,133300
Home Office,Home Office,25/08/2023,OTHER ICT COSTS,DDaT - Digital Data & Technology,MASTEK (UK) LTD,1486658-90398447-351665-3498026,349802.6
Home Office,Home Office,25/08/2023,OTHER ICT COSTS,DDaT - Digital Data & Technology,MASTEK (UK) LTD,1486658-90398446-351665-48684888,486848.88
Home Office,Home Office,25/08/2023,IT RUN COST,DDaT - Digital Data & Technology,ORACLE CORPORATION UK LIMITED,1710001-460102022-100642-10182629,101826.29
Home Office,Home Office,25/08/2023,IT RUN COST,DDaT - Digital Data & Technology,ORACLE CORPORATION UK LIMITED,1710001-460112983-100642-19806971,198069.71
Home Office,Home Office,25/08/2023,END USER COMPUTER SOFTWARE,DDaT - Digital Data & Technology,ROOKERY SOFTWARE LTD,1709166-3667-59599-4485936,53831.23
Home Office,Home Office,29/08/2023,OTHER ICT COSTS,DDaT - Digital Data & Technology,ALEXANDER MANN SOLUTIONS LTD,1488305-2871367-560478-23472,23472
Home Office,Home Office,29/08/2023,OTHER ICT COSTS,DDaT - Digital Data & Technology,ALEXANDER MANN SOLUTIONS LTD,1488305-2871368-560478-23472,23472
Home Office,Home Office,29/08/2023,IT RUN COST,DDaT - Digital Data & Technology,DELOITTE LLP,1709101-8003884613-112904-21525,25830
Home Office,Home Office,29/08/2023,IT RUN COST,DDaT - Digital Data & Technology,DELOITTE LLP,1709101-8003884604-112904-21600,25920
Home Office,Home Office,29/08/2023,IT RUN COST,DDaT - Digital Data & Technology,DELOITTE LLP,1709101-8003884607-112904-40375,48450
Home Office,Home Office,29/08/2023,IT RUN COST,DDaT - Digital Data & Technology,DELOITTE LLP,1709101-8003884617-112904-427875,51345
Home Office,Home Office,29/08/2023,IT RUN COST,DDaT - Digital Data & Technology,DELOITTE LLP,1709101-8003884616-112904-82575,99090
Home Office,Home Office,29/08/2023,IT RUN COST,DDaT - Digital Data & Technology,DELOITTE LLP,1709101-8003884605-112904-145800,174960
Home Office,Home Office,29/08/2023,OTHER ICT COSTS,DDaT - Digital Data & Technology,MASTEK (UK) LTD,1709130-90398409-351665-3005323,300532.3
Home Office,Home Office,29/08/2023,OTHER ICT COSTS,DDaT - Digital Data & Technology,PA CONSULTING SERVICES LTD,1488305-0000026499-100039-20015482,200154.82
Home Office,Home Office,29/08/2023,OTHER ICT COSTS,DDaT - Digital Data & Technology,VISION-BOX SYSTEMS LTD,1432007-23020109-332210-26300,26300
Home Office,Home Office,29/08/2023,OTHER ICT COSTS,DDaT - Digital Data & Technology,VISION-BOX SYSTEMS LTD,1432007-23020106-332210-45833,45833
Home Office,Home Office,29/08/2023,OTHER ICT COSTS,DDaT - Digital Data & Technology,VISION-BOX SYSTEMS LTD,1432007-23020107-332210-2298231,229823.1
Home Office,Home Office,29/08/2023,IT RUN COST,DDaT - Digital Data & Technology,VODAFONE LTD,1709130-1000002545-119598-17192287,171922.87
Home Office,Home Office,29/08/2023,SYSTEM CLEARING,DDaT - Digital Data & Technology,XMA LTD,1701001-LE62832-101207-1123376,134805.12
Home Office,Home Office,30/08/2023,END USER COMPUTER HARDWARE,DDaT - Digital Data & Technology,AVOIRA LTD,1814004-OP/I0000111413-54139-25000,30000
Home Office,Home Office,30/08/2023,IT RUN COST,DDaT - Digital Data & Technology,CAPGEMINI UK PLC,1816013-2600110382040-112696-22382,22382
Home Office,Home Office,30/08/2023,IT RUN COST,DDaT - Digital Data & Technology,CGI IT UK LTD,1892025-GB014111272-240306-25000,25000
Home Office,Home Office,30/08/2023,IT RUN COST,DDaT - Digital Data & Technology,CGI IT UK LTD,1892025-GB014111225-240306-45228,45228
Home Office,Home Office,30/08/2023,IT RUN COST,DDaT - Digital Data & Technology,DELOITTE LLP,1709101-8003884609-112904-23600,28320
Home Office,Home Office,30/08/2023,SPECIALIST USER SOFTWARE & HARDWARE,DDaT - Digital Data & Technology,FUJITSU SERVICES LTD,1709130-1030015913-106173-7662635,91951.62
Home Office,Home Office,30/08/2023,HOSTING,DDaT - Digital Data & Technology,INVOTRA LTD,1709140-INV-001370-452007-9490656,94906.56
Home Office,Home Office,30/08/2023,OTHER ICT COSTS,DDaT - Digital Data & Technology,MASTEK (UK) LTD,1486658-90398470-351665-5260381,52603.81
Home Office,Home Office,30/08/2023,TELEPHONE,DDaT - Digital Data & Technology,VODAFONE LTD,1486655-104518944-119598-10008635,119211.99
Home Office,Home Office,31/08/2023,CONTINGENT LABOUR OTHER,DDaT - Digital Data & Technology,CAPGEMINI UK PLC,1709144-2600110385270-112696-33120,39744
Home Office,Home Office,31/08/2023,CONTINGENT LABOUR OTHER,DDaT - Digital Data & Technology,CAPGEMINI UK PLC,1709144-2600110385284-112696-35805,42966
Home Office,Home Office,31/08/2023,CONTINGENT LABOUR OTHER,DDaT - Digital Data & Technology,CAPGEMINI UK PLC,1709144-2600110385257-112696-383745,46049.4
Home Office,Home Office,31/08/2023,CONTINGENT LABOUR OTHER,DDaT - Digital Data & Technology,CAPGEMINI UK PLC,1709163-2600110385269-112696-50562,60674.4
Home Office,Home Office,31/08/2023,RENT TO LANDLORDS,DDaT - Digital Data & Technology,CROWN HOSTING DATA CENTRE LTD,1816002-21251-414197-8875112,106501.34
Home Office,Home Office,31/08/2023,RENT TO LANDLORDS,DDaT - Digital Data & Technology,CROWN HOSTING DATA CENTRE LTD,1816002-21252-414197-8875112,106501.34
Home Office,Home Office,31/08/2023,IT RUN COST,DDaT - Digital Data & Technology,FUJITSU SERVICES LTD,1816002-1030016039-106173-2708071,27080.71
Home Office,Home Office,31/08/2023,IT RUN COST,DDaT - Digital Data & Technology,FUJITSU SERVICES LTD,1709500-1030016019-106173-2533344,30400.13
Home Office,Home Office,31/08/2023,IT RUN COST,DDaT - Digital Data & Technology,FUJITSU SERVICES LTD,1816002-1030016018-106173-39868,39868
Home Office,Home Office,31/08/2023,IT RUN COST,DDaT - Digital Data & Technology,FUJITSU SERVICES LTD,1816006-1030016038-106173-374775,449730
Home Office,Home Office,31/08/2023,OTHER ICT COSTS,DDaT - Digital Data & Technology,IBM UNITED KINGDOM LTD,1488305-5808232950-101457-32000,38400
Home Office,Home Office,31/08/2023,HOSTING,DDaT - Digital Data & Technology,KYNDRYL UK LTD,1709109-6716000051-56948-4728079,47280.79
Home Office,Home Office,31/08/2023,HOSTING,DDaT - Digital Data & Technology,KYNDRYL UK LTD,1709109-6716000053-56948-4791667,47916.67
Home Office,Home Office,31/08/2023,IT RUN COST,DDaT - Digital Data & Technology,LEIDOS INNOVATIONS UK LTD,1709130-INV02-000570941-136199-4766986,47669.86
Home Office,Home Office,31/08/2023,HOSTING,DDaT - Digital Data & Technology,LEIDOS INNOVATIONS UK LTD,1709109-INV02-000570929-136199-20858822,208588.22
Home Office,Home Office,31/08/2023,SPECIALIST USER SOFTWARE & HARDWARE,DDaT - Digital Data & Technology,LEIDOS INNOVATIONS UK LTD,1709109-INV02-000570936-136199-31254847,312548.47
Home Office,Home Office,31/08/2023,NETWORKING,DDaT - Digital Data & Technology,LEIDOS INNOVATIONS UK LTD,1709130-INV02-000570959-136199-74150126,741501.26
Home Office,Home Office,31/08/2023,IT RUN COST,DDaT - Digital Data & Technology,NCC GROUP SECURITY SERVICES LTD,1709125-00103055-100598-6397459,76769.51
Home Office,Home Office,31/08/2023,IT RUN COST,DDaT - Digital Data & Technology,ORACLE CORPORATION UK LIMITED,1710001-460102656-100642-5800968,58009.68
Home Office,Home Office,31/08/2023,IT RUN COST,DDaT - Digital Data & Technology,ORACLE CORPORATION UK LIMITED,1710001-460115874-100642-9725278,97252.78
Home Office,Home Office,02/08/2023,OTHER,HSG - Homeland Security Group,CT CENTRE (MOD) LTD T/A DSTL,1283002-10002345-208273-5263721,52637.21
Home Office,Home Office,04/08/2023,CONTINGENT LABOUR OTHER,HSG - Homeland Security Group,ALEXANDER MANN SOLUTIONS LTD,1286600-2856507-560478-8007,960.84
Home Office,Home Office,04/08/2023,CONTINGENT LABOUR OTHER,HSG - Homeland Security Group,ALEXANDER MANN SOLUTIONS LTD,1283020-2856507-560478-671364,8056.37
Home Office,Home Office,04/08/2023,CONTINGENT LABOUR OTHER,HSG - Homeland Security Group,ALEXANDER MANN SOLUTIONS LTD,1283024-2856507-560478-919206,11030.48
Home Office,Home Office,07/08/2023,SYSTEM CLEARING,HSG - Homeland Security Group,LEONARDO UK LTD,1433609-90237022-154349-39842763,478113.16
Home Office,Home Office,07/08/2023,SYSTEM CLEARING,HSG - Homeland Security Group,LEONARDO UK LTD,1433609-90238561-154349-78055309,936663.71
Home Office,Home Office,10/08/2023,FULL COST,HSG - Homeland Security Group,BROOK STREET (UK) LTD,1283020-30567400-23-100385-41175,494.1
Home Office,Home Office,10/08/2023,SYSTEM CLEARING,HSG - Homeland Security Group,NAIMURI LTD,1282033-3579-54310-3074092,30740.92
Home Office,Home Office,10/08/2023,IT RUN COST,HSG - Homeland Security Group,NAIMURI LTD,1282033-3578-54310-24247534,242475.34
Home Office,Home Office,11/08/2023,CONTINGENT LABOUR OTHER,HSG - Homeland Security Group,ALEXANDER MANN SOLUTIONS LTD,1286600-2861148-560478-8007,960.84
Home Office,Home Office,11/08/2023,CONTINGENT LABOUR OTHER,HSG - Homeland Security Group,ALEXANDER MANN SOLUTIONS LTD,1433609-2861148-560478-316128,3793.54
Home Office,Home Office,11/08/2023,CONTINGENT LABOUR OTHER,HSG - Homeland Security Group,ALEXANDER MANN SOLUTIONS LTD,1283020-2861148-560478-503523,6042.28
Home Office,Home Office,11/08/2023,CONTINGENT LABOUR OTHER,HSG - Homeland Security Group,ALEXANDER MANN SOLUTIONS LTD,1283024-2861148-560478-505906,6070.87
Home Office,Home Office,14/08/2023,SYSTEM CLEARING,HSG - Homeland Security Group,ALEXANDER MANN SOLUTIONS LTD,1433609-2862308-560478-27137208,325646.5
Home Office,Home Office,14/08/2023,RENT TO LANDLORDS,HSG - Homeland Security Group,GOVERNMENT PROPERTY AGENCY (GPA),1285026-00000001/27880-555960-15872548,167620.15
Home Office,Home Office,15/08/2023,SYSTEM CLEARING,HSG - Homeland Security Group,LEONARDO UK LTD,1433609-90238186-154349-9680834,116170.01
Home Office,Home Office,18/08/2023,CONTINGENT LABOUR OTHER,HSG - Homeland Security Group,ALEXANDER MANN SOLUTIONS LTD,1286600-2865788-560478-8007,960.84
Home Office,Home Office,18/08/2023,CONTINGENT LABOUR OTHER,HSG - Homeland Security Group,ALEXANDER MANN SOLUTIONS LTD,1433609-2865788-560478-158064,1896.77
Home Office,Home Office,18/08/2023,CONTINGENT LABOUR OTHER,HSG - Homeland Security Group,ALEXANDER MANN SOLUTIONS LTD,1286601-2865788-560478-35499,4259.89
Home Office,Home Office,18/08/2023,CONTINGENT LABOUR OTHER,HSG - Homeland Security Group,ALEXANDER MANN SOLUTIONS LTD,1283024-2865788-560478-519726,6236.71
Home Office,Home Office,18/08/2023,FULL COST,HSG - Homeland Security Group,BROOK STREET (UK) LTD,1283020-30577577-23-100385-4482,537.84
Home Office,Home Office,25/08/2023,CONTINGENT LABOUR OTHER,HSG - Homeland Security Group,ALEXANDER MANN SOLUTIONS LTD,1286600-2870301-560478-82192,986.3
Home Office,Home Office,25/08/2023,CONTINGENT LABOUR OTHER,HSG - Homeland Security Group,ALEXANDER MANN SOLUTIONS LTD,1283024-2870301-560478-580545,6966.54
Home Office,Home Office,25/08/2023,FULL COST,HSG - Homeland Security Group,BROOK STREET (UK) LTD,1283020-30588046-23-100385-4392,527.04
Home Office,Home Office,30/08/2023,SYSTEM CLEARING,HSG - Homeland Security Group,LEONARDO UK LTD,1433609-90239493-154349-11261036,135132.43
Home Office,Home Office,30/08/2023,SYSTEM CLEARING,HSG - Homeland Security Group,LEONARDO UK LTD,1433609-90239494-154349-63873114,766477.37
Home Office,Home Office,31/08/2023,OTHER,HSG - Homeland Security Group,FERA SCIENCE LTD,1283002-6138066786-414818-3063125,30631.25
Home Office,Home Office,31/08/2023,SYSTEM CLEARING,HSG - Homeland Security Group,LEONARDO UK LTD,1433609-90239619-154349-5330818,63969.82
Home Office,Home Office,31/08/2023,SYSTEM CLEARING,HSG - Homeland Security Group,LEONARDO UK LTD,1433609-90239630-154349-5330818,63969.82
Home Office,Home Office,31/08/2023,SYSTEM CLEARING,HSG - Homeland Security Group,LEONARDO UK LTD,1433609-90239159-154349-6513596,78163.15
Home Office,Home Office,31/08/2023,SYSTEM CLEARING,HSG - Homeland Security Group,LEONARDO UK LTD,1433609-90239612-154349-10661636,127939.63
Home Office,Home Office,31/08/2023,SYSTEM CLEARING,HSG - Homeland Security Group,LEONARDO UK LTD,1433609-90239618-154349-10661636,127939.63
Home Office,Home Office,31/08/2023,SYSTEM CLEARING,HSG - Homeland Security Group,LEONARDO UK LTD,1433609-90239625-154349-10661636,127939.63
Home Office,Home Office,31/08/2023,SYSTEM CLEARING,HSG - Homeland Security Group,LEONARDO UK LTD,1433609-90239624-154349-15992454,191909.45
Home Office,Home Office,31/08/2023,SYSTEM CLEARING,HSG - Homeland Security Group,LEONARDO UK LTD,1433609-90239621-154349-21323272,255879.26
Home Office,Home Office,01/08/2023,IT RUN COST,PSG - Public Safety Group,CAPGEMINI UK PLC,1892018-2600110380333-112696-148750,148750
Home Office,Home Office,01/08/2023,SYSTEM CLEARING,PSG - Public Safety Group,EE LTD,1262100-1800313138-425623-4274284,42742.84
Home Office,Home Office,01/08/2023,PUBLIC OPIN SURVEY,PSG - Public Safety Group,KANTAR PUBLIC UK LTD,1204010-262101432-57874-5729756,68757.07
Home Office,Home Office,01/08/2023,IT RUN COST,PSG - Public Safety Group,MAYORS OFFICE FOR POLICING AND CRIME (MOPC),1261001-9411050020-100548-3541714,35417.14
Home Office,Home Office,01/08/2023,SYSTEM CLEARING,PSG - Public Safety Group,NEC SOFTWARE SOLUTIONS UK LTD,1892016-91475642-102086-3677738,36777.38
Home Office,Home Office,01/08/2023,SYSTEM CLEARING,PSG - Public Safety Group,OFFICE OF THE POLICE & CRIME COMMISSIONER FOR NORFOLK,1892017-9412007681-102354-27750,27750
Home Office,Home Office,01/08/2023,SYSTEM CLEARING,PSG - Public Safety Group,OXFORD WAVE RESEARCH LTD,1892016-HO20221103-1-3-55958-26000,26000
Home Office,Home Office,01/08/2023,IT RUN COST,PSG - Public Safety Group,SYSTEMES ET TELECOMMUNICATIONS S.A.,1262100-2307064-54507-2879095,28790.95
Home Office,Home Office,01/08/2023,SYSTEM CLEARING,PSG - Public Safety Group,VODAFONE LTD,1892018-1000002514-119598-33651,33651
Home Office,Home Office,01/08/2023,IT RUN COST,PSG - Public Safety Group,WEST YORKSHIRE FIRE AND RESCUE AUTHORITY,1262100-8800097325-52703-4182736,41827.36
Home Office,Home Office,02/08/2023,ADVICE,PSG - Public Safety Group,CHAUCER GROUP LTD,1830007-S-INV-026984-413740-97100,116520
Home Office,Home Office,02/08/2023,ADVICE,PSG - Public Safety Group,CHAUCER GROUP LTD,1830007-S-INV-027429-413740-97100,116520
Home Office,Home Office,02/08/2023,SYSTEM CLEARING,PSG - Public Safety Group,CIVICA UK LTD,1892014-C/HT280127-421184-4864815,58377.78
Home Office,Home Office,02/08/2023,SYSTEM CLEARING,PSG - Public Safety Group,CIVICA UK LTD,1892014-C/TH280126-421184-5525325,66303.9
Home Office,Home Office,02/08/2023,ADVICE,PSG - Public Safety Group,GOVERNMENT ACTUARY'S DEPARTMENT,1205000-SINV/00036147-119063-13087571,130875.71
Home Office,Home Office,02/08/2023,ADVICE,PSG - Public Safety Group,GOVERNMENT ACTUARY'S DEPARTMENT,1205000-SINV/00036151-119063-21112935,211129.35
Home Office,Home Office,02/08/2023,ADVICE,PSG - Public Safety Group,QINETIQ LTD,1830007-117072569-112688-3032138,36385.66
Home Office,Home Office,02/08/2023,ADVICE,PSG - Public Safety Group,QINETIQ LTD,1830007-117072880-112688-10902083,130825
Home Office,Home Office,02/08/2023,SYSTEM CLEARING,PSG - Public Safety Group,SOPRA STERIA LTD,1892017-100208604-112699-109935,109935
Home Office,Home Office,02/08/2023,SYSTEM CLEARING,PSG - Public Safety Group,TELIGENT LTD,1262100-0097039-57973-6028611,60286.11
Home Office,Home Office,02/08/2023,SYSTEM CLEARING,PSG - Public Safety Group,TELIGENT LTD,1262100-0097040-57973-7247293,72472.93
Home Office,Home Office,02/08/2023,SYSTEM CLEARING,PSG - Public Safety Group,TELIGENT LTD,1262100-0097321-57973-19475527,194755.27
Home Office,Home Office,03/08/2023,ADVICE,PSG - Public Safety Group,CHAUCER GROUP LTD,1830007-S-INV-026815-413740-104050,124860
Home Office,Home Office,03/08/2023,SYSTEM CLEARING,PSG - Public Safety Group,CYACOMB LTD,1892016-INV-0109-52892-229320,229320
Home Office,Home Office,03/08/2023,SYSTEM CLEARING,PSG - Public Safety Group,DATALYNX LTD,1892014-1199-184817-2960342,35524.1
Home Office,Home Office,03/08/2023,RESEARCH AND DEVELOPMENT,PSG - Public Safety Group,ECORYS UK LTD,1200121-7007573-51235-3396635,407596.2
Home Office,Home Office,03/08/2023,IT RUN COST,PSG - Public Safety Group,EE LTD,1262100-1800313146-425623-3728092,37280.92
Home Office,Home Office,03/08/2023,IT RUN COST,PSG - Public Safety Group,EE LTD,1262100-1800313141-425623-6967307,69673.07
Home Office,Home Office,03/08/2023,SYSTEM CLEARING,PSG - Public Safety Group,EE LTD,1262100-1800313137-425623-7118871,71188.71
Home Office,Home Office,03/08/2023,SYSTEM CLEARING,PSG - Public Safety Group,EE LTD,1262100-1800313147-425623-13720621,137206.21
Home Office,Home Office,03/08/2023,RESEARCH AND DEVELOPMENT,PSG - Public Safety Group,IFF RESEARCH LTD,1230011-0017678-106307-57992,69590.4
Home Office,Home Office,03/08/2023,IT RUN COST,PSG - Public Safety Group,VODAFONE LTD,1892018-1000002517-119598-46646245,466462.45
Home Office,Home Office,04/08/2023,CONTINGENT LABOUR OTHER,PSG - Public Safety Group,ALEXANDER MANN SOLUTIONS LTD,1771009-2856507-560478-215796,2589.55
Home Office,Home Office,04/08/2023,CONTINGENT LABOUR OTHER,PSG - Public Safety Group,ALEXANDER MANN SOLUTIONS LTD,1262115-2856507-560478-340205,4082.46
Home Office,Home Office,04/08/2023,CONTINGENT LABOUR OTHER,PSG - Public Safety Group,ALEXANDER MANN SOLUTIONS LTD,1892023-2856507-560478-636293,7635.52
Home Office,Home Office,04/08/2023,CONTINGENT LABOUR OTHER,PSG - Public Safety Group,ALEXANDER MANN SOLUTIONS LTD,1862112-2856507-560478-742473,8909.68
Home Office,Home Office,04/08/2023,CONTINGENT LABOUR OTHER,PSG - Public Safety Group,ALEXANDER MANN SOLUTIONS LTD,1892018-2856507-560478-2004142,24049.71
Home Office,Home Office,04/08/2023,CONTINGENT LABOUR OTHER,PSG - Public Safety Group,ALEXANDER MANN SOLUTIONS LTD,1892008-2856507-560478-3967389,47608.66
Home Office,Home Office,04/08/2023,CONTINGENT LABOUR OTHER,PSG - Public Safety Group,ALEXANDER MANN SOLUTIONS LTD,1262100-2856507-560478-19348749,193487.49
Home Office,Home Office,04/08/2023,CONTINGENT LABOUR OTHER,PSG - Public Safety Group,ALEXANDER MANN SOLUTIONS LTD,1892014-2856507-560478-32062913,384754.96
Home Office,Home Office,04/08/2023,FULL COST,PSG - Public Safety Group,BROOK STREET (UK) LTD,1295014-30556885-23-100385-171532,2058.39
Home Office,Home Office,04/08/2023,FULL COST,PSG - Public Safety Group,BROOK STREET (UK) LTD,1220012-30556885-23-100385-178533,2142.4
Home Office,Home Office,04/08/2023,FULL COST,PSG - Public Safety Group,BROOK STREET (UK) LTD,1295054-30556885-23-100385-1778544,21342.57
Home Office,Home Office,04/08/2023,OTHER,PSG - Public Safety Group,C S TODD & ASSOCIATES LTD,1292511-32895-55065-42080,50496
Home Office,Home Office,04/08/2023,SYSTEM CLEARING,PSG - Public Safety Group,CAPGEMINI UK PLC,1892011-2600110382283-112696-3029988,30299.88
Home Office,Home Office,04/08/2023,SYSTEM CLEARING,PSG - Public Safety Group,CAPGEMINI UK PLC,1892011-2600110382995-112696-491764,49176.4
Home Office,Home Office,04/08/2023,SYSTEM CLEARING,PSG - Public Safety Group,CAPGEMINI UK PLC,1892011-2600110377913-112696-5905601,59056.01
Home Office,Home Office,04/08/2023,IT RUN COST,PSG - Public Safety Group,CGI IT UK LTD,1892008-GB014110607-240306-36456,36456
Home Office,Home Office,04/08/2023,RESEARCH AND DEVELOPMENT,PSG - Public Safety Group,KANTAR PUBLIC UK LTD,1230011-262101459-57874-415964,41596.4
Home Office,Home Office,04/08/2023,BASIC SALARY,PSG - Public Safety Group,MAYORS OFFICE FOR POLICING AND CRIME (MOPC),1709505-9411050017-100548-5126488,51264.88
Home Office,Home Office,04/08/2023,IT RUN COST,PSG - Public Safety Group,ROKE MANOR RESEARCH LIMITED,1262100-90032958-101796-23806236,238062.36
Home Office,Home Office,07/08/2023,IT RUN COST,PSG - Public Safety Group,CAPGEMINI UK PLC,1892023-2600110383388-112696-4438125,44381.25
Home Office,Home Office,07/08/2023,SYSTEM CLEARING,PSG - Public Safety Group,CGI IT UK LTD,1892014-GB014110879-240306-18906253,226875.04
Home Office,Home Office,07/08/2023,SYSTEM CLEARING,PSG - Public Safety Group,CHAUCER GROUP LTD,1892016-S-INV-027297-413740-15680325,156803.25
Home Office,Home Office,07/08/2023,SYSTEM CLEARING,PSG - Public Safety Group,CHAUCER GROUP LTD,1892016-S-INV-027439-413740-210656,210656
Home Office,Home Office,07/08/2023,SYSTEM CLEARING,PSG - Public Safety Group,INVESTIGO LTD,1892014-408892-486793-286875,34425
Home Office,Home Office,08/08/2023,IT RUN COST,PSG - Public Safety Group,AMETHYST RISK MANAGEMENT LTD,1709505-3425-51699-4978112,49781.12
Home Office,Home Office,08/08/2023,IT RUN COST,PSG - Public Safety Group,BAE SYSTEMS APPLIED INTELLIGENCE LIMITED,1892024-1001055906-136604-117923,117923
Home Office,Home Office,08/08/2023,SYSTEM CLEARING,PSG - Public Safety Group,CIVICA UK LTD,1892014-C/HT280129-421184-2730335,32764.02
Home Office,Home Office,08/08/2023,SYSTEM CLEARING,PSG - Public Safety Group,FIMATIX UK LTD,1892014-INV-1939-56521-1924125,230895
Home Office,Home Office,08/08/2023,SYSTEM CLEARING,PSG - Public Safety Group,NOTTINGHAMSHIRE OFFICE OF THE POLICE & CRIME COMMISSIONER (THE),1892017-10001062-100618-38080,38080
Home Office,Home Office,08/08/2023,IT RUN COST,PSG - Public Safety Group,NTT DATA UK LTD,1892024-4025552-320521-4998465,49984.65
Home Office,Home Office,08/08/2023,IT RUN COST,PSG - Public Safety Group,SSS PUBLIC SAFETY LTD,1262100-6060060588-57527-39375,39375
Home Office,Home Office,10/08/2023,FULL COST,PSG - Public Safety Group,BROOK STREET (UK) LTD,1220012-30567400-23-100385-108351,1300.22
Home Office,Home Office,10/08/2023,FULL COST,PSG - Public Safety Group,BROOK STREET (UK) LTD,1295014-30567400-23-100385-171532,2058.39
Home Office,Home Office,10/08/2023,FULL COST,PSG - Public Safety Group,BROOK STREET (UK) LTD,1295054-30567400-23-100385-1954347,23452.15
Home Office,Home Office,10/08/2023,SYSTEM CLEARING,PSG - Public Safety Group,CAMERAFORENSICS LTD,1892016-INV-0388-443113-5394725,53947.25
Home Office,Home Office,10/08/2023,IT RUN COST,PSG - Public Safety Group,CAPGEMINI UK PLC,1892018-2600110383498-112696-40050,40050
Home Office,Home Office,10/08/2023,SYSTEM CLEARING,PSG - Public Safety Group,CAPGEMINI UK PLC,1892011-2600110370659-112696-6931953,69319.53
Home Office,Home Office,10/08/2023,SYSTEM CLEARING,PSG - Public Safety Group,CIVICA UK LTD,1295054-C/MM281527-421184-99250,99250
Home Office,Home Office,10/08/2023,SYSTEM CLEARING,PSG - Public Safety Group,FUJITSU SERVICES LTD,1892019-1030015394-106173-1175075,117507.5
Home Office,Home Office,10/08/2023,SYSTEM CLEARING,PSG - Public Safety Group,QINETIQ LTD,1892014-117073004-112688-39900,47880
Home Office,Home Office,10/08/2023,IT RUN COST,PSG - Public Safety Group,SAAB AB (PUBL),1262100-8181426-53880-5802651,58026.51
Home Office,Home Office,10/08/2023,IT RUN COST,PSG - Public Safety Group,SAAB AB (PUBL),1262100-8181426-53880-110743531,1107435.31
Home Office,Home Office,10/08/2023,IT RUN COST,PSG - Public Safety Group,SSS PUBLIC SAFETY LTD,1262100-6060060585-57527-54419423,544194.23
Home Office,Home Office,11/08/2023,CONTINGENT LABOUR OTHER,PSG - Public Safety Group,ALEXANDER MANN SOLUTIONS LTD,1771009-2861148-560478-215796,2589.55
Home Office,Home Office,11/08/2023,CONTINGENT LABOUR OTHER,PSG - Public Safety Group,ALEXANDER MANN SOLUTIONS LTD,1862112-2861148-560478-268115,3217.38
Home Office,Home Office,11/08/2023,CONTINGENT LABOUR OTHER,PSG - Public Safety Group,ALEXANDER MANN SOLUTIONS LTD,1261001-2861148-560478-290008,3480.1
Home Office,Home Office,11/08/2023,CONTINGENT LABOUR OTHER,PSG - Public Safety Group,ALEXANDER MANN SOLUTIONS LTD,1892018-2861148-560478-1777662,21331.95
Home Office,Home Office,11/08/2023,CONTINGENT LABOUR OTHER,PSG - Public Safety Group,ALEXANDER MANN SOLUTIONS LTD,1830007-2861148-560478-1868548,22422.58
Home Office,Home Office,11/08/2023,CONTINGENT LABOUR OTHER,PSG - Public Safety Group,ALEXANDER MANN SOLUTIONS LTD,1892008-2861148-560478-3963566,47562.79
Home Office,Home Office,11/08/2023,CONTINGENT LABOUR OTHER,PSG - Public Safety Group,ALEXANDER MANN SOLUTIONS LTD,1892023-2861148-560478-4075995,48911.94
Home Office,Home Office,11/08/2023,CONTINGENT LABOUR OTHER,PSG - Public Safety Group,ALEXANDER MANN SOLUTIONS LTD,1262100-2861148-560478-16287982,162879.82
Home Office,Home Office,11/08/2023,CONTINGENT LABOUR OTHER,PSG - Public Safety Group,ALEXANDER MANN SOLUTIONS LTD,1892014-2861148-560478-29447421,353369.06
Home Office,Home Office,11/08/2023,IT RUN COST,PSG - Public Safety Group,CABINET OFFICE,1262100-3831627-113009-478825,47882.5
Home Office,Home Office,11/08/2023,OTHER ICT COSTS,PSG - Public Safety Group,CGI IT UK LTD,1892008-GB014111076-240306-2817075,33804.9
Home Office,Home Office,11/08/2023,SYSTEM CLEARING,PSG - Public Safety Group,CYACOMB LTD,1892016-INV-0112-52892-171510,171510
Home Office,Home Office,11/08/2023,IT RUN COST,PSG - Public Safety Group,EGRESS SOFTWARE TECHNOLOGIES LTD,1771009-INVUK24057-441161-27000,32400
Home Office,Home Office,11/08/2023,SYSTEM CLEARING,PSG - Public Safety Group,FUJITSU SERVICES LTD,1892019-1030015393-106173-1133675,113367.5
Home Office,Home Office,11/08/2023,IT RUN COST,PSG - Public Safety Group,IDENTITY E2E LTD,1262100-101883-384232-123705,123705
Home Office,Home Office,11/08/2023,RESEARCH AND DEVELOPMENT,PSG - Public Safety Group,ITAD LTD,1286565-SIL006890-57425-3836755,46041.06
Home Office,Home Office,11/08/2023,SYSTEM CLEARING,PSG - Public Safety Group,REPLY LTD,1892014-3231001547-311787-74950,89940
Home Office,Home Office,11/08/2023,SYSTEM CLEARING,PSG - Public Safety Group,SOPRA STERIA LTD,1892017-100208731-112699-11260044,112600.44
Home Office,Home Office,11/08/2023,SYSTEM CLEARING,PSG - Public Safety Group,SOPRA STERIA LTD,1892017-100208747-112699-22507371,225073.71
Home Office,Home Office,14/08/2023,SYSTEM CLEARING,PSG - Public Safety Group,ALEXANDER MANN SOLUTIONS LTD,1892014-2862293-560478-3015333,36184
Home Office,Home Office,14/08/2023,SYSTEM CLEARING,PSG - Public Safety Group,ALEXANDER MANN SOLUTIONS LTD,1892014-2862294-560478-45625,54750
Home Office,Home Office,14/08/2023,SYSTEM CLEARING,PSG - Public Safety Group,ALEXANDER MANN SOLUTIONS LTD,1892014-2862301-560478-99905,119886
Home Office,Home Office,14/08/2023,SYSTEM CLEARING,PSG - Public Safety Group,SOPRA STERIA LTD,1892017-100208748-112699-22507371,225073.71
Home Office,Home Office,15/08/2023,IT RUN COST,PSG - Public Safety Group,CERTUS ADVISORY LIMITED,1262100-424-566163-2361633,23616.33
Home Office,Home Office,15/08/2023,IT RUN COST,PSG - Public Safety Group,CERTUS ADVISORY LIMITED,1262116-422-566163-5913672,70964.06
Home Office,Home Office,15/08/2023,IT RUN COST,PSG - Public Safety Group,CERTUS ADVISORY LIMITED,1262100-422-566163-864282,86428.2
Home Office,Home Office,15/08/2023,SYSTEM CLEARING,PSG - Public Safety Group,CONEXIA LTD,1892018-6032639484-158585-2911038,29110.38
Home Office,Home Office,15/08/2023,SYSTEM CLEARING,PSG - Public Safety Group,PA CONSULTING SERVICES LTD,1892014-0000026112-100039-61250,61250
Home Office,Home Office,15/08/2023,SYSTEM CLEARING,PSG - Public Safety Group,SOFTWARE AG (UK) LTD,1892014-1109013943-216241-365386,36538.6
Home Office,Home Office,15/08/2023,RESEARCH AND DEVELOPMENT,PSG - Public Safety Group,TORCHLIGHT GROUP LTD,1286565-TLG-001653-50792-10885531,130626.37
Home Office,Home Office,16/08/2023,IT RUN COST,PSG - Public Safety Group,BAE SYSTEMS APPLIED INTELLIGENCE LIMITED,1892024-1001055950-136604-122752,122752
Home Office,Home Office,16/08/2023,CONTINGENT LABOUR OTHER,PSG - Public Safety Group,HM REVENUE & CUSTOMS,1295054-18000025132023-187546-615105,73812.6
Home Office,Home Office,16/08/2023,RESEARCH AND DEVELOPMENT,PSG - Public Safety Group,IFF RESEARCH LTD,1230011-0017768-106307-77501,93001.2
Home Office,Home Office,16/08/2023,SYSTEM CLEARING,PSG - Public Safety Group,SPECIALIST COMPUTER CENTRES PLC,1892016-OP/ N427501-100774-3144861,31448.61
Home Office,Home Office,17/08/2023,IT RUN COST,PSG - Public Safety Group,CAPGEMINI UK PLC,1892018-2600110383538-112696-1605875,160587.5
Home Office,Home Office,17/08/2023,SYSTEM CLEARING,PSG - Public Safety Group,CGI IT UK LTD,1892014-GB014111381-240306-277425,33291
Home Office,Home Office,17/08/2023,IT RUN COST,PSG - Public Safety Group,HANDSFREE GROUP LTD,1262100-2042971-55082-2171748,21717.48
Home Office,Home Office,17/08/2023,IT RUN COST,PSG - Public Safety Group,MASON ADVISORY LTD,1262100-INV004214-51190-36516583,365165.83
Home Office,Home Office,18/08/2023,CONTINGENT LABOUR OTHER,PSG - Public Safety Group,ALEXANDER MANN SOLUTIONS LTD,1892017-2865788-560478-23102,2772.24
Home Office,Home Office,18/08/2023,CONTINGENT LABOUR OTHER,PSG - Public Safety Group,ALEXANDER MANN SOLUTIONS LTD,1771009-2865788-560478-323694,3884.33
Home Office,Home Office,18/08/2023,CONTINGENT LABOUR OTHER,PSG - Public Safety Group,ALEXANDER MANN SOLUTIONS LTD,1862112-2865788-560478-329988,3959.86
Home Office,Home Office,18/08/2023,CONTINGENT LABOUR OTHER,PSG - Public Safety Group,ALEXANDER MANN SOLUTIONS LTD,1262115-2865788-560478-68041,8164.92
Home Office,Home Office,18/08/2023,CONTINGENT LABOUR OTHER,PSG - Public Safety Group,ALEXANDER MANN SOLUTIONS LTD,1830007-2865788-560478-91254,10950.48
Home Office,Home Office,18/08/2023,CONTINGENT LABOUR OTHER,PSG - Public Safety Group,ALEXANDER MANN SOLUTIONS LTD,1892018-2865788-560478-1090701,13088.42
Home Office,Home Office,18/08/2023,CONTINGENT LABOUR OTHER,PSG - Public Safety Group,ALEXANDER MANN SOLUTIONS LTD,1892023-2865788-560478-1435786,17229.43
Home Office,Home Office,18/08/2023,CONTINGENT LABOUR OTHER,PSG - Public Safety Group,ALEXANDER MANN SOLUTIONS LTD,1892008-2865788-560478-248623,29834.77
Home Office,Home Office,18/08/2023,CONTINGENT LABOUR OTHER,PSG - Public Safety Group,ALEXANDER MANN SOLUTIONS LTD,1262100-2865788-560478-16732243,167322.43
Home Office,Home Office,18/08/2023,CONTINGENT LABOUR OTHER,PSG - Public Safety Group,ALEXANDER MANN SOLUTIONS LTD,1892014-2865788-560478-22172926,266075.1
Home Office,Home Office,18/08/2023,FULL COST,PSG - Public Safety Group,BROOK STREET (UK) LTD,1220012-30577577-23-100385-89389,1072.67
Home Office,Home Office,18/08/2023,FULL COST,PSG - Public Safety Group,BROOK STREET (UK) LTD,1262100-30577577-23-100385-1110,1110
Home Office,Home Office,18/08/2023,FULL COST,PSG - Public Safety Group,BROOK STREET (UK) LTD,1295014-30577577-23-100385-160783,1929.4
Home Office,Home Office,18/08/2023,FULL COST,PSG - Public Safety Group,BROOK STREET (UK) LTD,1295054-30577577-23-100385-1581261,18975.15
Home Office,Home Office,18/08/2023,IT RUN COST,PSG - Public Safety Group,CAPGEMINI UK PLC,1892023-2600110383917-112696-1360225,136022.5
Home Office,Home Office,18/08/2023,CONFERENCES,PSG - Public Safety Group,NATIONAL FIRE CHIEFS COUNCIL,1202507-NFCC 6450-58065-40000,40000
Home Office,Home Office,18/08/2023,RESEARCH AND DEVELOPMENT,PSG - Public Safety Group,TORCHLIGHT GROUP LTD,1286565-TLG-001657-50792-706722,84806.64
Home Office,Home Office,21/08/2023,CONTINGENT LABOUR OTHER,PSG - Public Safety Group,ALEXANDER MANN SOLUTIONS LTD,1265001-2866868-560478-264704,317644.8
Home Office,Home Office,21/08/2023,SYSTEM CLEARING,PSG - Public Safety Group,NETCOMPANY UK LIMITED,1892019-NCUK61959-465524-255285,255285
Home Office,Home Office,21/08/2023,LEGAL ADVICE,PSG - Public Safety Group,TLT LLP,1262100-1404349-56259-4681905,46819.05
Home Office,Home Office,21/08/2023,LEGAL ADVICE,PSG - Public Safety Group,TLT LLP,1262100-1402028-56259-5607489,56074.89
Home Office,Home Office,21/08/2023,LEGAL ADVICE,PSG - Public Safety Group,TLT LLP,1262100-1394672-56259-6031136,60311.36
Home Office,Home Office,21/08/2023,LEGAL ADVICE,PSG - Public Safety Group,TLT LLP,1262100-1404084-56259-6936228,69362.28
Home Office,Home Office,21/08/2023,LEGAL ADVICE,PSG - Public Safety Group,TLT LLP,1262100-1404078-56259-7578266,75782.66
Home Office,Home Office,21/08/2023,LEGAL ADVICE,PSG - Public Safety Group,TLT LLP,1262100-1394679-56259-8092799,80927.99
Home Office,Home Office,21/08/2023,LEGAL ADVICE,PSG - Public Safety Group,TLT LLP,1262100-1404192-56259-14922762,149227.62
Home Office,Home Office,21/08/2023,IT RUN COST,PSG - Public Safety Group,VODAFONE LTD,1830007-387297-2-119598-17261479,207137.75
Home Office,Home Office,21/08/2023,IT RUN COST,PSG - Public Safety Group,VODAFONE LTD,1830007-388632-2-119598-17261479,207137.75
Home Office,Home Office,21/08/2023,IT RUN COST,PSG - Public Safety Group,VODAFONE LTD,1830007-388634-2-119598-17261479,207137.75
Home Office,Home Office,21/08/2023,IT RUN COST,PSG - Public Safety Group,VODAFONE LTD,1830007-10196237-119598-46603725,559244.7
Home Office,Home Office,22/08/2023,LEGAL ADVICE,PSG - Public Safety Group,TLT LLP,1262100-1394665-56259-3160667,31606.67
Home Office,Home Office,22/08/2023,LEGAL ADVICE,PSG - Public Safety Group,TLT LLP,1262100-1374206-56259-11503887,115038.87
Home Office,Home Office,23/08/2023,SYSTEM CLEARING,PSG - Public Safety Group,EE LTD,1262100-1800313144-425623-2450737,24507.37
Home Office,Home Office,23/08/2023,SYSTEM CLEARING,PSG - Public Safety Group,EE LTD,1262100-1800310191-425623-19784444,197844.44
Home Office,Home Office,23/08/2023,IT RUN COST,PSG - Public Safety Group,ERNST AND YOUNG LLP,1262100-GB01G000450658-113852-3455509,34555.09
Home Office,Home Office,23/08/2023,AIR TRAVEL,PSG - Public Safety Group,FOREIGN COMMONWEALTH & DEVELOPMENT OFFICE,1295005-20007983-113026-14175,141.75
Home Office,Home Office,23/08/2023,HOTELS & ACCOMODATION,PSG - Public Safety Group,FOREIGN COMMONWEALTH & DEVELOPMENT OFFICE,1862000-20005436-113026-313559,3135.59
Home Office,Home Office,23/08/2023,TRANSFERS,PSG - Public Safety Group,FOREIGN COMMONWEALTH & DEVELOPMENT OFFICE,1286565-20007983-113026-1558819,15588.19
Home Office,Home Office,23/08/2023,CURRENT GRANTS TO OVERSEAS BODIES,PSG - Public Safety Group,FOREIGN COMMONWEALTH & DEVELOPMENT OFFICE,1286565-20005436-113026-4381889,43818.89
Home Office,Home Office,23/08/2023,CURRENT GRANTS TO OVERSEAS BODIES,PSG - Public Safety Group,FOREIGN COMMONWEALTH & DEVELOPMENT OFFICE,1286565-20007983-113026-4526522,45265.22
Home Office,Home Office,23/08/2023,SYSTEM CLEARING,PSG - Public Safety Group,LENDLEASE CONSTRUCTION (EUROPE) LTD,1262100-14100019596-468614-46742493,467424.93
Home Office,Home Office,23/08/2023,SYSTEM CLEARING,PSG - Public Safety Group,PA CONSULTING SERVICES LTD,1892014-0000026461-100039-503580,604296
Home Office,Home Office,23/08/2023,SYSTEM CLEARING,PSG - Public Safety Group,SOPRA STERIA LTD,1892014-100209097-112699-27060,32472
Home Office,Home Office,23/08/2023,IT RUN COST,PSG - Public Safety Group,VODAFONE LTD,1262100-UK10/072023/8181-119598-24408,24408
Home Office,Home Office,23/08/2023,IT RUN COST,PSG - Public Safety Group,VODAFONE LTD,1262100-UK10/072023/7462-119598-3886443,38864.43
Home Office,Home Office,23/08/2023,IT RUN COST,PSG - Public Safety Group,VODAFONE LTD,1262100-1000002506-119598-4894418,48944.18
Home Office,Home Office,24/08/2023,SYSTEM CLEARING,PSG - Public Safety Group,BLOOM PROCUREMENT SERVICES LTD,1892014-SIN045313-518536-6455263,64552.63
Home Office,Home Office,24/08/2023,IT RUN COST,PSG - Public Safety Group,CAPGEMINI UK PLC,1892023-2600110382241-112696-22275,22275
Home Office,Home Office,24/08/2023,IT RUN COST,PSG - Public Safety Group,CAPGEMINI UK PLC,1892023-2600110384054-112696-3527225,35272.25
Home Office,Home Office,24/08/2023,IT RUN COST,PSG - Public Safety Group,CAPGEMINI UK PLC,1892023-2600110382205-112696-90225,90225
Home Office,Home Office,24/08/2023,SYSTEM CLEARING,PSG - Public Safety Group,CAPGEMINI UK PLC,1892011-2600110384860-112696-132219,132219
Home Office,Home Office,24/08/2023,SYSTEM CLEARING,PSG - Public Safety Group,EMPIRIC SOLUTIONS LIMITED,1892009-SI0000077646-515778-33250,33250
Home Office,Home Office,24/08/2023,MISCELLANEOUS EXPENDITURE,PSG - Public Safety Group,FOREIGN COMMONWEALTH & DEVELOPMENT OFFICE,1286565-20007198-113026-6059,60.59
Home Office,Home Office,24/08/2023,CURRENT GRANTS TO OVERSEAS BODIES,PSG - Public Safety Group,FOREIGN COMMONWEALTH & DEVELOPMENT OFFICE,1286565-20007198-113026-27525875,275258.75
Home Office,Home Office,24/08/2023,IT RUN COST,PSG - Public Safety Group,HANDSFREE GROUP LTD,1262100-2042248-55082-2100314,21003.14
Home Office,Home Office,24/08/2023,IT RUN COST,PSG - Public Safety Group,HANDSFREE GROUP LTD,1262100-2042249-55082-5365735,53657.35
Home Office,Home Office,24/08/2023,RESEARCH AND DEVELOPMENT,PSG - Public Safety Group,LIVERPOOL JOHN MOORES  UNIVERSITY,1286880-512611-211563-169485,203382
Home Office,Home Office,24/08/2023,RESEARCH AND DEVELOPMENT,PSG - Public Safety Group,QE ASSESSMENTS LTD,1230011-14/22-23/DHRE-1-53800-30350,30350
Home Office,Home Office,25/08/2023,IT RUN COST,PSG - Public Safety Group,AIRWAVE SOLUTIONS LTD,1709505-0900000283-207-153581-3594524,35945.24
Home Office,Home Office,25/08/2023,IT RUN COST,PSG - Public Safety Group,AIRWAVE SOLUTIONS LTD,1709505-0910000279-133-153581-1304719,130471.9
Home Office,Home Office,25/08/2023,SYSTEM CLEARING,PSG - Public Safety Group,AIRWAVE SOLUTIONS LTD,1262100-HO-063-153581-19123008,191230.08
Home Office,Home Office,25/08/2023,IT RUN COST,PSG - Public Safety Group,AIRWAVE SOLUTIONS LTD,1709505-0900000279-505-153581-24962598,249625.98
Home Office,Home Office,25/08/2023,IT RUN COST,PSG - Public Safety Group,AIRWAVE SOLUTIONS LTD,1202509-0932000001-737-153581-27411357,274113.57
Home Office,Home Office,25/08/2023,IT RUN COST,PSG - Public Safety Group,AIRWAVE SOLUTIONS LTD,1202509-0931000001-906-153581-52258622,522586.22
Home Office,Home Office,25/08/2023,IT RUN COST,PSG - Public Safety Group,AIRWAVE SOLUTIONS LTD,1709505-0900000282-357-153581-54151781,541517.81
Home Office,Home Office,25/08/2023,IT RUN COST,PSG - Public Safety Group,AIRWAVE SOLUTIONS LTD,1709505-0900000280-208-153581-84789848,847898.48
Home Office,Home Office,25/08/2023,IT RUN COST,PSG - Public Safety Group,AIRWAVE SOLUTIONS LTD,1709505-0900000281-205-153581-94074047,940740.47
Home Office,Home Office,25/08/2023,IT RUN COST,PSG - Public Safety Group,AIRWAVE SOLUTIONS LTD,1202509-0930000001-958-153581-236280049,2362800.49
Home Office,Home Office,25/08/2023,CONTINGENT LABOUR OTHER,PSG - Public Safety Group,ALEXANDER MANN SOLUTIONS LTD,1862112-2870301-560478-28874,3464.88
Home Office,Home Office,25/08/2023,CONTINGENT LABOUR OTHER,PSG - Public Safety Group,ALEXANDER MANN SOLUTIONS LTD,1771009-2870301-560478-323694,3884.33
Home Office,Home Office,25/08/2023,CONTINGENT LABOUR OTHER,PSG - Public Safety Group,ALEXANDER MANN SOLUTIONS LTD,1262115-2870301-560478-340205,4082.46
Home Office,Home Office,25/08/2023,CONTINGENT LABOUR OTHER,PSG - Public Safety Group,ALEXANDER MANN SOLUTIONS LTD,1892017-2870301-560478-46204,5544.48
Home Office,Home Office,25/08/2023,CONTINGENT LABOUR OTHER,PSG - Public Safety Group,ALEXANDER MANN SOLUTIONS LTD,1892023-2870301-560478-975607,11707.28
Home Office,Home Office,25/08/2023,CONTINGENT LABOUR OTHER,PSG - Public Safety Group,ALEXANDER MANN SOLUTIONS LTD,1892018-2870301-560478-1445179,17342.15
Home Office,Home Office,25/08/2023,CONTINGENT LABOUR OTHER,PSG - Public Safety Group,ALEXANDER MANN SOLUTIONS LTD,1892008-2870301-560478-4666294,55995.52
Home Office,Home Office,25/08/2023,CONTINGENT LABOUR OTHER,PSG - Public Safety Group,ALEXANDER MANN SOLUTIONS LTD,1262100-2870301-560478-15409092,154090.92
Home Office,Home Office,25/08/2023,CONTINGENT LABOUR OTHER,PSG - Public Safety Group,ALEXANDER MANN SOLUTIONS LTD,1892014-2870301-560478-29758906,357106.87
Home Office,Home Office,25/08/2023,IT RUN COST,PSG - Public Safety Group,BAE SYSTEMS APPLIED INTELLIGENCE LIMITED,1830007-1001055710-136604-31380,37656
Home Office,Home Office,25/08/2023,IT RUN COST,PSG - Public Safety Group,BAE SYSTEMS APPLIED INTELLIGENCE LIMITED,1830007-1001056173-136604-348875,41865
Home Office,Home Office,25/08/2023,IT RUN COST,PSG - Public Safety Group,BAE SYSTEMS APPLIED INTELLIGENCE LIMITED,1892024-1001056181-136604-44955,44955
Home Office,Home Office,25/08/2023,FULL COST,PSG - Public Safety Group,BROOK STREET (UK) LTD,1262100-30588046-23-100385-1110,1110
Home Office,Home Office,25/08/2023,FULL COST,PSG - Public Safety Group,BROOK STREET (UK) LTD,1295014-30588046-23-100385-161416,1936.99
Home Office,Home Office,25/08/2023,FULL COST,PSG - Public Safety Group,BROOK STREET (UK) LTD,1295054-30588046-23-100385-1890149,22681.78
Home Office,Home Office,25/08/2023,SYSTEM CLEARING,PSG - Public Safety Group,CAPGEMINI UK PLC,1892032-2600110384837-112696-37795,45354
Home Office,Home Office,25/08/2023,SYSTEM CLEARING,PSG - Public Safety Group,CAPGEMINI UK PLC,1892023-2600110382228-112696-296205,296205
Home Office,Home Office,25/08/2023,SYSTEM CLEARING,PSG - Public Safety Group,CGI IT UK LTD,1892017-GB014111767-240306-323835,32383.5
Home Office,Home Office,25/08/2023,IT RUN COST,PSG - Public Safety Group,DELOITTE LLP,1262100-8003831432-112904-1190190,1190190
Home Office,Home Office,25/08/2023,IT RUN COST,PSG - Public Safety Group,EE LTD,1262100-1800316586-425623-4316997,431699.7
Home Office,Home Office,25/08/2023,IT RUN COST,PSG - Public Safety Group,EE LTD,1262100-1800317862-425623-666513151,6665131.51
Home Office,Home Office,25/08/2023,CURRENT GRANTS TO OVERSEAS BODIES,PSG - Public Safety Group,FOREIGN COMMONWEALTH & DEVELOPMENT OFFICE,1286565-20008799-113026-3903,39.03
Home Office,Home Office,25/08/2023,AIR TRAVEL,PSG - Public Safety Group,FOREIGN COMMONWEALTH & DEVELOPMENT OFFICE,1295005-20008419-113026-3945,39.45
Home Office,Home Office,25/08/2023,CURRENT GRANTS TO OVERSEAS BODIES,PSG - Public Safety Group,FOREIGN COMMONWEALTH & DEVELOPMENT OFFICE,1286565-20008419-113026-4287,42.87
Home Office,Home Office,25/08/2023,OTHER FOREIGN TRAVEL,PSG - Public Safety Group,FOREIGN COMMONWEALTH & DEVELOPMENT OFFICE,1295005-20008419-113026-56019,560.19
Home Office,Home Office,25/08/2023,MISCELLANEOUS EXPENDITURE,PSG - Public Safety Group,FOREIGN COMMONWEALTH & DEVELOPMENT OFFICE,1286565-20008419-113026-65707,657.07
Home Office,Home Office,25/08/2023,MISCELLANEOUS EXPENDITURE,PSG - Public Safety Group,FOREIGN COMMONWEALTH & DEVELOPMENT OFFICE,1286565-20007658-113026-147248,1472.48
Home Office,Home Office,25/08/2023,TRANSFERS,PSG - Public Safety Group,FOREIGN COMMONWEALTH & DEVELOPMENT OFFICE,1286565-20008799-113026-304552,3045.52
Home Office,Home Office,25/08/2023,FCO CHARGES,PSG - Public Safety Group,FOREIGN COMMONWEALTH & DEVELOPMENT OFFICE,1862114-20008419-113026-844282,8442.82
Home Office,Home Office,25/08/2023,FCO CHARGES,PSG - Public Safety Group,FOREIGN COMMONWEALTH & DEVELOPMENT OFFICE,1862114-20007658-113026-94494,9449.4
Home Office,Home Office,25/08/2023,ADVICE,PSG - Public Safety Group,LEAPWISE LTD,1202000-HO 003-58948-49563,49563
Home Office,Home Office,25/08/2023,SYSTEM CLEARING,PSG - Public Safety Group,LENDLEASE CONSTRUCTION (EUROPE) LTD,1262100-14100019668-468614-81601978,816019.78
Home Office,Home Office,25/08/2023,IT RUN COST,PSG - Public Safety Group,MOTOROLA LIMITED,1262100-1980003810-100573-129166666,1291666.66
Home Office,Home Office,29/08/2023,SYSTEM CLEARING,PSG - Public Safety Group,ALEXANDER MANN SOLUTIONS LTD,1892018-2871374-560478-209475,20947.5
Home Office,Home Office,29/08/2023,IT RUN COST,PSG - Public Safety Group,CAPGEMINI UK PLC,1892023-2600110385019-112696-26400,26400
Home Office,Home Office,29/08/2023,IT RUN COST,PSG - Public Safety Group,CAPGEMINI UK PLC,1892023-2600110385013-112696-1218275,121827.5
Home Office,Home Office,29/08/2023,IT RUN COST,PSG - Public Safety Group,CAPGEMINI UK PLC,1892023-2600110385027-112696-39882175,398821.75
Home Office,Home Office,29/08/2023,SYSTEM CLEARING,PSG - Public Safety Group,SOLIRIUS LTD,1892016-8392-CAID-WP006-01-58468-47325,47325
Home Office,Home Office,29/08/2023,SYSTEM CLEARING,PSG - Public Safety Group,SOLIRIUS LTD,1892016-8226-CAID-WP005-03-58468-5526466,55264.66
Home Office,Home Office,30/08/2023,IT RUN COST,PSG - Public Safety Group,AIRWAVE SOLUTIONS LTD,1709505-1000000010-235-153581-33223426,332234.26
Home Office,Home Office,30/08/2023,IT RUN COST,PSG - Public Safety Group,AIRWAVE SOLUTIONS LTD,1709505-1000000009-242-153581-2084205116,20842051.16
Home Office,Home Office,30/08/2023,ADVICE,PSG - Public Safety Group,POLICE & CRIME COMMISSIONER FOR SUSSEX (THE),1233011-1800052184-112720-60000,60000
Home Office,Home Office,30/08/2023,IT RUN COST,PSG - Public Safety Group,SOFTCAT LTD,1892018-INVUK972649-242804-3067124,30671.24
Home Office,Home Office,30/08/2023,SYSTEM CLEARING,PSG - Public Safety Group,SPECIALIST COMPUTER CENTRES PLC,1892016-OP/ N433757-100774-115362,115362
Home Office,Home Office,30/08/2023,SYSTEM CLEARING,PSG - Public Safety Group,VODAFONE LTD,1892018-1000002548-119598-33651,33651
Home Office,Home Office,30/08/2023,IT RUN COST,PSG - Public Safety Group,VODAFONE LTD,1262100-1000002544-119598-4894418,48944.18
Home Office,Home Office,31/08/2023,IT RUN COST,PSG - Public Safety Group,BAE SYSTEMS APPLIED INTELLIGENCE LIMITED,1892023-1001056245-136604-3606688,36066.88
Home Office,Home Office,31/08/2023,IT RUN COST,PSG - Public Safety Group,BAE SYSTEMS APPLIED INTELLIGENCE LIMITED,1892023-1001056246-136604-38600,38600
Home Office,Home Office,31/08/2023,IT RUN COST,PSG - Public Safety Group,BAE SYSTEMS APPLIED INTELLIGENCE LIMITED,1892023-1001056278-136604-5081822,50818.22
Home Office,Home Office,31/08/2023,IT RUN COST,PSG - Public Safety Group,BAE SYSTEMS APPLIED INTELLIGENCE LIMITED,1892023-1001056279-136604-6929469,69294.69
Home Office,Home Office,31/08/2023,IT RUN COST,PSG - Public Safety Group,TELENT TECHNOLOGY SERVICES,1262100-170725-461800-5627373,56273.73
Home Office,Home Office,31/08/2023,IT RUN COST,PSG - Public Safety Group,TELENT TECHNOLOGY SERVICES,1262100-170723-461800-882454,88245.4
Home Office,Home Office,01/08/2023,MOBILE PHONES,"STARS -  Science, Technology, Analysis, Research & Strategy",FOREIGN COMMONWEALTH & DEVELOPMENT OFFICE,1771142-20006860-113026-11355,113.55
Home Office,Home Office,01/08/2023,HOTELS & ACCOMODATION,"STARS -  Science, Technology, Analysis, Research & Strategy",FOREIGN COMMONWEALTH & DEVELOPMENT OFFICE,1771142-20006860-113026-28322,283.22
Home Office,Home Office,01/08/2023,RAIL TRAVEL,"STARS -  Science, Technology, Analysis, Research & Strategy",FOREIGN COMMONWEALTH & DEVELOPMENT OFFICE,1771142-20006860-113026-39166,391.66
Home Office,Home Office,01/08/2023,RECHARGE COST,"STARS -  Science, Technology, Analysis, Research & Strategy",FOREIGN COMMONWEALTH & DEVELOPMENT OFFICE,1771142-20006860-113026-52323,5232.3
Home Office,Home Office,03/08/2023,OTHER GOVERNMENT DEPARTMENTS,"STARS -  Science, Technology, Analysis, Research & Strategy",FOREIGN COMMONWEALTH & DEVELOPMENT OFFICE,1771142-20005089-113026-5594462,55944.62
Home Office,Home Office,04/08/2023,CONTINGENT LABOUR OTHER,"STARS -  Science, Technology, Analysis, Research & Strategy",ALEXANDER MANN SOLUTIONS LTD,1805055-2856507-560478-726527,8718.32
Home Office,Home Office,04/08/2023,FULL COST,"STARS -  Science, Technology, Analysis, Research & Strategy",BROOK STREET (UK) LTD,1771046-30556885-23-100385-93513,1122.16
Home Office,Home Office,07/08/2023,CONFERENCES,"STARS -  Science, Technology, Analysis, Research & Strategy",CALDER CONFERENCES LTD,1283022-496401-112824-4650,4650
Home Office,Home Office,07/08/2023,CONFERENCES,"STARS -  Science, Technology, Analysis, Research & Strategy",CALDER CONFERENCES LTD,1283022-496401-112824-21875,21875
Home Office,Home Office,08/08/2023,ADVICE,"STARS -  Science, Technology, Analysis, Research & Strategy",CAMBRIDGESHIRE POLICE & CRIME COMMISSIONER,1283022-C0006288-102926-569692,56969.2
Home Office,Home Office,08/08/2023,ADVICE,"STARS -  Science, Technology, Analysis, Research & Strategy",SERCO LTD,1283022-91928200-158586-124576,124576
Home Office,Home Office,10/08/2023,FULL COST,"STARS -  Science, Technology, Analysis, Research & Strategy",BROOK STREET (UK) LTD,1771046-30567400-23-100385-86467,1037.6
Home Office,Home Office,11/08/2023,CONTINGENT LABOUR OTHER,"STARS -  Science, Technology, Analysis, Research & Strategy",ALEXANDER MANN SOLUTIONS LTD,1805055-2861148-560478-726527,8718.32
Home Office,Home Office,14/08/2023,ADVICE,"STARS -  Science, Technology, Analysis, Research & Strategy",AXIOM INTERNATIONAL LTD,1771078-3142-58082-5279212,63350.54
Home Office,Home Office,18/08/2023,CONTINGENT LABOUR OTHER,"STARS -  Science, Technology, Analysis, Research & Strategy",ALEXANDER MANN SOLUTIONS LTD,1805055-2865788-560478-529555,6354.66
Home Office,Home Office,22/08/2023,OTHER TRAVEL,"STARS -  Science, Technology, Analysis, Research & Strategy",INVESTIGO LTD,1283022-410577-486793-20512,246.14
Home Office,Home Office,22/08/2023,ADVICE,"STARS -  Science, Technology, Analysis, Research & Strategy",INVESTIGO LTD,1283022-410577-486793-47525,57030
Home Office,Home Office,23/08/2023,ADVICE,"STARS -  Science, Technology, Analysis, Research & Strategy",CROWN INTEGRATION SERVICES LTD,1283022-1008-59148-18011395,211936.69
Home Office,Home Office,23/08/2023,FCO CHARGES,"STARS -  Science, Technology, Analysis, Research & Strategy",FOREIGN COMMONWEALTH & DEVELOPMENT OFFICE,1771142-20005436-113026-5022,50.22
Home Office,Home Office,23/08/2023,RECHARGE COST,"STARS -  Science, Technology, Analysis, Research & Strategy",FOREIGN COMMONWEALTH & DEVELOPMENT OFFICE,1862107-20005436-113026-6787,67.87
Home Office,Home Office,23/08/2023,TELEPHONE,"STARS -  Science, Technology, Analysis, Research & Strategy",FOREIGN COMMONWEALTH & DEVELOPMENT OFFICE,1444089-20005436-113026-15477,154.77
Home Office,Home Office,23/08/2023,FCO CHARGES,"STARS -  Science, Technology, Analysis, Research & Strategy",FOREIGN COMMONWEALTH & DEVELOPMENT OFFICE,1771142-20007983-113026-25269,252.69
Home Office,Home Office,23/08/2023,OTHER FOREIGN TRAVEL,"STARS -  Science, Technology, Analysis, Research & Strategy",FOREIGN COMMONWEALTH & DEVELOPMENT OFFICE,1771142-20005436-113026-33714,337.14
Home Office,Home Office,23/08/2023,CATERING & HOSPITALITY,"STARS -  Science, Technology, Analysis, Research & Strategy",FOREIGN COMMONWEALTH & DEVELOPMENT OFFICE,1771142-20005436-113026-75716,757.16
Home Office,Home Office,23/08/2023,AIR TRAVEL,"STARS -  Science, Technology, Analysis, Research & Strategy",FOREIGN COMMONWEALTH & DEVELOPMENT OFFICE,1771039-20005436-113026-588186,5881.86
Home Office,Home Office,24/08/2023,RAIL TRAVEL,"STARS -  Science, Technology, Analysis, Research & Strategy",FOREIGN COMMONWEALTH & DEVELOPMENT OFFICE,1771142-20007198-113026-177308,1773.08
Home Office,Home Office,24/08/2023,BASIC SALARY,"STARS -  Science, Technology, Analysis, Research & Strategy",FOREIGN COMMONWEALTH & DEVELOPMENT OFFICE,1771142-20007198-113026-201749,2017.49
Home Office,Home Office,24/08/2023,RECHARGE COST,"STARS -  Science, Technology, Analysis, Research & Strategy",FOREIGN COMMONWEALTH & DEVELOPMENT OFFICE,1771142-20007198-113026-260982,2609.82
Home Office,Home Office,24/08/2023,FCO CHARGES,"STARS -  Science, Technology, Analysis, Research & Strategy",FOREIGN COMMONWEALTH & DEVELOPMENT OFFICE,1771142-20007198-113026-493174,4931.74
Home Office,Home Office,24/08/2023,RESEARCH AND DEVELOPMENT,"STARS -  Science, Technology, Analysis, Research & Strategy",IPSOS (MARKET RESEARCH) LTD,1805034-23001940-106668-21950,21950
Home Office,Home Office,24/08/2023,RESEARCH AND DEVELOPMENT,"STARS -  Science, Technology, Analysis, Research & Strategy",IPSOS (MARKET RESEARCH) LTD,1805034-23001941-106668-21950,21950
Home Office,Home Office,25/08/2023,CONTINGENT LABOUR OTHER,"STARS -  Science, Technology, Analysis, Research & Strategy",ALEXANDER MANN SOLUTIONS LTD,1805055-2870301-560478-77577,9309.24
Home Office,Home Office,25/08/2023,OTHER FOREIGN TRAVEL,"STARS -  Science, Technology, Analysis, Research & Strategy",FOREIGN COMMONWEALTH & DEVELOPMENT OFFICE,1771142-20007658-113026-322,3.22
Home Office,Home Office,25/08/2023,FCO CHARGES,"STARS -  Science, Technology, Analysis, Research & Strategy",FOREIGN COMMONWEALTH & DEVELOPMENT OFFICE,1771142-20008419-113026-1898,18.98
Home Office,Home Office,25/08/2023,MOBILE PHONES,"STARS -  Science, Technology, Analysis, Research & Strategy",FOREIGN COMMONWEALTH & DEVELOPMENT OFFICE,1444089-20008419-113026-3584,35.84
Home Office,Home Office,25/08/2023,BASIC SALARY,"STARS -  Science, Technology, Analysis, Research & Strategy",FOREIGN COMMONWEALTH & DEVELOPMENT OFFICE,1444089-20008419-113026-3945,39.45
Home Office,Home Office,25/08/2023,RAIL TRAVEL,"STARS -  Science, Technology, Analysis, Research & Strategy",FOREIGN COMMONWEALTH & DEVELOPMENT OFFICE,1771142-20008799-113026-556,55.6
Home Office,Home Office,25/08/2023,RAIL TRAVEL,"STARS -  Science, Technology, Analysis, Research & Strategy",FOREIGN COMMONWEALTH & DEVELOPMENT OFFICE,1771142-20008419-113026-6012,60.12
Home Office,Home Office,25/08/2023,SUBSISTENCE,"STARS -  Science, Technology, Analysis, Research & Strategy",FOREIGN COMMONWEALTH & DEVELOPMENT OFFICE,1771142-20007658-113026-6229,62.29
Home Office,Home Office,25/08/2023,MOBILE PHONES,"STARS -  Science, Technology, Analysis, Research & Strategy",FOREIGN COMMONWEALTH & DEVELOPMENT OFFICE,1771142-20008799-113026-10949,109.49
Home Office,Home Office,25/08/2023,FCO CHARGES,"STARS -  Science, Technology, Analysis, Research & Strategy",FOREIGN COMMONWEALTH & DEVELOPMENT OFFICE,1771142-20007658-113026-15045,150.45
Home Office,Home Office,25/08/2023,HOTELS & ACCOMODATION,"STARS -  Science, Technology, Analysis, Research & Strategy",FOREIGN COMMONWEALTH & DEVELOPMENT OFFICE,1771142-20007658-113026-35883,358.83
Home Office,Home Office,25/08/2023,RAIL TRAVEL,"STARS -  Science, Technology, Analysis, Research & Strategy",FOREIGN COMMONWEALTH & DEVELOPMENT OFFICE,1771142-20007658-113026-48894,488.94
Home Office,Home Office,25/08/2023,CATERING & HOSPITALITY,"STARS -  Science, Technology, Analysis, Research & Strategy",FOREIGN COMMONWEALTH & DEVELOPMENT OFFICE,1771142-20008799-113026-61435,614.35
Home Office,Home Office,25/08/2023,FOREIGN ACCOMODATION,"STARS -  Science, Technology, Analysis, Research & Strategy",FOREIGN COMMONWEALTH & DEVELOPMENT OFFICE,1771142-20008419-113026-106129,1061.29
Home Office,Home Office,25/08/2023,CATERING & HOSPITALITY,"STARS -  Science, Technology, Analysis, Research & Strategy",FOREIGN COMMONWEALTH & DEVELOPMENT OFFICE,1771142-20008419-113026-13297,1329.7
Home Office,Home Office,25/08/2023,CLINICAL & MEDICAL,"STARS -  Science, Technology, Analysis, Research & Strategy",FOREIGN COMMONWEALTH & DEVELOPMENT OFFICE,1771142-20007658-113026-147854,1478.54
Home Office,Home Office,25/08/2023,OTHER FOREIGN TRAVEL,"STARS -  Science, Technology, Analysis, Research & Strategy",FOREIGN COMMONWEALTH & DEVELOPMENT OFFICE,1771142-20008799-113026-177358,1773.58
Home Office,Home Office,25/08/2023,RECHARGE COST,"STARS -  Science, Technology, Analysis, Research & Strategy",FOREIGN COMMONWEALTH & DEVELOPMENT OFFICE,1444089-20008419-113026-276442,2764.42
Home Office,Home Office,25/08/2023,HOTELS & ACCOMODATION,"STARS -  Science, Technology, Analysis, Research & Strategy",FOREIGN COMMONWEALTH & DEVELOPMENT OFFICE,1771142-20008799-113026-278627,2786.27
Home Office,Home Office,25/08/2023,FCO CHARGES,"STARS -  Science, Technology, Analysis, Research & Strategy",FOREIGN COMMONWEALTH & DEVELOPMENT OFFICE,1771089-20008799-113026-395226,3952.26
Home Office,Home Office,25/08/2023,RECHARGE COST,"STARS -  Science, Technology, Analysis, Research & Strategy",FOREIGN COMMONWEALTH & DEVELOPMENT OFFICE,1771142-20007658-113026-520119,5201.19
Home Office,Home Office,25/08/2023,FCO CHARGES,"STARS -  Science, Technology, Analysis, Research & Strategy",FOREIGN COMMONWEALTH & DEVELOPMENT OFFICE,1771142-20008799-113026-581749,5817.49
Home Office,Home Office,02/08/2023,CONT OUT SERV OTHER,"UKASRA - Asylum Support, Resettlement & Accommodation.",CORPORATE TRAVEL MANAGEMENT (NORTH),1406668-18470-245986-27812673,2781311.33
Home Office,Home Office,02/08/2023,ADVICE,"UKASRA - Asylum Support, Resettlement & Accommodation.",ERNST AND YOUNG LLP,1406412-GB01G000444386-113852-187600,225120
Home Office,Home Office,03/08/2023,INITIAL ACCOMMODATION,"UKASRA - Asylum Support, Resettlement & Accommodation.",CORPORATE TRAVEL MANAGEMENT (NORTH),1406676-18469-245986-721586,72158.6
Home Office,Home Office,04/08/2023,FULL COST,"UKASRA - Asylum Support, Resettlement & Accommodation.",BROOK STREET (UK) LTD,1406677-30556885-23-100385-495,594
Home Office,Home Office,04/08/2023,FULL COST,"UKASRA - Asylum Support, Resettlement & Accommodation.",BROOK STREET (UK) LTD,1470031-30556885-23-100385-70567,846.81
Home Office,Home Office,04/08/2023,FULL COST,"UKASRA - Asylum Support, Resettlement & Accommodation.",BROOK STREET (UK) LTD,1406089-30556885-23-100385-8151,978.12
Home Office,Home Office,04/08/2023,FULL COST,"UKASRA - Asylum Support, Resettlement & Accommodation.",BROOK STREET (UK) LTD,1417918-30556885-23-100385-129702,1556.43
Home Office,Home Office,04/08/2023,FULL COST,"UKASRA - Asylum Support, Resettlement & Accommodation.",BROOK STREET (UK) LTD,1407004-30556885-23-100385-174945,2099.34
Home Office,Home Office,04/08/2023,FULL COST,"UKASRA - Asylum Support, Resettlement & Accommodation.",BROOK STREET (UK) LTD,1771068-30556885-23-100385-269228,3230.74
Home Office,Home Office,04/08/2023,FULL COST,"UKASRA - Asylum Support, Resettlement & Accommodation.",BROOK STREET (UK) LTD,1421031-30556885-23-100385-307622,3691.47
Home Office,Home Office,04/08/2023,FULL COST,"UKASRA - Asylum Support, Resettlement & Accommodation.",BROOK STREET (UK) LTD,1406668-30556885-23-100385-352301,4227.61
Home Office,Home Office,04/08/2023,FULL COST,"UKASRA - Asylum Support, Resettlement & Accommodation.",BROOK STREET (UK) LTD,1407010-30556885-23-100385-508901,6106.83
Home Office,Home Office,04/08/2023,FULL COST,"UKASRA - Asylum Support, Resettlement & Accommodation.",BROOK STREET (UK) LTD,1417905-30556885-23-100385-628939,75472.82
Home Office,Home Office,04/08/2023,OTHER ICT COSTS,"UKASRA - Asylum Support, Resettlement & Accommodation.",WE ARE SNOOK LTD,1406417-91475986-54458-85320,102384
Home Office,Home Office,07/08/2023,ADVICE,"UKASRA - Asylum Support, Resettlement & Accommodation.",BLOOM PROCUREMENT SERVICES LTD,1406412-SIN044900-518536-2095000,2514000
Home Office,Home Office,07/08/2023,CONTINGENT LABOUR OTHER,"UKASRA - Asylum Support, Resettlement & Accommodation.",EAST SUSSEX COUNTY COUNCIL,1771067-8003074786-112863-100000,120000
Home Office,Home Office,09/08/2023,INITIAL ACCOMMODATION,"UKASRA - Asylum Support, Resettlement & Accommodation.",CORPORATE TRAVEL MANAGEMENT (NORTH),1406676-18530-245986-115875341,1158760.89
Home Office,Home Office,09/08/2023,CONT OUT SERV OTHER,"UKASRA - Asylum Support, Resettlement & Accommodation.",CORPORATE TRAVEL MANAGEMENT (NORTH),1406668-18531-245986-120736665,12073752.06
Home Office,Home Office,09/08/2023,OTHER ICT COSTS,"UKASRA - Asylum Support, Resettlement & Accommodation.",MASTEK (UK) LTD,1406416-90398318-351665-34850,34850
Home Office,Home Office,09/08/2023,CONT OUT SERV OTHER,"UKASRA - Asylum Support, Resettlement & Accommodation.",TRIPOD PARTNERS LTD,1771067-TRI330013-54980-7145962,85751.54
Home Office,Home Office,09/08/2023,CONT OUT SERV OTHER,"UKASRA - Asylum Support, Resettlement & Accommodation.",TRIPOD PARTNERS LTD,1771067-TRI329191-54980-7470922,89651.06
Home Office,Home Office,09/08/2023,CONT OUT SERV OTHER,"UKASRA - Asylum Support, Resettlement & Accommodation.",TRIPOD PARTNERS LTD,1771067-TRI330854-54980-8228592,98743.1
Home Office,Home Office,10/08/2023,FULL COST,"UKASRA - Asylum Support, Resettlement & Accommodation.",BROOK STREET (UK) LTD,1406677-30567400-23-100385-6105,732.6
Home Office,Home Office,10/08/2023,FULL COST,"UKASRA - Asylum Support, Resettlement & Accommodation.",BROOK STREET (UK) LTD,1470031-30567400-23-100385-70567,846.8
Home Office,Home Office,10/08/2023,FULL COST,"UKASRA - Asylum Support, Resettlement & Accommodation.",BROOK STREET (UK) LTD,1417918-30567400-23-100385-121258,1455.1
Home Office,Home Office,10/08/2023,FULL COST,"UKASRA - Asylum Support, Resettlement & Accommodation.",BROOK STREET (UK) LTD,1407004-30567400-23-100385-174945,2099.34
Home Office,Home Office,10/08/2023,FULL COST,"UKASRA - Asylum Support, Resettlement & Accommodation.",BROOK STREET (UK) LTD,1771068-30567400-23-100385-258821,3105.85
Home Office,Home Office,10/08/2023,FULL COST,"UKASRA - Asylum Support, Resettlement & Accommodation.",BROOK STREET (UK) LTD,1406668-30567400-23-100385-263006,3156.07
Home Office,Home Office,10/08/2023,FULL COST,"UKASRA - Asylum Support, Resettlement & Accommodation.",BROOK STREET (UK) LTD,1421031-30567400-23-100385-307622,3691.47
Home Office,Home Office,10/08/2023,FULL COST,"UKASRA - Asylum Support, Resettlement & Accommodation.",BROOK STREET (UK) LTD,1407010-30567400-23-100385-489508,5874.1
Home Office,Home Office,10/08/2023,FULL COST,"UKASRA - Asylum Support, Resettlement & Accommodation.",BROOK STREET (UK) LTD,1417905-30567400-23-100385-6494184,77930.19
Home Office,Home Office,11/08/2023,IT,"UKASRA - Asylum Support, Resettlement & Accommodation.",BLOOM PROCUREMENT SERVICES LTD,1406412-SIN044974-518536-590298,708357.6
Home Office,Home Office,11/08/2023,CONTRACT OUT SERVICE,"UKASRA - Asylum Support, Resettlement & Accommodation.",WAVENET LTD,1406676-960354-54736-6277561,75330.73
Home Office,Home Office,14/08/2023,ADVICE,"UKASRA - Asylum Support, Resettlement & Accommodation.",ALEXANDER MANN SOLUTIONS LTD,1771068-2862311-560478-117968,117968
Home Office,Home Office,14/08/2023,CASH SUPPORT,"UKASRA - Asylum Support, Resettlement & Accommodation.",PREPAID FINANCIAL SERVICES,1421031-448-55118-630000,630000
Home Office,Home Office,14/08/2023,SECTION 4 VOUCHERS,"UKASRA - Asylum Support, Resettlement & Accommodation.",PREPAID FINANCIAL SERVICES,1421031-447-55118-1530000,1530000
Home Office,Home Office,14/08/2023,CASH SUPPORT,"UKASRA - Asylum Support, Resettlement & Accommodation.",PREPAID FINANCIAL SERVICES,1421031-446-1-55118-15840000,15840000
Home Office,Home Office,15/08/2023,CONTINGENT LABOUR OTHER,"UKASRA - Asylum Support, Resettlement & Accommodation.",ADECCO UK LTD,1406403-29611679-56679-28652,343.82
Home Office,Home Office,15/08/2023,CONTINGENT LABOUR OTHER,"UKASRA - Asylum Support, Resettlement & Accommodation.",ADECCO UK LTD,1771068-29611679-56679-322253,3867.03
Home Office,Home Office,15/08/2023,CONTINGENT LABOUR OTHER,"UKASRA - Asylum Support, Resettlement & Accommodation.",ADECCO UK LTD,1771068-29605344-56679-406928,4883.12
Home Office,Home Office,15/08/2023,CONT OUT SERV OTHER,"UKASRA - Asylum Support, Resettlement & Accommodation.",COMMERCIAL SERVICES TRADING LTD T/A CONNECT2STAFF,1407015-7000040649-59034-46960108,563521.3
Home Office,Home Office,15/08/2023,CONT OUT SERV OTHER,"UKASRA - Asylum Support, Resettlement & Accommodation.",COMMERCIAL SERVICES TRADING LTD T/A CONNECT2STAFF,1407015-7000040752-59034-58017973,696215.68
Home Office,Home Office,15/08/2023,SYSTEM CLEARING,"UKASRA - Asylum Support, Resettlement & Accommodation.",MASTEK (UK) LTD,1406417-90398380-351665-40081,40081
Home Office,Home Office,15/08/2023,SYSTEM CLEARING,"UKASRA - Asylum Support, Resettlement & Accommodation.",MASTEK (UK) LTD,1406417-90398379-351665-48311,48311
Home Office,Home Office,15/08/2023,SYSTEM CLEARING,"UKASRA - Asylum Support, Resettlement & Accommodation.",MASTEK (UK) LTD,1406416-90398380-351665-5168112,51681.12
Home Office,Home Office,15/08/2023,SYSTEM CLEARING,"UKASRA - Asylum Support, Resettlement & Accommodation.",MASTEK (UK) LTD,1406416-90398379-351665-572332,57233.2
Home Office,Home Office,15/08/2023,SYSTEM CLEARING,"UKASRA - Asylum Support, Resettlement & Accommodation.",MASTEK (UK) LTD,1406412-90398380-351665-7307544,73075.44
Home Office,Home Office,15/08/2023,SYSTEM CLEARING,"UKASRA - Asylum Support, Resettlement & Accommodation.",MASTEK (UK) LTD,1406412-90398379-351665-8572818,85728.18
Home Office,Home Office,16/08/2023,CONT OUT SERV OTHER,"UKASRA - Asylum Support, Resettlement & Accommodation.",COMMERCIAL SERVICES TRADING LTD T/A CONNECT2STAFF,1407015-7000040875-59034-46447472,557369.66
Home Office,Home Office,16/08/2023,SECURITY GUARDS,"UKASRA - Asylum Support, Resettlement & Accommodation.",MITIE LTD,1771067-327653/92843081-54840-84467297,844672.97
Home Office,Home Office,17/08/2023,ADVICE,"UKASRA - Asylum Support, Resettlement & Accommodation.",BLOOM PROCUREMENT SERVICES LTD,1406412-SIN045089-518536-194932288,1949322.88
Home Office,Home Office,17/08/2023,INITIAL ACCOMMODATION,"UKASRA - Asylum Support, Resettlement & Accommodation.",CORPORATE TRAVEL MANAGEMENT (NORTH),1406676-18549-245986-10609835,106104.07
Home Office,Home Office,18/08/2023,FULL COST,"UKASRA - Asylum Support, Resettlement & Accommodation.",BROOK STREET (UK) LTD,1406677-30577577-23-100385-6105,732.6
Home Office,Home Office,18/08/2023,FULL COST,"UKASRA - Asylum Support, Resettlement & Accommodation.",BROOK STREET (UK) LTD,1470031-30577577-23-100385-69338,832.06
Home Office,Home Office,18/08/2023,FULL COST,"UKASRA - Asylum Support, Resettlement & Accommodation.",BROOK STREET (UK) LTD,1417918-30577577-23-100385-105522,1266.27
Home Office,Home Office,18/08/2023,FULL COST,"UKASRA - Asylum Support, Resettlement & Accommodation.",BROOK STREET (UK) LTD,1771068-30577577-23-100385-169389,2032.67
Home Office,Home Office,18/08/2023,FULL COST,"UKASRA - Asylum Support, Resettlement & Accommodation.",BROOK STREET (UK) LTD,1407004-30577577-23-100385-174945,2099.34
Home Office,Home Office,18/08/2023,FULL COST,"UKASRA - Asylum Support, Resettlement & Accommodation.",BROOK STREET (UK) LTD,1421031-30577577-23-100385-307622,3691.47
Home Office,Home Office,18/08/2023,FULL COST,"UKASRA - Asylum Support, Resettlement & Accommodation.",BROOK STREET (UK) LTD,1406668-30577577-23-100385-396657,4759.89
Home Office,Home Office,18/08/2023,FULL COST,"UKASRA - Asylum Support, Resettlement & Accommodation.",BROOK STREET (UK) LTD,1407010-30577577-23-100385-532798,6393.59
Home Office,Home Office,18/08/2023,FULL COST,"UKASRA - Asylum Support, Resettlement & Accommodation.",BROOK STREET (UK) LTD,1417905-30577577-23-100385-6625593,79507.22
Home Office,Home Office,18/08/2023,CONTRACT OUT SERVICE,"UKASRA - Asylum Support, Resettlement & Accommodation.",PREPAID FINANCIAL SERVICES,1421031-90956-55118-22758266,273099.19
Home Office,Home Office,21/08/2023,CONTINGENT LABOUR OTHER,"UKASRA - Asylum Support, Resettlement & Accommodation.",ADECCO UK LTD,1406403-29617005-56679-73112,877.34
Home Office,Home Office,21/08/2023,CONTINGENT LABOUR OTHER,"UKASRA - Asylum Support, Resettlement & Accommodation.",ADECCO UK LTD,1771068-29617005-56679-419077,5028.91
Home Office,Home Office,21/08/2023,OTHER TRAVEL,"UKASRA - Asylum Support, Resettlement & Accommodation.",CMAC GROUP UK LTD,1771067-705766 - JUNE 2023-50994-9480115,113731.59
Home Office,Home Office,21/08/2023,INTERGRATION LOAN SCHEME,"UKASRA - Asylum Support, Resettlement & Accommodation.",DEPARTMENT FOR WORK & PENSIONS (DWP),1406668-1110-38-148757-76670,76670
Home Office,Home Office,22/08/2023,SECURITY GUARDS,"UKASRA - Asylum Support, Resettlement & Accommodation.",MITIE LTD,1406668-327653/92843831-54840-389523651,3895236.51
Home Office,Home Office,23/08/2023,CONT OUT SERV OTHER,"UKASRA - Asylum Support, Resettlement & Accommodation.",CMAC GROUP UK LTD,1406668-705764 - JUNE 2023-50994-20344268,203442.68
Home Office,Home Office,23/08/2023,SYSTEM CLEARING,"UKASRA - Asylum Support, Resettlement & Accommodation.",MASTEK (UK) LTD,1406417-90398381-351665-45734,45734
Home Office,Home Office,23/08/2023,SYSTEM CLEARING,"UKASRA - Asylum Support, Resettlement & Accommodation.",MASTEK (UK) LTD,1406416-90398381-351665-509517,50951.7
Home Office,Home Office,23/08/2023,SYSTEM CLEARING,"UKASRA - Asylum Support, Resettlement & Accommodation.",MASTEK (UK) LTD,1406412-90398381-351665-2027383,202738.3
Home Office,Home Office,24/08/2023,INITIAL ACCOMMODATION,"UKASRA - Asylum Support, Resettlement & Accommodation.",CORPORATE TRAVEL MANAGEMENT (NORTH),1406676-18570-245986-7085212,70853.92
Home Office,Home Office,25/08/2023,FULL COST,"UKASRA - Asylum Support, Resettlement & Accommodation.",BROOK STREET (UK) LTD,1417918-30588046-23-100385-4392,527.04
Home Office,Home Office,25/08/2023,FULL COST,"UKASRA - Asylum Support, Resettlement & Accommodation.",BROOK STREET (UK) LTD,1406677-30588046-23-100385-6105,732.6
Home Office,Home Office,25/08/2023,FULL COST,"UKASRA - Asylum Support, Resettlement & Accommodation.",BROOK STREET (UK) LTD,1470031-30588046-23-100385-70567,846.8
Home Office,Home Office,25/08/2023,FULL COST,"UKASRA - Asylum Support, Resettlement & Accommodation.",BROOK STREET (UK) LTD,1771068-30588046-23-100385-159379,1912.55
Home Office,Home Office,25/08/2023,FULL COST,"UKASRA - Asylum Support, Resettlement & Accommodation.",BROOK STREET (UK) LTD,1421031-30588046-23-100385-229663,2755.96
Home Office,Home Office,25/08/2023,FULL COST,"UKASRA - Asylum Support, Resettlement & Accommodation.",BROOK STREET (UK) LTD,1407004-30588046-23-100385-236737,2840.84
Home Office,Home Office,25/08/2023,FULL COST,"UKASRA - Asylum Support, Resettlement & Accommodation.",BROOK STREET (UK) LTD,1406668-30588046-23-100385-373726,4484.71
Home Office,Home Office,25/08/2023,FULL COST,"UKASRA - Asylum Support, Resettlement & Accommodation.",BROOK STREET (UK) LTD,1407010-30588046-23-100385-565358,6784.3
Home Office,Home Office,25/08/2023,FULL COST,"UKASRA - Asylum Support, Resettlement & Accommodation.",BROOK STREET (UK) LTD,1417905-30588046-23-100385-6510285,78123.39
Home Office,Home Office,25/08/2023,CONT OUT SERV OTHER,"UKASRA - Asylum Support, Resettlement & Accommodation.",COMMERCIAL SERVICES TRADING LTD T/A CONNECT2STAFF,1407015-7000040973-59034-48667825,584013.9
Home Office,Home Office,29/08/2023,CONTINGENT LABOUR OTHER,"UKASRA - Asylum Support, Resettlement & Accommodation.",ADECCO UK LTD,1406403-29622478-56679-73112,877.34
Home Office,Home Office,29/08/2023,CONTINGENT LABOUR OTHER,"UKASRA - Asylum Support, Resettlement & Accommodation.",ADECCO UK LTD,1771068-29622478-56679-392563,4710.74
Home Office,Home Office,30/08/2023,OTHER ICT COSTS,"UKASRA - Asylum Support, Resettlement & Accommodation.",MASTEK (UK) LTD,1406416-90398468-351665-34387,34387
Home Office,Home Office,30/08/2023,SYSTEM CLEARING,"UKASRA - Asylum Support, Resettlement & Accommodation.",MASTEK (UK) LTD,1406417-90398469-351665-51461,51461
Home Office,Home Office,30/08/2023,SYSTEM CLEARING,"UKASRA - Asylum Support, Resettlement & Accommodation.",MASTEK (UK) LTD,1406416-90398469-351665-5935155,59351.55
Home Office,Home Office,30/08/2023,SYSTEM CLEARING,"UKASRA - Asylum Support, Resettlement & Accommodation.",MASTEK (UK) LTD,1406412-90398467-351665-94850,94850
Home Office,Home Office,30/08/2023,SYSTEM CLEARING,"UKASRA - Asylum Support, Resettlement & Accommodation.",MASTEK (UK) LTD,1406412-90398469-351665-19576095,195760.95
Home Office,Home Office,31/08/2023,BLDNG MAINT & REPAIRS,"UKASRA - Asylum Support, Resettlement & Accommodation.",MOTT MACDONALD LTD,1406412-100557348-112809-231419,23141.9
Home Office,Home Office,01/08/2023,IT RUN COST,UKBF - UK Border Force,BAE SYSTEMS APPLIED INTELLIGENCE LIMITED,1432008-1001055817-136604-116729084,1400749.01
Home Office,Home Office,01/08/2023,SYSTEM CLEARING,UKBF - UK Border Force,KINTO UK LTD,1431050-2629563-150319-28000,33600
Home Office,Home Office,02/08/2023,PROJECT,UKBF - UK Border Force,HM REVENUE & CUSTOMS,1433051-18000019622023-187546-12697803,126978.03
Home Office,Home Office,02/08/2023,SYSTEM CLEARING,UKBF - UK Border Force,KINTO UK LTD,1431050-2621026-150319-2514407,30172.88
Home Office,Home Office,02/08/2023,SYSTEM CLEARING,UKBF - UK Border Force,KINTO UK LTD,1431071-2621023-150319-2925138,35101.66
Home Office,Home Office,02/08/2023,SYSTEM CLEARING,UKBF - UK Border Force,KINTO UK LTD,1431050-2629558-150319-3181641,38179.69
Home Office,Home Office,02/08/2023,SYSTEM CLEARING,UKBF - UK Border Force,KINTO UK LTD,1431050-2629559-150319-3181641,38179.69
Home Office,Home Office,02/08/2023,IT RUN COST,UKBF - UK Border Force,MARLOWE CONSULTING LTD,1432008-502023-439582-64080,76896
Home Office,Home Office,02/08/2023,IT RUN COST,UKBF - UK Border Force,RAPISCAN SYSTEMS LTD,1432031-1249118-101000-250000,300000
Home Office,Home Office,04/08/2023,CONTINGENT LABOUR OTHER,UKBF - UK Border Force,ALEXANDER MANN SOLUTIONS LTD,1431392-2856507-560478-661563,7938.76
Home Office,Home Office,04/08/2023,FULL COST,UKBF - UK Border Force,BROOK STREET (UK) LTD,1433599-30556885-23-100385-10797,1295.64
Home Office,Home Office,04/08/2023,FULL COST,UKBF - UK Border Force,BROOK STREET (UK) LTD,1431711-30556885-23-100385-136532,1638.39
Home Office,Home Office,04/08/2023,DEFENCE,UKBF - UK Border Force,INTELLIGENT ENTERPRISE PRODUCTS LTD,1431829-SI-589-56413-275863,331035.6
Home Office,Home Office,07/08/2023,IT RUN COST,UKBF - UK Border Force,ACCENTURE (UK) LTD,1432008-3003621310-106767-93845,112614
Home Office,Home Office,07/08/2023,BASIC SALARY,UKBF - UK Border Force,ALEXANDER MANN SOLUTIONS LTD,1432008-2857623-560478-58800,58800
Home Office,Home Office,07/08/2023,IT RUN COST,UKBF - UK Border Force,BAE SYSTEMS APPLIED INTELLIGENCE LIMITED,1432008-1001055877-136604-25350,30420
Home Office,Home Office,07/08/2023,IT RUN COST,UKBF - UK Border Force,CAPGEMINI UK PLC,1432008-2600110383021-112696-174385,209262
Home Office,Home Office,07/08/2023,IT RUN COST,UKBF - UK Border Force,CAPGEMINI UK PLC,1432008-2600110382226-112696-64549965,774599.57
Home Office,Home Office,08/08/2023,IT RUN COST,UKBF - UK Border Force,BAE SYSTEMS APPLIED INTELLIGENCE LIMITED,1432008-1001055883-136604-298000,357600
Home Office,Home Office,10/08/2023,FULL COST,UKBF - UK Border Force,BROOK STREET (UK) LTD,1433599-30567400-23-100385-12261,1471.32
Home Office,Home Office,10/08/2023,FULL COST,UKBF - UK Border Force,BROOK STREET (UK) LTD,1431711-30567400-23-100385-13628,1635.36
Home Office,Home Office,10/08/2023,IT RUN COST,UKBF - UK Border Force,CACI LTD,1432008-044104-149473-9831372,983137.2
Home Office,Home Office,10/08/2023,DEFENCE,UKBF - UK Border Force,DATAMINR INC,1431829-INV6652-59547-38196,38196
Home Office,Home Office,10/08/2023,ADVERSE LEGAL,UKBF - UK Border Force,GOVERNMENT LEGAL DEPARTMENT,1433020-HOLFT-860-113504-10000,10000
Home Office,Home Office,11/08/2023,CONTINGENT LABOUR OTHER,UKBF - UK Border Force,ALEXANDER MANN SOLUTIONS LTD,1433420-2861148-560478-107788,1293.46
Home Office,Home Office,11/08/2023,CONTINGENT LABOUR OTHER,UKBF - UK Border Force,ALEXANDER MANN SOLUTIONS LTD,1431829-2861148-560478-288775,3465.3
Home Office,Home Office,14/08/2023,IT RUN COST,UKBF - UK Border Force,ALEXANDER MANN SOLUTIONS LTD,1432008-2862299-560478-71030,85236
Home Office,Home Office,14/08/2023,DEFENCE,UKBF - UK Border Force,ALEXANDER MANN SOLUTIONS LTD,1431829-2862298-560478-10833333,130000
Home Office,Home Office,14/08/2023,CONTINGENT LABOUR OTHER,UKBF - UK Border Force,ALEXANDER MANN SOLUTIONS LTD,1431392-2862310-560478-56566667,678800
Home Office,Home Office,14/08/2023,RECRUITMENT ADVERTISING,UKBF - UK Border Force,SHARED SERVICES CONNECTED LTD (SSCL),1431390-100039213-378790-21346,21346
Home Office,Home Office,15/08/2023,SYSTEM CLEARING,UKBF - UK Border Force,KINTO UK LTD,1431050-2644081-150319-4444133,53329.59
Home Office,Home Office,15/08/2023,SYSTEM CLEARING,UKBF - UK Border Force,KINTO UK LTD,1431050-2644082-150319-4444133,53329.59
Home Office,Home Office,16/08/2023,SYSTEM CLEARING,UKBF - UK Border Force,ZAIZI LTD,1432031-INV-097060-348829-9819031,117828.37
Home Office,Home Office,17/08/2023,IT RUN COST,UKBF - UK Border Force,BAE SYSTEMS APPLIED INTELLIGENCE LIMITED,1432008-1001056109-136604-108103034,1297236.41
Home Office,Home Office,18/08/2023,CONTINGENT LABOUR OTHER,UKBF - UK Border Force,ALEXANDER MANN SOLUTIONS LTD,1432008-2865788-560478-110783,1329.4
Home Office,Home Office,18/08/2023,CONTINGENT LABOUR OTHER,UKBF - UK Border Force,ALEXANDER MANN SOLUTIONS LTD,1431829-2865788-560478-288775,3465.3
Home Office,Home Office,18/08/2023,CONTINGENT LABOUR OTHER,UKBF - UK Border Force,ALEXANDER MANN SOLUTIONS LTD,1431392-2865788-560478-73507,8820.84
Home Office,Home Office,18/08/2023,FULL COST,UKBF - UK Border Force,BROOK STREET (UK) LTD,1431711-30577577-23-100385-48048,576.58
Home Office,Home Office,18/08/2023,FULL COST,UKBF - UK Border Force,BROOK STREET (UK) LTD,1433599-30577577-23-100385-121695,1460.34
Home Office,Home Office,22/08/2023,IT RUN COST,UKBF - UK Border Force,6POINT6 LTD,1431844-3693-338678-255665,306798
Home Office,Home Office,22/08/2023,SYSTEM CLEARING,UKBF - UK Border Force,IBM UNITED KINGDOM LTD,1432008-5808232375-101457-4796279,47962.79
Home Office,Home Office,24/08/2023,PROJECT,UKBF - UK Border Force,INTERSERVE (FACILITIES MANAGEMENT) LTD,1432008-357525/92828881-100369-1548586,18583.03
Home Office,Home Office,25/08/2023,CONTINGENT LABOUR OTHER,UKBF - UK Border Force,ALEXANDER MANN SOLUTIONS LTD,1433420-2870301-560478-215576,2586.92
Home Office,Home Office,25/08/2023,CONTINGENT LABOUR OTHER,UKBF - UK Border Force,ALEXANDER MANN SOLUTIONS LTD,1431392-2870301-560478-367535,4410.42
Home Office,Home Office,25/08/2023,FULL COST,UKBF - UK Border Force,BROOK STREET (UK) LTD,1433599-30588046-23-100385-91957,1103.48
Home Office,Home Office,25/08/2023,FULL COST,UKBF - UK Border Force,BROOK STREET (UK) LTD,1431711-30588046-23-100385-144486,1733.84
Home Office,Home Office,25/08/2023,SYSTEM CLEARING,UKBF - UK Border Force,KINTO UK LTD,1431050-2646364-150319-393635,48236.2
Home Office,Home Office,30/08/2023,IT RUN COST,UKBF - UK Border Force,6POINT6 LTD,1432008-3751-338678-136680,164016
Home Office,Home Office,30/08/2023,IT RUN COST,UKBF - UK Border Force,6POINT6 LTD,1432008-3727-338678-166340,199608
Home Office,Home Office,30/08/2023,IT RUN COST,UKBF - UK Border Force,6POINT6 LTD,1432008-3752-338678-1820425,218451
Home Office,Home Office,30/08/2023,IT RUN COST,UKBF - UK Border Force,6POINT6 LTD,1432008-3728-338678-182470,218964
Home Office,Home Office,30/08/2023,IT RUN COST,UKBF - UK Border Force,CAPGEMINI UK PLC,1432008-2600110385020-112696-17326115,207913.38
Home Office,Home Office,30/08/2023,IT RUN COST,UKBF - UK Border Force,CAPGEMINI UK PLC,1432008-2600110384958-112696-65050632,780607.58
Home Office,Home Office,30/08/2023,IT RUN COST,UKBF - UK Border Force,FUJITSU SERVICES LTD,1432008-1030015255-106173-4049725,48596.7
Home Office,Home Office,30/08/2023,IT RUN COST,UKBF - UK Border Force,FUJITSU SERVICES LTD,1432008-1030015511-106173-5004657,60055.88
Home Office,Home Office,30/08/2023,IT RUN COST,UKBF - UK Border Force,FUJITSU SERVICES LTD,1432008-1030015257-106173-8970448,107645.38
Home Office,Home Office,30/08/2023,IT RUN COST,UKBF - UK Border Force,FUJITSU SERVICES LTD,1432008-1030015258-106173-1437199,172463.88
Home Office,Home Office,30/08/2023,BUILDING SERVICE CHARGES,UKBF - UK Border Force,HEATHROW AIRPORT LTD,1431601-1001106522-297220-23775,28530
Home Office,Home Office,31/08/2023,LEGAL REPRESENTATION,UKBF - UK Border Force,GOVERNMENT LEGAL DEPARTMENT,1431826-531322-113504-510582,5105.82
Home Office,Home Office,31/08/2023,LEGAL REPRESENTATION,UKBF - UK Border Force,GOVERNMENT LEGAL DEPARTMENT,1431826-531369-113504-1162976,11629.76
Home Office,Home Office,31/08/2023,LEGAL ADVICE,UKBF - UK Border Force,GOVERNMENT LEGAL DEPARTMENT,1431826-531369-113504-169467,16946.7
Home Office,Home Office,31/08/2023,LEGAL ADVICE,UKBF - UK Border Force,GOVERNMENT LEGAL DEPARTMENT,1431826-531322-113504-3314128,33141.28
Home Office,Home Office,31/08/2023,CONFERENCES,UKBF - UK Border Force,NATIONAL OFFENDER MANAGEMENT SERVICE,1431258-2234070-304092-24360,24360
Home Office,Home Office,01/08/2023,SYSTEM CLEARING,UKIE - Immigration Enforcement,CLARASYS LTD,1418267-INV104827-56484-11550,13860
Home Office,Home Office,01/08/2023,ASYLUM CASES,UKIE - Immigration Enforcement,CWT UK GROUP LTD,1417111-R7065072230731-112726-7981069,79810.69
Home Office,Home Office,01/08/2023,ASYLUM CASES,UKIE - Immigration Enforcement,CWT UK GROUP LTD,1417111-23-284-9859363-112726-57359073,573590.73
Home Office,Home Office,01/08/2023,COURIER COSTS,UKIE - Immigration Enforcement,FOREIGN COMMONWEALTH & DEVELOPMENT OFFICE,1417122-20006860-113026-4073,40.73
Home Office,Home Office,01/08/2023,FCO CHARGES,UKIE - Immigration Enforcement,FOREIGN COMMONWEALTH & DEVELOPMENT OFFICE,1417122-20006860-113026-685156,6851.56
Home Office,Home Office,01/08/2023,LEGAL ADVICE,UKIE - Immigration Enforcement,GOVERNMENT LEGAL DEPARTMENT,1418422-530483-113504-239263,23926.3
Home Office,Home Office,01/08/2023,SYSTEM CLEARING,UKIE - Immigration Enforcement,VIMA CONSULTANCY LTD,1418267-1860-539299-36390,43668
Home Office,Home Office,02/08/2023,ASYLUM CASES,UKIE - Immigration Enforcement,CWT UK GROUP LTD,1417111-R7065072230801-112726-3453579,34535.79
Home Office,Home Office,03/08/2023,ASYLUM CASES,UKIE - Immigration Enforcement,CWT UK GROUP LTD,1417111-R7065072230802-112726-3306002,33060.02
Home Office,Home Office,03/08/2023,IN COUNTRY ESCORT,UKIE - Immigration Enforcement,MITIE CARE & CUSTODY LTD,1411412-186797/92832033-243944-3414818,34148.18
Home Office,Home Office,04/08/2023,CONTINGENT LABOUR OTHER,UKIE - Immigration Enforcement,ALEXANDER MANN SOLUTIONS LTD,1418277-2856507-560478-263715,3164.58
Home Office,Home Office,04/08/2023,CONTINGENT LABOUR OTHER,UKIE - Immigration Enforcement,ALEXANDER MANN SOLUTIONS LTD,1411002-2856507-560478-4018026,48216.32
Home Office,Home Office,04/08/2023,FULL COST,UKIE - Immigration Enforcement,BROOK STREET (UK) LTD,1417629-30556885-23-100385-55722,668.67
Home Office,Home Office,04/08/2023,FULL COST,UKIE - Immigration Enforcement,BROOK STREET (UK) LTD,1417908-30556885-23-100385-60699,728.39
Home Office,Home Office,04/08/2023,FULL COST,UKIE - Immigration Enforcement,BROOK STREET (UK) LTD,1418298-30556885-23-100385-6771,812.52
Home Office,Home Office,04/08/2023,FULL COST,UKIE - Immigration Enforcement,BROOK STREET (UK) LTD,1470006-30556885-23-100385-8314,997.68
Home Office,Home Office,04/08/2023,FULL COST,UKIE - Immigration Enforcement,BROOK STREET (UK) LTD,1411453-30556885-23-100385-84352,1012.23
Home Office,Home Office,04/08/2023,FULL COST,UKIE - Immigration Enforcement,BROOK STREET (UK) LTD,1418194-30556885-23-100385-16692,2003.04
Home Office,Home Office,04/08/2023,FULL COST,UKIE - Immigration Enforcement,BROOK STREET (UK) LTD,1418277-30556885-23-100385-345844,4150.13
Home Office,Home Office,04/08/2023,FULL COST,UKIE - Immigration Enforcement,BROOK STREET (UK) LTD,1417102-30556885-23-100385-407202,4886.43
Home Office,Home Office,04/08/2023,RECRUITMENT ADVERTISING,UKIE - Immigration Enforcement,CABINET OFFICE,1418283-3830026-113009-4310439,43104.39
Home Office,Home Office,04/08/2023,AD PRODUCTION,UKIE - Immigration Enforcement,CABINET OFFICE,1418279-3831579-113009-658915,65891.5
Home Office,Home Office,04/08/2023,ASYLUM CASES,UKIE - Immigration Enforcement,CWT UK GROUP LTD,1417111-R7065072230803-112726-2984785,29847.85
Home Office,Home Office,04/08/2023,CONT OUT SERV OTHER,UKIE - Immigration Enforcement,MOTT MACDONALD LTD,1411412-100554419-112809-5275913,52759.13
Home Office,Home Office,07/08/2023,SYSTEM CLEARING,UKIE - Immigration Enforcement,CLARASYS LTD,1418267-INV104662-56484-6930,8316
Home Office,Home Office,07/08/2023,SYSTEM CLEARING,UKIE - Immigration Enforcement,CLARASYS LTD,1418267-INV104698-56484-13860,16632
Home Office,Home Office,07/08/2023,ASYLUM CASES,UKIE - Immigration Enforcement,CWT UK GROUP LTD,1417111-R7065072230804-112726-4627673,46276.73
Home Office,Home Office,07/08/2023,POSTAGE,UKIE - Immigration Enforcement,DETAINEE SUPPLIES LTD,1418283-7353-51352-15,18
Home Office,Home Office,07/08/2023,MOBILE PHONES,UKIE - Immigration Enforcement,DETAINEE SUPPLIES LTD,1418283-7353-51352-238757,28650.84
Home Office,Home Office,08/08/2023,ASYLUM CASES,UKIE - Immigration Enforcement,CWT UK GROUP LTD,1417111-R7065072230807-112726-6837429,68374.29
Home Office,Home Office,09/08/2023,CAPITAL GRANTS TO CENTRAL GOVERNMENT,UKIE - Immigration Enforcement,ATOS IT SERVICES UK LTD,1418267-5584426538-108063-2553676,30644.11
Home Office,Home Office,09/08/2023,SYSTEM CLEARING,UKIE - Immigration Enforcement,GALLIFORD TRY CONSTRUCTION LTD,1411435-3122003324-126770-6464125,77569.5
Home Office,Home Office,09/08/2023,SYSTEM CLEARING,UKIE - Immigration Enforcement,GALLIFORD TRY CONSTRUCTION LTD,1411435-3122003325-126770-40376363,484516.36
Home Office,Home Office,10/08/2023,FULL COST,UKIE - Immigration Enforcement,BROOK STREET (UK) LTD,1418298-30567400-23-100385-2745,329.4
Home Office,Home Office,10/08/2023,FULL COST,UKIE - Immigration Enforcement,BROOK STREET (UK) LTD,1417629-30567400-23-100385-55722,668.66
Home Office,Home Office,10/08/2023,FULL COST,UKIE - Immigration Enforcement,BROOK STREET (UK) LTD,1417908-30567400-23-100385-60699,728.39
Home Office,Home Office,10/08/2023,FULL COST,UKIE - Immigration Enforcement,BROOK STREET (UK) LTD,1411453-30567400-23-100385-6891,826.92
Home Office,Home Office,10/08/2023,FULL COST,UKIE - Immigration Enforcement,BROOK STREET (UK) LTD,1470006-30567400-23-100385-79004,948.05
Home Office,Home Office,10/08/2023,FULL COST,UKIE - Immigration Enforcement,BROOK STREET (UK) LTD,1418194-30567400-23-100385-178155,2137.86
Home Office,Home Office,10/08/2023,FULL COST,UKIE - Immigration Enforcement,BROOK STREET (UK) LTD,1418277-30567400-23-100385-371659,4459.91
Home Office,Home Office,10/08/2023,FULL COST,UKIE - Immigration Enforcement,BROOK STREET (UK) LTD,1417102-30567400-23-100385-454341,5452.08
Home Office,Home Office,10/08/2023,ASYLUM CASES,UKIE - Immigration Enforcement,CWT UK GROUP LTD,1417111-R7065072230809-112726-4482128,44821.28
Home Office,Home Office,11/08/2023,CONTINGENT LABOUR OTHER,UKIE - Immigration Enforcement,ALEXANDER MANN SOLUTIONS LTD,1418277-2861148-560478-263715,3164.58
Home Office,Home Office,11/08/2023,CONTINGENT LABOUR OTHER,UKIE - Immigration Enforcement,ALEXANDER MANN SOLUTIONS LTD,1411002-2861148-560478-4048363,48580.36
Home Office,Home Office,11/08/2023,ASYLUM CASES,UKIE - Immigration Enforcement,CWT UK GROUP LTD,1417111-R7065072230810-112726-4549195,45491.95
Home Office,Home Office,14/08/2023,ASYLUM CASES,UKIE - Immigration Enforcement,CWT UK GROUP LTD,1417111-R7065072230811-112726-6992496,69924.96
Home Office,Home Office,14/08/2023,ASYLUM CASES,UKIE - Immigration Enforcement,CWT UK GROUP LTD,1417111-23-284-9860843-112726-42256485,422564.85
Home Office,Home Office,15/08/2023,CONTINGENT LABOUR OTHER,UKIE - Immigration Enforcement,ADECCO UK LTD,1417914-29611679-56679-4983,597.96
Home Office,Home Office,15/08/2023,CONTINGENT LABOUR OTHER,UKIE - Immigration Enforcement,ADECCO UK LTD,1417914-29605344-56679-61457,737.48
Home Office,Home Office,15/08/2023,CONTINGENT LABOUR OTHER,UKIE - Immigration Enforcement,ADECCO UK LTD,1411448-29611615-56679-73112,877.34
Home Office,Home Office,15/08/2023,CONTINGENT LABOUR OTHER,UKIE - Immigration Enforcement,ADECCO UK LTD,1417102-29611679-56679-18387,2206.44
Home Office,Home Office,15/08/2023,CONTINGENT LABOUR OTHER,UKIE - Immigration Enforcement,ADECCO UK LTD,1418258-29611679-56679-48829,5859.48
Home Office,Home Office,15/08/2023,CONTINGENT LABOUR OTHER,UKIE - Immigration Enforcement,ADECCO UK LTD,1418258-29605344-56679-507964,6095.57
Home Office,Home Office,15/08/2023,SYSTEM CLEARING,UKIE - Immigration Enforcement,CLARASYS LTD,1418267-INV104853-56484-16170,19404
Home Office,Home Office,16/08/2023,ASYLUM CASES,UKIE - Immigration Enforcement,CWT UK GROUP LTD,1417111-R7065072230815-112726-2633675,26336.75
Home Office,Home Office,16/08/2023,ASYLUM CASES,UKIE - Immigration Enforcement,CWT UK GROUP LTD,1417111-R7065072230814-112726-4276842,42768.42
Home Office,Home Office,16/08/2023,ASYLUM CASES,UKIE - Immigration Enforcement,CWT UK GROUP LTD,1417111-23-000-0058041-112726-11510132,115101.32
Home Office,Home Office,16/08/2023,IN COUNTRY ESCORT,UKIE - Immigration Enforcement,MITIE CARE & CUSTODY LTD,1411412-186797/92832029-243944-3164389,31643.89
Home Office,Home Office,16/08/2023,CONTRACTS,UKIE - Immigration Enforcement,MITIE CARE & CUSTODY LTD,1411432-229181/92833908-243944-4089986,40899.86
Home Office,Home Office,16/08/2023,IN COUNTRY ESCORT,UKIE - Immigration Enforcement,MITIE CARE & CUSTODY LTD,1411412-186797/92832038-243944-5667225,56672.25
Home Office,Home Office,16/08/2023,CONTRACTS,UKIE - Immigration Enforcement,MITIE CARE & CUSTODY LTD,1411444-30118/92835914-243944-13186023,131860.23
Home Office,Home Office,16/08/2023,IN COUNTRY ESCORT,UKIE - Immigration Enforcement,MITIE CARE & CUSTODY LTD,1411412-186797/92832026-243944-13999717,139997.17
Home Office,Home Office,16/08/2023,IN COUNTRY ESCORT,UKIE - Immigration Enforcement,MITIE CARE & CUSTODY LTD,1411412-186797/92832028-243944-15789305,157893.05
Home Office,Home Office,16/08/2023,IN COUNTRY ESCORT,UKIE - Immigration Enforcement,MITIE CARE & CUSTODY LTD,1411412-186797/92832041-243944-16875753,168757.53
Home Office,Home Office,16/08/2023,OVERSEAS ESCORTS,UKIE - Immigration Enforcement,MITIE CARE & CUSTODY LTD,1411413-186797/92832025-243944-23628485,236284.85
Home Office,Home Office,16/08/2023,IN COUNTRY ESCORT,UKIE - Immigration Enforcement,MITIE CARE & CUSTODY LTD,1411412-186797/92832040-243944-24469415,244694.15
Home Office,Home Office,16/08/2023,CONTRACTS,UKIE - Immigration Enforcement,MITIE CARE & CUSTODY LTD,1411453-229181/92833819-243944-59332693,593326.93
Home Office,Home Office,16/08/2023,CONTRACTS,UKIE - Immigration Enforcement,MITIE CARE & CUSTODY LTD,1411432-229181/92833769-243944-78816451,788164.51
Home Office,Home Office,16/08/2023,IN COUNTRY ESCORT,UKIE - Immigration Enforcement,MITIE CARE & CUSTODY LTD,1411412-186797/92832024-243944-80885183,808851.83
Home Office,Home Office,16/08/2023,IN COUNTRY ESCORT,UKIE - Immigration Enforcement,MITIE CARE & CUSTODY LTD,1411412-186797/92832030-243944-10496205,1049620.5
Home Office,Home Office,16/08/2023,IN COUNTRY ESCORT,UKIE - Immigration Enforcement,MITIE CARE & CUSTODY LTD,1411412-186797/92832027-243944-180850529,1808505.29
Home Office,Home Office,16/08/2023,CONTRACTS,UKIE - Immigration Enforcement,MITIE CARE & CUSTODY LTD,1411444-30118/92832023-243944-200619721,2006197.21
Home Office,Home Office,16/08/2023,CONTRACTS,UKIE - Immigration Enforcement,SERCO LTD,1411447-91934199-158586-2142196,21421.96
Home Office,Home Office,16/08/2023,CONTRACTS,UKIE - Immigration Enforcement,SERCO LTD,1411431-91937239-158586-5370424,53704.24
Home Office,Home Office,16/08/2023,CONTRACTS,UKIE - Immigration Enforcement,SERCO LTD,1411431-91937238-158586-78414756,784147.56
Home Office,Home Office,16/08/2023,CONTRACTS,UKIE - Immigration Enforcement,SERCO LTD,1411447-91938151-158586-222480981,2224809.81
Home Office,Home Office,17/08/2023,ASYLUM CASES,UKIE - Immigration Enforcement,CWT UK GROUP LTD,1417111-R7065072230816-112726-6390059,63900.59
Home Office,Home Office,17/08/2023,ELECTRICITY,UKIE - Immigration Enforcement,EDF ENERGY,1411444-000016169190-153766-7646109,91753.31
Home Office,Home Office,17/08/2023,CONT OUT SERV OTHER,UKIE - Immigration Enforcement,FAITHFUL AND GOULD,1411010-23021455-53010-13889091,138890.91
Home Office,Home Office,17/08/2023,PROJECT,UKIE - Immigration Enforcement,FAITHFUL AND GOULD,1411010-23021455-53010-14187356,170248.28
Home Office,Home Office,17/08/2023,CONTRACTS,UKIE - Immigration Enforcement,MITIE CARE & CUSTODY LTD,1411453-229181/92813514-243944-4146305,41463.05
Home Office,Home Office,18/08/2023,CONTINGENT LABOUR OTHER,UKIE - Immigration Enforcement,ALEXANDER MANN SOLUTIONS LTD,1418277-2865788-560478-263715,3164.58
Home Office,Home Office,18/08/2023,CONTINGENT LABOUR OTHER,UKIE - Immigration Enforcement,ALEXANDER MANN SOLUTIONS LTD,1411002-2865788-560478-12745348,152944.2
Home Office,Home Office,18/08/2023,FULL COST,UKIE - Immigration Enforcement,BROOK STREET (UK) LTD,1418298-30577577-23-100385-53985,647.82
Home Office,Home Office,18/08/2023,FULL COST,UKIE - Immigration Enforcement,BROOK STREET (UK) LTD,1417629-30577577-23-100385-55722,668.67
Home Office,Home Office,18/08/2023,FULL COST,UKIE - Immigration Enforcement,BROOK STREET (UK) LTD,1417908-30577577-23-100385-60699,728.39
Home Office,Home Office,18/08/2023,FULL COST,UKIE - Immigration Enforcement,BROOK STREET (UK) LTD,1411453-30577577-23-100385-6891,826.92
Home Office,Home Office,18/08/2023,FULL COST,UKIE - Immigration Enforcement,BROOK STREET (UK) LTD,1470006-30577577-23-100385-8245,989.4
Home Office,Home Office,18/08/2023,FULL COST,UKIE - Immigration Enforcement,BROOK STREET (UK) LTD,1418194-30577577-23-100385-166117,1993.41
Home Office,Home Office,18/08/2023,FULL COST,UKIE - Immigration Enforcement,BROOK STREET (UK) LTD,1418277-30577577-23-100385-257115,3085.38
Home Office,Home Office,18/08/2023,FULL COST,UKIE - Immigration Enforcement,BROOK STREET (UK) LTD,1417102-30577577-23-100385-29526,3543.12
Home Office,Home Office,18/08/2023,OVERSEAS ESCORTS,UKIE - Immigration Enforcement,MITIE CARE & CUSTODY LTD,1411413-186797/92834229-243944-4176988,41769.88
Home Office,Home Office,18/08/2023,IN COUNTRY ESCORT,UKIE - Immigration Enforcement,MITIE CARE & CUSTODY LTD,1411412-186797/92832079-243944-5890925,58909.25
Home Office,Home Office,18/08/2023,OVERSEAS ESCORTS,UKIE - Immigration Enforcement,MITIE CARE & CUSTODY LTD,1418194-186797/92834209-243944-6707187,67071.87
Home Office,Home Office,18/08/2023,IN COUNTRY ESCORT,UKIE - Immigration Enforcement,MITIE CARE & CUSTODY LTD,1411412-186797/92832117-243944-6758186,67581.86
Home Office,Home Office,18/08/2023,OVERSEAS ESCORTS,UKIE - Immigration Enforcement,MITIE CARE & CUSTODY LTD,1411413-186797/92834012-243944-14065231,140652.31
Home Office,Home Office,18/08/2023,OVERSEAS ESCORTS,UKIE - Immigration Enforcement,MITIE CARE & CUSTODY LTD,1411413-186797/92833954-243944-26976438,269764.38
Home Office,Home Office,18/08/2023,VOLUNTARY ASSISTED RETURNS,UKIE - Immigration Enforcement,PREPAID FINANCIAL SERVICES,1418194-449-55118-500000,500000
Home Office,Home Office,21/08/2023,CONTINGENT LABOUR OTHER,UKIE - Immigration Enforcement,ADECCO UK LTD,1417102-29617005-56679-2895,347.4
Home Office,Home Office,21/08/2023,CONTINGENT LABOUR OTHER,UKIE - Immigration Enforcement,ADECCO UK LTD,1417707-29616944-56679-72618,871.42
Home Office,Home Office,21/08/2023,CONTINGENT LABOUR OTHER,UKIE - Immigration Enforcement,ADECCO UK LTD,1417914-29617005-56679-122914,1474.96
Home Office,Home Office,21/08/2023,CONTINGENT LABOUR OTHER,UKIE - Immigration Enforcement,ADECCO UK LTD,1411448-29616944-56679-354893,4258.7
Home Office,Home Office,21/08/2023,CONTINGENT LABOUR OTHER,UKIE - Immigration Enforcement,ADECCO UK LTD,1418258-29617005-56679-60409,7249.08
Home Office,Home Office,22/08/2023,ASYLUM CASES,UKIE - Immigration Enforcement,CWT UK GROUP LTD,1417111-R7065072230821-112726-3736391,37363.91
Home Office,Home Office,22/08/2023,ASYLUM CASES,UKIE - Immigration Enforcement,CWT UK GROUP LTD,1417111-R7065072230818-112726-5865626,58656.26
Home Office,Home Office,23/08/2023,SYSTEM CLEARING,UKIE - Immigration Enforcement,BJSS LIMITED,1418267-INV-UK025546-508104-28810,34572
Home Office,Home Office,23/08/2023,SYSTEM CLEARING,UKIE - Immigration Enforcement,BJSS LIMITED,1418267-INV-UK025562-508104-14519435,174233.22
Home Office,Home Office,23/08/2023,ASYLUM CASES,UKIE - Immigration Enforcement,CWT UK GROUP LTD,1417111-R7065072230822-112726-3185178,31851.78
Home Office,Home Office,23/08/2023,COURIER COSTS,UKIE - Immigration Enforcement,FOREIGN COMMONWEALTH & DEVELOPMENT OFFICE,1417122-20007983-113026-7852,78.52
Home Office,Home Office,23/08/2023,TRANSFERS,UKIE - Immigration Enforcement,FOREIGN COMMONWEALTH & DEVELOPMENT OFFICE,1417123-20005436-113026-92525,925.25
Home Office,Home Office,23/08/2023,FCO CHARGES,UKIE - Immigration Enforcement,FOREIGN COMMONWEALTH & DEVELOPMENT OFFICE,1417122-20007983-113026-377261,3772.61
Home Office,Home Office,23/08/2023,FCO CHARGES,UKIE - Immigration Enforcement,FOREIGN COMMONWEALTH & DEVELOPMENT OFFICE,1417122-20005436-113026-1016936,10169.36
Home Office,Home Office,23/08/2023,CURFEW & ELECTRONIC MONITORING,UKIE - Immigration Enforcement,MINISTRY OF JUSTICE,1418258-2267351-199603-189403253,2272839.04
Home Office,Home Office,23/08/2023,VOLUNTARY ASSISTED RETURNS,UKIE - Immigration Enforcement,PREPAID FINANCIAL SERVICES,1418194-451-55118-500000,500000
Home Office,Home Office,24/08/2023,ASYLUM CASES,UKIE - Immigration Enforcement,CWT UK GROUP LTD,1417111-R7065072230823-112726-7471274,74712.74
Home Office,Home Office,24/08/2023,CONT OUT SERV OTHER,UKIE - Immigration Enforcement,FAITHFUL AND GOULD,1411435-23034362-53010-121600,145920
Home Office,Home Office,24/08/2023,FCO CHARGES,UKIE - Immigration Enforcement,FOREIGN COMMONWEALTH & DEVELOPMENT OFFICE,1417122-20007198-113026-588619,5886.19
Home Office,Home Office,24/08/2023,MINOR WORK,UKIE - Immigration Enforcement,GALLIFORD TRY CONSTRUCTION LTD,1411010-3122003328B-126770-48268916,579226.99
Home Office,Home Office,24/08/2023,CURFEW & ELECTRONIC MONITORING,UKIE - Immigration Enforcement,MINISTRY OF JUSTICE,1418277-2262655-2-199603-5449596,65395.15
Home Office,Home Office,24/08/2023,CURFEW & ELECTRONIC MONITORING,UKIE - Immigration Enforcement,MINISTRY OF JUSTICE,1418277-2264091-2-199603-66906,80287.2
Home Office,Home Office,24/08/2023,CURFEW & ELECTRONIC MONITORING,UKIE - Immigration Enforcement,MINISTRY OF JUSTICE,1418258-2262206-2-199603-46364747,556376.96
Home Office,Home Office,24/08/2023,OVERSEAS ESCORTS,UKIE - Immigration Enforcement,MITIE CARE & CUSTODY LTD,1411413-186797/92833965-243944-45821689,458216.89
Home Office,Home Office,25/08/2023,CONTINGENT LABOUR OTHER,UKIE - Immigration Enforcement,ALEXANDER MANN SOLUTIONS LTD,1418277-2870301-560478-263715,3164.58
Home Office,Home Office,25/08/2023,CONTINGENT LABOUR OTHER,UKIE - Immigration Enforcement,ALEXANDER MANN SOLUTIONS LTD,1411002-2870301-560478-4017537,48210.45
Home Office,Home Office,25/08/2023,FULL COST,UKIE - Immigration Enforcement,BROOK STREET (UK) LTD,1417629-30588046-23-100385-55722,668.66
Home Office,Home Office,25/08/2023,FULL COST,UKIE - Immigration Enforcement,BROOK STREET (UK) LTD,1470006-30588046-23-100385-64513,774.16
Home Office,Home Office,25/08/2023,FULL COST,UKIE - Immigration Enforcement,BROOK STREET (UK) LTD,1418298-30588046-23-100385-6771,812.52
Home Office,Home Office,25/08/2023,FULL COST,UKIE - Immigration Enforcement,BROOK STREET (UK) LTD,1417908-30588046-23-100385-86574,1038.89
Home Office,Home Office,25/08/2023,FULL COST,UKIE - Immigration Enforcement,BROOK STREET (UK) LTD,1418194-30588046-23-100385-130807,1569.68
Home Office,Home Office,25/08/2023,FULL COST,UKIE - Immigration Enforcement,BROOK STREET (UK) LTD,1417102-30588046-23-100385-229102,2749.22
Home Office,Home Office,25/08/2023,FULL COST,UKIE - Immigration Enforcement,BROOK STREET (UK) LTD,1418277-30588046-23-100385-312015,3744.18
Home Office,Home Office,25/08/2023,ASYLUM CASES,UKIE - Immigration Enforcement,CWT UK GROUP LTD,1417111-R7065072230824-112726-5880677,58806.77
Home Office,Home Office,25/08/2023,FOREIGN RAIL TRAVEL,UKIE - Immigration Enforcement,FOREIGN COMMONWEALTH & DEVELOPMENT OFFICE,1417123-20008799-113026-162,16.2
Home Office,Home Office,25/08/2023,TAXI SERVICES,UKIE - Immigration Enforcement,FOREIGN COMMONWEALTH & DEVELOPMENT OFFICE,1417123-20008799-113026-2508,25.08
Home Office,Home Office,25/08/2023,FOREIGN SUBSISTENCE,UKIE - Immigration Enforcement,FOREIGN COMMONWEALTH & DEVELOPMENT OFFICE,1417123-20008799-113026-6547,65.47
Home Office,Home Office,25/08/2023,OTHER FOREIGN TRAVEL,UKIE - Immigration Enforcement,FOREIGN COMMONWEALTH & DEVELOPMENT OFFICE,1417123-20008799-113026-12142,121.42
Home Office,Home Office,25/08/2023,OFFICE MACHINERY,UKIE - Immigration Enforcement,FOREIGN COMMONWEALTH & DEVELOPMENT OFFICE,1417123-20007658-113026-999898,9998.98
Home Office,Home Office,25/08/2023,FCO CHARGES,UKIE - Immigration Enforcement,FOREIGN COMMONWEALTH & DEVELOPMENT OFFICE,1417122-20008799-113026-1670357,16703.57
Home Office,Home Office,25/08/2023,FCO CHARGES,UKIE - Immigration Enforcement,FOREIGN COMMONWEALTH & DEVELOPMENT OFFICE,1417122-20007658-113026-2801085,28010.85
Home Office,Home Office,25/08/2023,FCO CHARGES,UKIE - Immigration Enforcement,FOREIGN COMMONWEALTH & DEVELOPMENT OFFICE,1417122-20008419-113026-2845376,28453.76
Home Office,Home Office,25/08/2023,PROJECT,UKIE - Immigration Enforcement,MACE LTD,1411017-2101030125-276494-9394355,112732.26
Home Office,Home Office,25/08/2023,CURFEW & ELECTRONIC MONITORING,UKIE - Immigration Enforcement,NATIONAL OFFENDER MANAGEMENT SERVICE,1418258-2267352-304092-27796,33355.2
Home Office,Home Office,25/08/2023,ELECTRICITY,UKIE - Immigration Enforcement,SSE ENERGY SOLUTIONS,1411432-31898118/0014-59203-2920149,35041.78
Home Office,Home Office,25/08/2023,ELECTRICITY,UKIE - Immigration Enforcement,SSE ENERGY SOLUTIONS,1411432-31898118/0015-59203-3204385,38452.62
Home Office,Home Office,29/08/2023,CONTINGENT LABOUR OTHER,UKIE - Immigration Enforcement,ADECCO UK LTD,1417914-29622478-56679-61457,737.48
Home Office,Home Office,29/08/2023,CONTINGENT LABOUR OTHER,UKIE - Immigration Enforcement,ADECCO UK LTD,1411431-29622419-56679-7141,856.92
Home Office,Home Office,29/08/2023,CONTINGENT LABOUR OTHER,UKIE - Immigration Enforcement,ADECCO UK LTD,1411401-29622419-56679-146224,1754.68
Home Office,Home Office,29/08/2023,CONTINGENT LABOUR OTHER,UKIE - Immigration Enforcement,ADECCO UK LTD,1411448-29622419-56679-516954,6203.43
Home Office,Home Office,29/08/2023,CONTINGENT LABOUR OTHER,UKIE - Immigration Enforcement,ADECCO UK LTD,1418258-29622478-56679-593367,7120.41
Home Office,Home Office,29/08/2023,SYSTEM CLEARING,UKIE - Immigration Enforcement,BJSS LIMITED,1418267-INV-UK025550-508104-54180,65016
Home Office,Home Office,30/08/2023,IT RUN COST,UKIE - Immigration Enforcement,CONEXIA LTD,1418266-6032639532-158585-2103775,25245.3
Home Office,Home Office,30/08/2023,PUBLICATION,UKIE - Immigration Enforcement,CONEXIA LTD,1417713-6032639735-158585-281845,33821.4
Home Office,Home Office,30/08/2023,ASYLUM CASES,UKIE - Immigration Enforcement,CWT UK GROUP LTD,1417111-R7065072230829-112726-5163272,51632.72
Home Office,Home Office,30/08/2023,ASYLUM CASES,UKIE - Immigration Enforcement,CWT UK GROUP LTD,1417111-R7065072230825-112726-9700126,97001.26
Home Office,Home Office,31/08/2023,ASYLUM CASES,UKIE - Immigration Enforcement,CWT UK GROUP LTD,1417111-R7065072230830-112726-10110024,101100.24
Home Office,Home Office,31/08/2023,ASYLUM CASES,UKIE - Immigration Enforcement,CWT UK GROUP LTD,1417111-23-284-9862580-112726-34155126,341551.26
Home Office,Home Office,31/08/2023,CONTRACTS,UKIE - Immigration Enforcement,SERCO LTD,1411447-91939423-158586-2672902,26729.02
Home Office,Home Office,31/08/2023,CONTRACTS,UKIE - Immigration Enforcement,SERCO LTD,1411431-91939426-158586-57348831,573488.31
Home Office,Home Office,31/08/2023,CONTRACTS,UKIE - Immigration Enforcement,SERCO LTD,1411431-91940016-158586-57348831,573488.31
Home Office,Home Office,01/08/2023,CONTINGENT LABOUR OTHER,UKVIP - Visas Information & Passports,ADECCO UK LTD,1508462-29594327-56679-32604,391.25
Home Office,Home Office,03/08/2023,FULL COST,UKVIP - Visas Information & Passports,BROOK STREET (UK) LTD,1508462-30551011-23-100385-16665301,199983.53
Home Office,Home Office,04/08/2023,CONTINGENT LABOUR OTHER,UKVIP - Visas Information & Passports,ALEXANDER MANN SOLUTIONS LTD,1486657-2856507-560478-307965,3695.58
Home Office,Home Office,04/08/2023,CONTINGENT LABOUR OTHER,UKVIP - Visas Information & Passports,ALEXANDER MANN SOLUTIONS LTD,1501028-2856507-560478-34653,4158.36
Home Office,Home Office,04/08/2023,CONTINGENT LABOUR OTHER,UKVIP - Visas Information & Passports,ALEXANDER MANN SOLUTIONS LTD,1501026-2856507-560478-384065,4608.78
Home Office,Home Office,04/08/2023,CONTINGENT LABOUR OTHER,UKVIP - Visas Information & Passports,ALEXANDER MANN SOLUTIONS LTD,1508442-2856507-560478-8104,9724.8
Home Office,Home Office,04/08/2023,PASSPORT APPLICATION FORMS,UKVIP - Visas Information & Passports,ALLIED PUBLICITY SERVICES (MANCHESTER) LIMITED,1508636-C79313-500635-4334219,52010.63
Home Office,Home Office,04/08/2023,FULL COST,UKVIP - Visas Information & Passports,BROOK STREET (UK) LTD,1406696-30556885-23-100385-53761,645.13
Home Office,Home Office,04/08/2023,FULL COST,UKVIP - Visas Information & Passports,BROOK STREET (UK) LTD,1508462-30556885-23-100385-70567,846.81
Home Office,Home Office,04/08/2023,FULL COST,UKVIP - Visas Information & Passports,BROOK STREET (UK) LTD,1406956-30556885-23-100385-71986,863.83
Home Office,Home Office,04/08/2023,FULL COST,UKVIP - Visas Information & Passports,BROOK STREET (UK) LTD,1417207-30556885-23-100385-116944,1403.33
Home Office,Home Office,04/08/2023,FULL COST,UKVIP - Visas Information & Passports,BROOK STREET (UK) LTD,1406686-30556885-23-100385-338552,4062.62
Home Office,Home Office,07/08/2023,SECURITY GUARDS,UKVIP - Visas Information & Passports,ALEXANDER MANN SOLUTIONS LTD,1508443-2857616-560478-129658,155589.6
Home Office,Home Office,07/08/2023,IT RUN COST,UKVIP - Visas Information & Passports,ATOS IT SERVICES UK LTD,1508572-5584426472-108063-34906,41887.2
Home Office,Home Office,07/08/2023,PASSPORT BPO,UKVIP - Visas Information & Passports,CSC COMPUTER SCIENCES CORPORATION,1508414-5201877022-222226-103896,103896
Home Office,Home Office,07/08/2023,PASSPORT BPO,UKVIP - Visas Information & Passports,CSC COMPUTER SCIENCES CORPORATION,1508414-5201877019-222226-11740404,117404.04
Home Office,Home Office,07/08/2023,PASSPORT BPO,UKVIP - Visas Information & Passports,CSC COMPUTER SCIENCES CORPORATION,1508414-5201877013-222226-63439426,634394.26
Home Office,Home Office,07/08/2023,IT RUN COST,UKVIP - Visas Information & Passports,ENTSERV UK LTD,1508572-6129614-102438-12313309,147759.71
Home Office,Home Office,07/08/2023,PRINT,UKVIP - Visas Information & Passports,THALES DIS UK LTD,1508411-101423002255-516500-232416577,2324165.77
Home Office,Home Office,07/08/2023,PRINT,UKVIP - Visas Information & Passports,THALES DIS UK LTD,1508411-101423002254-516500-258771632,2587716.32
Home Office,Home Office,10/08/2023,FULL COST,UKVIP - Visas Information & Passports,BROOK STREET (UK) LTD,1508462-30567400-23-100385-70567,846.8
Home Office,Home Office,10/08/2023,FULL COST,UKVIP - Visas Information & Passports,BROOK STREET (UK) LTD,1406696-30567400-23-100385-96624,1159.49
Home Office,Home Office,10/08/2023,FULL COST,UKVIP - Visas Information & Passports,BROOK STREET (UK) LTD,1417207-30567400-23-100385-114095,1369.14
Home Office,Home Office,10/08/2023,FULL COST,UKVIP - Visas Information & Passports,BROOK STREET (UK) LTD,1406956-30567400-23-100385-266948,3203.37
Home Office,Home Office,10/08/2023,FULL COST,UKVIP - Visas Information & Passports,BROOK STREET (UK) LTD,1406686-30567400-23-100385-343877,4126.52
Home Office,Home Office,10/08/2023,FULL COST,UKVIP - Visas Information & Passports,BROOK STREET (UK) LTD,1508462-30561596-23-100385-15424407,185092.8
Home Office,Home Office,10/08/2023,CALL CENTRE PDP RUN COSTS,UKVIP - Visas Information & Passports,SERCO LTD,1508414-91937687-158586-36895715,368957.15
Home Office,Home Office,11/08/2023,CONTINGENT LABOUR OTHER,UKVIP - Visas Information & Passports,ALEXANDER MANN SOLUTIONS LTD,1501028-2861148-560478-34653,4158.36
Home Office,Home Office,11/08/2023,CONTINGENT LABOUR OTHER,UKVIP - Visas Information & Passports,ALEXANDER MANN SOLUTIONS LTD,1501026-2861148-560478-384065,4608.78
Home Office,Home Office,11/08/2023,CONTINGENT LABOUR OTHER,UKVIP - Visas Information & Passports,ALEXANDER MANN SOLUTIONS LTD,1508442-2861148-560478-4052,4862.4
Home Office,Home Office,11/08/2023,CONTINGENT LABOUR OTHER,UKVIP - Visas Information & Passports,ALEXANDER MANN SOLUTIONS LTD,1486657-2861148-560478-41062,4927.44
Home Office,Home Office,11/08/2023,CONTINGENT LABOUR OTHER,UKVIP - Visas Information & Passports,ALEXANDER MANN SOLUTIONS LTD,1508572-2861148-560478-1065558,12786.7
Home Office,Home Office,11/08/2023,CONTINGENT LABOUR OTHER,UKVIP - Visas Information & Passports,ALEXANDER MANN SOLUTIONS LTD,1508038-2862314-560478-147000,176400
Home Office,Home Office,14/08/2023,SYSTEM CLEARING,UKVIP - Visas Information & Passports,KAINOS,1508040-KSUK04929-207476-39783467,477401.6
Home Office,Home Office,15/08/2023,CONTINGENT LABOUR OTHER,UKVIP - Visas Information & Passports,ADECCO UK LTD,1406686-29605345-56679-36056,432.67
Home Office,Home Office,15/08/2023,CONTINGENT LABOUR OTHER,UKVIP - Visas Information & Passports,ADECCO UK LTD,1508462-29611615-56679-54834,658.01
Home Office,Home Office,15/08/2023,CONTINGENT LABOUR OTHER,UKVIP - Visas Information & Passports,ADECCO UK LTD,1406696-29605344-56679-98553,1182.64
Home Office,Home Office,15/08/2023,CONTINGENT LABOUR OTHER,UKVIP - Visas Information & Passports,ADECCO UK LTD,1508641-29605344-56679-122914,1474.96
Home Office,Home Office,15/08/2023,CONTINGENT LABOUR OTHER,UKVIP - Visas Information & Passports,ADECCO UK LTD,1406696-29611618-56679-139754,1677.05
Home Office,Home Office,15/08/2023,CONTINGENT LABOUR OTHER,UKVIP - Visas Information & Passports,ADECCO UK LTD,1406686-29611679-56679-230635,2767.62
Home Office,Home Office,15/08/2023,CONTINGENT LABOUR OTHER,UKVIP - Visas Information & Passports,ADECCO UK LTD,1406956-29611615-56679-343238,4118.84
Home Office,Home Office,15/08/2023,CONTINGENT LABOUR OTHER,UKVIP - Visas Information & Passports,ADECCO UK LTD,1406686-29605344-56679-539431,6473.18
Home Office,Home Office,15/08/2023,CONTINGENT LABOUR OTHER,UKVIP - Visas Information & Passports,ADECCO UK LTD,1508462-29611679-56679-841485,10097.83
Home Office,Home Office,15/08/2023,CONTINGENT LABOUR OTHER,UKVIP - Visas Information & Passports,ADECCO UK LTD,1406686-29611618-56679-2460392,29524.7
Home Office,Home Office,15/08/2023,CONTINGENT LABOUR OTHER,UKVIP - Visas Information & Passports,ADECCO UK LTD,1508462-29605344-56679-3765169,45181.96
Home Office,Home Office,15/08/2023,SYSTEM CLEARING,UKVIP - Visas Information & Passports,MASTEK (UK) LTD,1486657-90398379-351665-14716575,147165.75
Home Office,Home Office,15/08/2023,SYSTEM CLEARING,UKVIP - Visas Information & Passports,MASTEK (UK) LTD,1486657-90398380-351665-30678475,306784.75
Home Office,Home Office,16/08/2023,SYSTEM CLEARING,UKVIP - Visas Information & Passports,EQUAL EXPERTS UK LTD,1508626-INV-13170-321797-84115,84115
Home Office,Home Office,16/08/2023,CALL CENTRE PDP RUN COSTS,UKVIP - Visas Information & Passports,TELEPERFORMANCE LTD,1508443-TPUK-INV000007505-216073-13741756,137417.56
Home Office,Home Office,16/08/2023,CALL CENTRE PDP RUN COSTS,UKVIP - Visas Information & Passports,TELEPERFORMANCE LTD,1508443-TPUK-INV000007507-216073-21543893,215438.93
Home Office,Home Office,16/08/2023,CALL CENTRE PDP RUN COSTS,UKVIP - Visas Information & Passports,TELEPERFORMANCE LTD,1508443-TPUK-INV000007506-216073-78153176,781531.76
Home Office,Home Office,17/08/2023,FULL COST,UKVIP - Visas Information & Passports,BROOK STREET (UK) LTD,1508462-30571851-23-100385-15439279,185271.25
Home Office,Home Office,17/08/2023,SYSTEM CLEARING,UKVIP - Visas Information & Passports,EQUAL EXPERTS UK LTD,1508626-INV-13166-321797-9570375,95703.75
Home Office,Home Office,17/08/2023,SYSTEM CLEARING,UKVIP - Visas Information & Passports,EQUAL EXPERTS UK LTD,1508626-INV-13167-321797-597375,597375
Home Office,Home Office,18/08/2023,CONTINGENT LABOUR OTHER,UKVIP - Visas Information & Passports,ADECCO UK LTD,1508462-29605308-56679-32604,391.25
Home Office,Home Office,18/08/2023,CONTINGENT LABOUR OTHER,UKVIP - Visas Information & Passports,ADECCO UK LTD,1508462-29583682-56679-54834,658.01
Home Office,Home Office,18/08/2023,CONTINGENT LABOUR OTHER,UKVIP - Visas Information & Passports,ADECCO UK LTD,1406956-29605308-56679-32743,3929.14
Home Office,Home Office,18/08/2023,CONTINGENT LABOUR OTHER,UKVIP - Visas Information & Passports,ALEXANDER MANN SOLUTIONS LTD,1501028-2865788-560478-207918,2495.02
Home Office,Home Office,18/08/2023,CONTINGENT LABOUR OTHER,UKVIP - Visas Information & Passports,ALEXANDER MANN SOLUTIONS LTD,1486657-2865788-560478-307965,3695.58
Home Office,Home Office,18/08/2023,CONTINGENT LABOUR OTHER,UKVIP - Visas Information & Passports,ALEXANDER MANN SOLUTIONS LTD,1501026-2865788-560478-384065,4608.78
Home Office,Home Office,18/08/2023,CONTINGENT LABOUR OTHER,UKVIP - Visas Information & Passports,ALEXANDER MANN SOLUTIONS LTD,1508442-2865788-560478-4052,4862.4
Home Office,Home Office,18/08/2023,FULL COST,UKVIP - Visas Information & Passports,BROOK STREET (UK) LTD,1508462-30577577-23-100385-69338,832.06
Home Office,Home Office,18/08/2023,FULL COST,UKVIP - Visas Information & Passports,BROOK STREET (UK) LTD,1406696-30577577-23-100385-107522,1290.26
Home Office,Home Office,18/08/2023,FULL COST,UKVIP - Visas Information & Passports,BROOK STREET (UK) LTD,1417207-30577577-23-100385-114095,1369.14
Home Office,Home Office,18/08/2023,FULL COST,UKVIP - Visas Information & Passports,BROOK STREET (UK) LTD,1406956-30577577-23-100385-252006,3024.08
Home Office,Home Office,18/08/2023,FULL COST,UKVIP - Visas Information & Passports,BROOK STREET (UK) LTD,1406686-30577577-23-100385-45704,5484.47
Home Office,Home Office,21/08/2023,CONTINGENT LABOUR OTHER,UKVIP - Visas Information & Passports,ADECCO UK LTD,1508462-29616944-56679-54834,658.01
Home Office,Home Office,21/08/2023,CONTINGENT LABOUR OTHER,UKVIP - Visas Information & Passports,ADECCO UK LTD,1406940-29616949-56679-103411,1240.93
Home Office,Home Office,21/08/2023,CONTINGENT LABOUR OTHER,UKVIP - Visas Information & Passports,ADECCO UK LTD,1508700-29616989-56679-146224,1754.68
Home Office,Home Office,21/08/2023,CONTINGENT LABOUR OTHER,UKVIP - Visas Information & Passports,ADECCO UK LTD,1406696-29616949-56679-197654,2371.85
Home Office,Home Office,21/08/2023,CONTINGENT LABOUR OTHER,UKVIP - Visas Information & Passports,ADECCO UK LTD,1406686-29617005-56679-199755,2397.06
Home Office,Home Office,21/08/2023,CONTINGENT LABOUR OTHER,UKVIP - Visas Information & Passports,ADECCO UK LTD,1406956-29616944-56679-319154,3829.84
Home Office,Home Office,21/08/2023,CONTINGENT LABOUR OTHER,UKVIP - Visas Information & Passports,ADECCO UK LTD,1508462-29617005-56679-1132461,13589.53
Home Office,Home Office,21/08/2023,CONTINGENT LABOUR OTHER,UKVIP - Visas Information & Passports,ADECCO UK LTD,1406686-29616949-56679-2332743,27992.92
Home Office,Home Office,21/08/2023,CONTINGENT LABOUR OTHER,UKVIP - Visas Information & Passports,ADECCO UK LTD,1508462-29616989-56679-2646258,31755.1
Home Office,Home Office,21/08/2023,OVERSEAS PASSPORT DIRECT COST,UKVIP - Visas Information & Passports,DHL GLOBAL FORWARDING UK LTD,1508008-H1501298-246751-2085351,25024.21
Home Office,Home Office,21/08/2023,OVERSEAS PASSPORT DIRECT COST,UKVIP - Visas Information & Passports,DHL GLOBAL FORWARDING UK LTD,1508008-H1501302-246751-59445,71334
Home Office,Home Office,21/08/2023,OVERSEAS PASSPORT DIRECT COST,UKVIP - Visas Information & Passports,DHL GLOBAL FORWARDING UK LTD,1508008-H1501295-246751-94805868,948058.68
Home Office,Home Office,22/08/2023,CONTINGENT LABOUR OTHER,UKVIP - Visas Information & Passports,DELOITTE LLP,1501032-8003868149-112904-209625,25155
Home Office,Home Office,22/08/2023,LEGAL REPRESENTATION,UKVIP - Visas Information & Passports,GOVERNMENT LEGAL DEPARTMENT,1406940-531316-113504-51854718,518547.18
Home Office,Home Office,22/08/2023,LEGAL ADVICE,UKVIP - Visas Information & Passports,GOVERNMENT LEGAL DEPARTMENT,1406940-531316-113504-125659565,1256595.65
Home Office,Home Office,22/08/2023,VISA COMMERCIAL PARTNERS,UKVIP - Visas Information & Passports,TELEPERFORMANCE LTD,1508008-TPUK-INV000007379-216073-23120,23120
Home Office,Home Office,23/08/2023,SYSTEM CLEARING,UKVIP - Visas Information & Passports,MASTEK (UK) LTD,1486657-90398381-351665-36120588,361205.88
Home Office,Home Office,24/08/2023,OTHER ICT COSTS,UKVIP - Visas Information & Passports,FOREIGN COMMONWEALTH & DEVELOPMENT OFFICE,1406662-20007198-113026-40857,408.57
Home Office,Home Office,25/08/2023,CONTINGENT LABOUR OTHER,UKVIP - Visas Information & Passports,ALEXANDER MANN SOLUTIONS LTD,1501028-2870301-560478-311877,3742.52
Home Office,Home Office,25/08/2023,CONTINGENT LABOUR OTHER,UKVIP - Visas Information & Passports,ALEXANDER MANN SOLUTIONS LTD,1501026-2870301-560478-384065,4608.78
Home Office,Home Office,25/08/2023,CONTINGENT LABOUR OTHER,UKVIP - Visas Information & Passports,ALEXANDER MANN SOLUTIONS LTD,1508442-2870301-560478-4052,4862.4
Home Office,Home Office,25/08/2023,CONTINGENT LABOUR OTHER,UKVIP - Visas Information & Passports,ALEXANDER MANN SOLUTIONS LTD,1486657-2870301-560478-41062,4927.44
Home Office,Home Office,25/08/2023,FULL COST,UKVIP - Visas Information & Passports,BROOK STREET (UK) LTD,1508462-30588046-23-100385-14055,168.66
Home Office,Home Office,25/08/2023,FULL COST,UKVIP - Visas Information & Passports,BROOK STREET (UK) LTD,1406696-30588046-23-100385-107522,1290.26
Home Office,Home Office,25/08/2023,FULL COST,UKVIP - Visas Information & Passports,BROOK STREET (UK) LTD,1417207-30588046-23-100385-114095,1369.14
Home Office,Home Office,25/08/2023,FULL COST,UKVIP - Visas Information & Passports,BROOK STREET (UK) LTD,1406956-30588046-23-100385-250959,3011.51
Home Office,Home Office,25/08/2023,FULL COST,UKVIP - Visas Information & Passports,BROOK STREET (UK) LTD,1406686-30588046-23-100385-389508,4674.09
Home Office,Home Office,25/08/2023,FULL COST,UKVIP - Visas Information & Passports,BROOK STREET (UK) LTD,1508462-30582371-23-100385-15490872,185890.33
Home Office,Home Office,25/08/2023,PASSPORT SECURE DELIVERY,UKVIP - Visas Information & Passports,DHL PARCEL UK LTD,1508414-8593222-250188-28467418,284674.18
Home Office,Home Office,25/08/2023,BASIC SALARY,UKVIP - Visas Information & Passports,HM REVENUE & CUSTOMS,1508462-18000026702023-187546-242532,29103.84
Home Office,Home Office,25/08/2023,PRINTING,UKVIP - Visas Information & Passports,OFFICE FOR NATIONAL STATISTICS (ONS),1508001-2919105-113042-2497265,24972.65
Home Office,Home Office,29/08/2023,CONTINGENT LABOUR OTHER,UKVIP - Visas Information & Passports,ADECCO UK LTD,1508462-29622419-56679-33345,400.14
Home Office,Home Office,29/08/2023,CONTINGENT LABOUR OTHER,UKVIP - Visas Information & Passports,ADECCO UK LTD,1406940-29622426-56679-39105,469.26
Home Office,Home Office,29/08/2023,CONTINGENT LABOUR OTHER,UKVIP - Visas Information & Passports,ADECCO UK LTD,1406696-29622426-56679-83784,1005.41
Home Office,Home Office,29/08/2023,CONTINGENT LABOUR OTHER,UKVIP - Visas Information & Passports,ADECCO UK LTD,1406686-29622478-56679-405724,4868.69
Home Office,Home Office,29/08/2023,CONTINGENT LABOUR OTHER,UKVIP - Visas Information & Passports,ADECCO UK LTD,1508462-29622478-56679-579077,6948.94
Home Office,Home Office,29/08/2023,CONTINGENT LABOUR OTHER,UKVIP - Visas Information & Passports,ADECCO UK LTD,1406956-29622419-56679-807877,9694.51
Home Office,Home Office,29/08/2023,CONTINGENT LABOUR OTHER,UKVIP - Visas Information & Passports,ADECCO UK LTD,1406686-29622426-56679-247649,29717.88
Home Office,Home Office,30/08/2023,PUBLICATION,UKVIP - Visas Information & Passports,CONEXIA LTD,1406662-6032639729-158585-2368475,28421.7
Home Office,Home Office,30/08/2023,SYSTEM CLEARING,UKVIP - Visas Information & Passports,MASTEK (UK) LTD,1486657-90398469-351665-5342845,534284.5
Home Office,Home Office,30/08/2023,PASSPORT SECURE DELIVERY,UKVIP - Visas Information & Passports,ROYAL MAIL,1508414-9067943301-112710-8294812,82948.12
Home Office,Home Office,30/08/2023,PASSPORT SECURE DELIVERY,UKVIP - Visas Information & Passports,ROYAL MAIL,1508414-9067999638-112710-11390625,113906.25
Home Office,Home Office,30/08/2023,PASSPORT SECURE DELIVERY,UKVIP - Visas Information & Passports,ROYAL MAIL,1508414-9068165462-112710-11715033,117150.33
Home Office,Home Office,30/08/2023,PASSPORT SECURE DELIVERY,UKVIP - Visas Information & Passports,ROYAL MAIL,1508414-9068108121-112710-12070743,120707.43
Home Office,Home Office,30/08/2023,PASSPORT SECURE DELIVERY,UKVIP - Visas Information & Passports,ROYAL MAIL,1508414-9068052374-112710-20165598,201655.98
Home Office,Home Office,31/08/2023,PRINTING,UKVIP - Visas Information & Passports,ALLIED PUBLICITY SERVICES (MANCHESTER) LIMITED,1508001-C79690-500635-271719,27171.9
